{"text_format":"3","workbook":"xlsx","n_sheets":2,"sheets":["Gantt","Informazioni"],"not_rendered":{"defined_names":5},"read":"whole","date_system":"1900"}

{"sheet":"Gantt","index":0,"n_rows":33,"n_cols":63,"rows_kept":33,"merged":[[1,2,1,3],[1,4,1,5],[2,2,2,3],[3,2,3,3]]}
["Creare un diagramma di Gantt in questo foglio di lavoro.\nImmettere il titolo di questo progetto nella cella B1. \nLe informazioni su come usare questo foglio di lavoro, con istruzioni per le utilità per la lettura dello schermo e l'autore della cartella di lavoro, si trovano nel foglio di lavoro Informazioni.\nContinuare a spostarsi verso il basso nella colonna A per ascoltare altre istruzioni.","TITOLO DEL PROGETTO"]
["Immettere il nome società nella cella B2.\nImmettere la data di inizio progetto nella cella E2 o usare la formula di esempio per trovare il valore della data minima dalla tabella Dati di Gantt. Data di inizio progetto: l’etichetta si trova nella cella C2.","Nome società","Data di inizio progetto:",null,{"$f":"IFERROR(IF(MIN(Attività_cardine[Inizio])=0,TODAY(),MIN(Attività_cardine[Inizio])),TODAY())","v":"2018-09-16"}]
["Immettere il nome del Responsabile del progetto nella cella B3. \nUn incremento scorrimento si trova nella cella E3. La barra di scorrimento si trova nelle celle da H3 a M3. Aumentando l’incremento scorrimento o usando la barra di scorrimento si incrementa la sequenza temporale del diagramma di Gantt. \nInserendo 0 nella cella E3 si azzera il grafico tornando all’inizio del progetto.","Responsabile del progetto","Incremento scorrimento:",null,0]
["Per modificare il tipo di indicatore di attività cardine predefinito, immettere 0, 1 o 2 nella cella E5. L’indicatore corrispondente apparirà nella cella F5. Per cambiare gli indicatori, modificare il formato condizionale per la cella e la tabella seguente.\nI mesi per le date nella riga 5 sono visualizzati a partire dalle celle da H4 a BK4.\nNon modificare queste celle. Vengono aggiornate automaticamente in base alla data di inizio progetto e all’incremento scorrimento.\nIncremento scorrimento: l’etichetta si trova nella cella C4.",null,"Indicatore di attività cardine:",null,1,{"$f":"Indicatore_Attività_Cardine","v":1},null,{"$f":"TEXT(H5,\"mmmm\")","v":"September"},{"$nulls":6},{"$f":"IF(TEXT(O5,\"mmmm\")=H4,\"\",TEXT(O5,\"mmmm\"))","v":""},{"$nulls":6},{"$f":"IF(OR(TEXT(V5,\"mmmm\")=O4,TEXT(V5,\"mmmm\")=H4),\"\",TEXT(V5,\"mmmm\"))","v":""},{"$nulls":6},{"$f":"IF(OR(TEXT(AC5,\"mmmm\")=V4,TEXT(AC5,\"mmmm\")=O4,TEXT(AC5,\"mmmm\")=H4),\"\",TEXT(AC5,\"mmmm\"))","v":"October"},{"$nulls":6},{"$f":"IF(OR(TEXT(AJ5,\"mmmm\")=AC4,TEXT(AJ5,\"mmmm\")=V4,TEXT(AJ5,\"mmmm\")=O4,TEXT(AJ5,\"mmmm\")=H4),\"\",TEXT(AJ5,\"mmmm\"))","v":""},{"$nulls":6},{"$f":"IF(OR(TEXT(AQ5,\"mmmm\")=AJ4,TEXT(AQ5,\"mmmm\")=AC4,TEXT(AQ5,\"mmmm\")=V4,TEXT(AQ5,\"mmmm\")=O4),\"\",TEXT(AQ5,\"mmmm\"))","v":""},{"$nulls":6},{"$f":"IF(OR(TEXT(AX5,\"mmmm\")=AQ4,TEXT(AX5,\"mmmm\")=AJ4,TEXT(AX5,\"mmmm\")=AC4,TEXT(AX5,\"mmmm\")=V4),\"\",TEXT(AX5,\"mmmm\"))","v":""},{"$nulls":6},{"$f":"IF(OR(TEXT(BE5,\"mmmm\")=AX4,TEXT(BE5,\"mmmm\")=AQ4,TEXT(BE5,\"mmmm\")=AJ4,TEXT(BE5,\"mmmm\")=AC4),\"\",TEXT(BE5,\"mmmm\"))","v":"November"}]
["Le celle da H5 a BK5 contengono il numero del giorno del mese per il Mese rappresentato nel blocco di celle sopra ogni cella di data e vengono calcolate automaticamente.\nNon modificare queste celle.\nLe date precedenti alla data corrente sono ombreggiate.",{"$nulls":6},{"$f":"IFERROR(Inzio_Progetto+Incremento_Scorrimento,TODAY())","v":"2018-09-16"},{"$f":"H5+1","v":"2018-09-17"},{"$f":"I5+1","v":"2018-09-18"},{"$f":"J5+1","v":"2018-09-19"},"2018-09-20","2018-09-21","2018-09-22",{"$f":"N5+1","v":"2018-09-23"},{"$f":"O5+1","v":"2018-09-24"},"2018-09-25","2018-09-26","2018-09-27","2018-09-28","2018-09-29",{"$f":"U5+1","v":"2018-09-30"},{"$f":"V5+1","v":"2018-10-01"},"2018-10-02","2018-10-03","2018-10-04","2018-10-05","2018-10-06",{"$f":"AB5+1","v":"2018-10-07"},{"$f":"AC5+1","v":"2018-10-08"},"2018-10-09","2018-10-10","2018-10-11","2018-10-12","2018-10-13",{"$f":"AI5+1","v":"2018-10-14"},{"$f":"AJ5+1","v":"2018-10-15"},"2018-10-16","2018-10-17","2018-10-18","2018-10-19","2018-10-20",{"$f":"AP5+1","v":"2018-10-21"},{"$f":"AQ5+1","v":"2018-10-22"},"2018-10-23","2018-10-24","2018-10-25","2018-10-26","2018-10-27",{"$f":"AW5+1","v":"2018-10-28"},{"$f":"AX5+1","v":"2018-10-29"},{"$f":"AY5+1","v":"2018-10-30"},"2018-10-31","2018-11-01","2018-11-02","2018-11-03",{"$f":"BD5+1","v":"2018-11-04"},{"$f":"BE5+1","v":"2018-11-05"},{"$f":"BF5+1","v":"2018-11-06"},"2018-11-07","2018-11-08","2018-11-09","2018-11-10"]
["Questa riga contiene le intestazioni per la pianificazione di progetto che segue sotto di esse. \nSpostarsi da B7 a BK7 per ascoltare il contenuto. La prima lettera di ogni giorno della settimana per la data sopra l’intestazione, inizia nella cella H7 e continua fino alla cella BK7.\nI grafici delle sequenze temporali dei progetti sono generati automaticamente in base alla categoria, alla data di inizio e al numero di giorni immessi nella tabella Attività cardine.\nLe formule in queste celle contribuiscono a creare l’aspetto del Diagramma di Gantt. Non modificare queste celle.","Descrizione attività cardine","Assegnata a","Avanzamento","Inizio","Numero di giorni",null,{"$f":"LEFT(TEXT(H5,\"ddd\"),1)","v":"S"},{"$f":"LEFT(TEXT(I5,\"ggg\"),1)","v":""},"","","","","","","","","","","","","","","","","","","","","","","","","","","","","","","",{"$f":"LEFT(TEXT(AO5,\"ggg\"),1)","v":""},"","","","","","","","","","","","","","","","","","","","","",""]
["Non eliminare questa riga. Questa riga è nascosta per proteggere una formula usata per evidenziare il giorno corrente all’interno della pianificazione di progetto. "]
["Immettere le informazioni sul progetto a partire dalla cella B8 e fino alla cella F8. \nI dati di esempio si trovano nelle celle da B8 a G32.\nImmettere la descrizione dell’attività cardine, assegnare qualcuno all’elemento, immettere l’avanzamento del compito come percentuale di completamento, immettere una data di inizio e una durata del compito in numero di giorni.\nIl diagramma di Gantt si aggiornerà automaticamente quando viene immessa la data.\nL'istruzione successiva si trova nella cella A33.","Titolo 1",{"$nulls":5},{"$f":"IFERROR(IF(LEN(Attività_cardine[[#This Row],[Numero di giorni]])=0,\"\",IF(AND(H$5=$E8,$F8=1),Indicatore_Attività_Cardine,\"\")),\"\")","v":""},{"$f":"IFERROR(IF(LEN(Attività_cardine[[#This Row],[Numero di giorni]])=0,\"\",IF(AND(I$5=$E8,$F8=1),Indicatore_Attività_Cardine,\"\")),\"\")","v":""},{"$f":"IFERROR(IF(LEN(Attività_cardine[[#This Row],[Numero di giorni]])=0,\"\",IF(AND(J$5=$E8,$F8=1),Indicatore_Attività_Cardine,\"\")),\"\")","v":""},{"$f":"IFERROR(IF(LEN(Attività_cardine[[#This Row],[Numero di giorni]])=0,\"\",IF(AND(K$5=$E8,$F8=1),Indicatore_Attività_Cardine,\"\")),\"\")","v":""},{"$f":"IFERROR(IF(LEN(Attività_cardine[[#This Row],[Numero di giorni]])=0,\"\",IF(AND(L$5=$E8,$F8=1),Indicatore_Attività_Cardine,\"\")),\"\")","v":""},{"$f":"IFERROR(IF(LEN(Attività_cardine[[#This Row],[Numero di giorni]])=0,\"\",IF(AND(M$5=$E8,$F8=1),Indicatore_Attività_Cardine,\"\")),\"\")","v":""},{"$f":"IFERROR(IF(LEN(Attività_cardine[[#This Row],[Numero di giorni]])=0,\"\",IF(AND(N$5=$E8,$F8=1),Indicatore_Attività_Cardine,\"\")),\"\")","v":""},{"$f":"IFERROR(IF(LEN(Attività_cardine[[#This Row],[Numero di giorni]])=0,\"\",IF(AND(O$5=$E8,$F8=1),Indicatore_Attività_Cardine,\"\")),\"\")","v":""},{"$f":"IFERROR(IF(LEN(Attività_cardine[[#This Row],[Numero di giorni]])=0,\"\",IF(AND(P$5=$E8,$F8=1),Indicatore_Attività_Cardine,\"\")),\"\")","v":""},{"$f":"IFERROR(IF(LEN(Attività_cardine[[#This Row],[Numero di giorni]])=0,\"\",IF(AND(Q$5=$E8,$F8=1),Indicatore_Attività_Cardine,\"\")),\"\")","v":""},{"$f":"IFERROR(IF(LEN(Attività_cardine[[#This Row],[Numero di giorni]])=0,\"\",IF(AND(R$5=$E8,$F8=1),Indicatore_Attività_Cardine,\"\")),\"\")","v":""},{"$f":"IFERROR(IF(LEN(Attività_cardine[[#This Row],[Numero di giorni]])=0,\"\",IF(AND(S$5=$E8,$F8=1),Indicatore_Attività_Cardine,\"\")),\"\")","v":""},{"$f":"IFERROR(IF(LEN(Attività_cardine[[#This Row],[Numero di giorni]])=0,\"\",IF(AND(T$5=$E8,$F8=1),Indicatore_Attività_Cardine,\"\")),\"\")","v":""},{"$f":"IFERROR(IF(LEN(Attività_cardine[[#This Row],[Numero di giorni]])=0,\"\",IF(AND(U$5=$E8,$F8=1),Indicatore_Attività_Cardine,\"\")),\"\")","v":""},{"$f":"IFERROR(IF(LEN(Attività_cardine[[#This Row],[Numero di giorni]])=0,\"\",IF(AND(V$5=$E8,$F8=1),Indicatore_Attività_Cardine,\"\")),\"\")","v":""},{"$f":"IFERROR(IF(LEN(Attività_cardine[[#This Row],[Numero di giorni]])=0,\"\",IF(AND(W$5=$E8,$F8=1),Indicatore_Attività_Cardine,\"\")),\"\")","v":""},{"$f":"IFERROR(IF(LEN(Attività_cardine[[#This Row],[Numero di giorni]])=0,\"\",IF(AND(X$5=$E8,$F8=1),Indicatore_Attività_Cardine,\"\")),\"\")","v":""},{"$f":"IFERROR(IF(LEN(Attività_cardine[[#This Row],[Numero di giorni]])=0,\"\",IF(AND(Y$5=$E8,$F8=1),Indicatore_Attività_Cardine,\"\")),\"\")","v":""},{"$f":"IFERROR(IF(LEN(Attività_cardine[[#This Row],[Numero di giorni]])=0,\"\",IF(AND(Z$5=$E8,$F8=1),Indicatore_Attività_Cardine,\"\")),\"\")","v":""},{"$f":"IFERROR(IF(LEN(Attività_cardine[[#This Row],[Numero di giorni]])=0,\"\",IF(AND(AA$5=$E8,$F8=1),Indicatore_Attività_Cardine,\"\")),\"\")","v":""},{"$f":"IFERROR(IF(LEN(Attività_cardine[[#This Row],[Numero di giorni]])=0,\"\",IF(AND(AB$5=$E8,$F8=1),Indicatore_Attività_Cardine,\"\")),\"\")","v":""},{"$f":"IFERROR(IF(LEN(Attività_cardine[[#This Row],[Numero di giorni]])=0,\"\",IF(AND(AC$5=$E8,$F8=1),Indicatore_Attività_Cardine,\"\")),\"\")","v":""},{"$f":"IFERROR(IF(LEN(Attività_cardine[[#This Row],[Numero di giorni]])=0,\"\",IF(AND(AD$5=$E8,$F8=1),Indicatore_Attività_Cardine,\"\")),\"\")","v":""},{"$f":"IFERROR(IF(LEN(Attività_cardine[[#This Row],[Numero di giorni]])=0,\"\",IF(AND(AE$5=$E8,$F8=1),Indicatore_Attività_Cardine,\"\")),\"\")","v":""},{"$f":"IFERROR(IF(LEN(Attività_cardine[[#This Row],[Numero di giorni]])=0,\"\",IF(AND(AF$5=$E8,$F8=1),Indicatore_Attività_Cardine,\"\")),\"\")","v":""},{"$f":"IFERROR(IF(LEN(Attività_cardine[[#This Row],[Numero di giorni]])=0,\"\",IF(AND(AG$5=$E8,$F8=1),Indicatore_Attività_Cardine,\"\")),\"\")","v":""},{"$f":"IFERROR(IF(LEN(Attività_cardine[[#This Row],[Numero di giorni]])=0,\"\",IF(AND(AH$5=$E8,$F8=1),Indicatore_Attività_Cardine,\"\")),\"\")","v":""},{"$f":"IFERROR(IF(LEN(Attività_cardine[[#This Row],[Numero di giorni]])=0,\"\",IF(AND(AI$5=$E8,$F8=1),Indicatore_Attività_Cardine,\"\")),\"\")","v":""},{"$f":"IFERROR(IF(LEN(Attività_cardine[[#This Row],[Numero di giorni]])=0,\"\",IF(AND(AJ$5=$E8,$F8=1),Indicatore_Attività_Cardine,\"\")),\"\")","v":""},{"$f":"IFERROR(IF(LEN(Attività_cardine[[#This Row],[Numero di giorni]])=0,\"\",IF(AND(AK$5=$E8,$F8=1),Indicatore_Attività_Cardine,\"\")),\"\")","v":""},{"$f":"IFERROR(IF(LEN(Attività_cardine[[#This Row],[Numero di giorni]])=0,\"\",IF(AND(AL$5=$E8,$F8=1),Indicatore_Attività_Cardine,\"\")),\"\")","v":""},{"$f":"IFERROR(IF(LEN(Attività_cardine[[#This Row],[Numero di giorni]])=0,\"\",IF(AND(AM$5=$E8,$F8=1),Indicatore_Attività_Cardine,\"\")),\"\")","v":""},{"$f":"IFERROR(IF(LEN(Attività_cardine[[#This Row],[Numero di giorni]])=0,\"\",IF(AND(AN$5=$E8,$F8=1),Indicatore_Attività_Cardine,\"\")),\"\")","v":""},{"$f":"IFERROR(IF(LEN(Attività_cardine[[#This Row],[Numero di giorni]])=0,\"\",IF(AND(AO$5=$E8,$F8=1),Indicatore_Attività_Cardine,\"\")),\"\")","v":""},{"$f":"IFERROR(IF(LEN(Attività_cardine[[#This Row],[Numero di giorni]])=0,\"\",IF(AND(AP$5=$E8,$F8=1),Indicatore_Attività_Cardine,\"\")),\"\")","v":""},{"$f":"IFERROR(IF(LEN(Attività_cardine[[#This Row],[Numero di giorni]])=0,\"\",IF(AND(AQ$5=$E8,$F8=1),Indicatore_Attività_Cardine,\"\")),\"\")","v":""},{"$f":"IFERROR(IF(LEN(Attività_cardine[[#This Row],[Numero di giorni]])=0,\"\",IF(AND(AR$5=$E8,$F8=1),Indicatore_Attività_Cardine,\"\")),\"\")","v":""},{"$f":"IFERROR(IF(LEN(Attività_cardine[[#This Row],[Numero di giorni]])=0,\"\",IF(AND(AS$5=$E8,$F8=1),Indicatore_Attività_Cardine,\"\")),\"\")","v":""},{"$f":"IFERROR(IF(LEN(Attività_cardine[[#This Row],[Numero di giorni]])=0,\"\",IF(AND(AT$5=$E8,$F8=1),Indicatore_Attività_Cardine,\"\")),\"\")","v":""},{"$f":"IFERROR(IF(LEN(Attività_cardine[[#This Row],[Numero di giorni]])=0,\"\",IF(AND(AU$5=$E8,$F8=1),Indicatore_Attività_Cardine,\"\")),\"\")","v":""},{"$f":"IFERROR(IF(LEN(Attività_cardine[[#This Row],[Numero di giorni]])=0,\"\",IF(AND(AV$5=$E8,$F8=1),Indicatore_Attività_Cardine,\"\")),\"\")","v":""},{"$f":"IFERROR(IF(LEN(Attività_cardine[[#This Row],[Numero di giorni]])=0,\"\",IF(AND(AW$5=$E8,$F8=1),Indicatore_Attività_Cardine,\"\")),\"\")","v":""},{"$f":"IFERROR(IF(LEN(Attività_cardine[[#This Row],[Numero di giorni]])=0,\"\",IF(AND(AX$5=$E8,$F8=1),Indicatore_Attività_Cardine,\"\")),\"\")","v":""},{"$f":"IFERROR(IF(LEN(Attività_cardine[[#This Row],[Numero di giorni]])=0,\"\",IF(AND(AY$5=$E8,$F8=1),Indicatore_Attività_Cardine,\"\")),\"\")","v":""},{"$f":"IFERROR(IF(LEN(Attività_cardine[[#This Row],[Numero di giorni]])=0,\"\",IF(AND(AZ$5=$E8,$F8=1),Indicatore_Attività_Cardine,\"\")),\"\")","v":""},{"$f":"IFERROR(IF(LEN(Attività_cardine[[#This Row],[Numero di giorni]])=0,\"\",IF(AND(BA$5=$E8,$F8=1),Indicatore_Attività_Cardine,\"\")),\"\")","v":""},{"$f":"IFERROR(IF(LEN(Attività_cardine[[#This Row],[Numero di giorni]])=0,\"\",IF(AND(BB$5=$E8,$F8=1),Indicatore_Attività_Cardine,\"\")),\"\")","v":""},{"$f":"IFERROR(IF(LEN(Attività_cardine[[#This Row],[Numero di giorni]])=0,\"\",IF(AND(BC$5=$E8,$F8=1),Indicatore_Attività_Cardine,\"\")),\"\")","v":""},{"$f":"IFERROR(IF(LEN(Attività_cardine[[#This Row],[Numero di giorni]])=0,\"\",IF(AND(BD$5=$E8,$F8=1),Indicatore_Attività_Cardine,\"\")),\"\")","v":""},{"$f":"IFERROR(IF(LEN(Attività_cardine[[#This Row],[Numero di giorni]])=0,\"\",IF(AND(BE$5=$E8,$F8=1),Indicatore_Attività_Cardine,\"\")),\"\")","v":""},{"$f":"IFERROR(IF(LEN(Attività_cardine[[#This Row],[Numero di giorni]])=0,\"\",IF(AND(BF$5=$E8,$F8=1),Indicatore_Attività_Cardine,\"\")),\"\")","v":""},{"$f":"IFERROR(IF(LEN(Attività_cardine[[#This Row],[Numero di giorni]])=0,\"\",IF(AND(BG$5=$E8,$F8=1),Indicatore_Attività_Cardine,\"\")),\"\")","v":""},{"$f":"IFERROR(IF(LEN(Attività_cardine[[#This Row],[Numero di giorni]])=0,\"\",IF(AND(BH$5=$E8,$F8=1),Indicatore_Attività_Cardine,\"\")),\"\")","v":""},{"$f":"IFERROR(IF(LEN(Attività_cardine[[#This Row],[Numero di giorni]])=0,\"\",IF(AND(BI$5=$E8,$F8=1),Indicatore_Attività_Cardine,\"\")),\"\")","v":""},{"$f":"IFERROR(IF(LEN(Attività_cardine[[#This Row],[Numero di giorni]])=0,\"\",IF(AND(BJ$5=$E8,$F8=1),Indicatore_Attività_Cardine,\"\")),\"\")","v":""},{"$f":"IFERROR(IF(LEN(Attività_cardine[[#This Row],[Numero di giorni]])=0,\"\",IF(AND(BK$5=$E8,$F8=1),Indicatore_Attività_Cardine,\"\")),\"\")","v":""}]
[null,"Attività 1","Nome",{"v":0.25,"d":"25%"},{"$f":"TODAY()","v":"2018-09-19"},3,null,{"$f":"IFERROR(IF(LEN(Attività_cardine[[#This Row],[Numero di giorni]])=0,\"\",IF(AND(H$5=$E9,$F9=1),Indicatore_Attività_Cardine,\"\")),\"\")","v":""},{"$f":"IFERROR(IF(LEN(Attività_cardine[[#This Row],[Numero di giorni]])=0,\"\",IF(AND(I$5=$E9,$F9=1),Indicatore_Attività_Cardine,\"\")),\"\")","v":""},{"$f":"IFERROR(IF(LEN(Attività_cardine[[#This Row],[Numero di giorni]])=0,\"\",IF(AND(J$5=$E9,$F9=1),Indicatore_Attività_Cardine,\"\")),\"\")","v":""},{"$f":"IFERROR(IF(LEN(Attività_cardine[[#This Row],[Numero di giorni]])=0,\"\",IF(AND(K$5=$E9,$F9=1),Indicatore_Attività_Cardine,\"\")),\"\")","v":""},{"$f":"IFERROR(IF(LEN(Attività_cardine[[#This Row],[Numero di giorni]])=0,\"\",IF(AND(L$5=$E9,$F9=1),Indicatore_Attività_Cardine,\"\")),\"\")","v":""},{"$f":"IFERROR(IF(LEN(Attività_cardine[[#This Row],[Numero di giorni]])=0,\"\",IF(AND(M$5=$E9,$F9=1),Indicatore_Attività_Cardine,\"\")),\"\")","v":""},{"$f":"IFERROR(IF(LEN(Attività_cardine[[#This Row],[Numero di giorni]])=0,\"\",IF(AND(N$5=$E9,$F9=1),Indicatore_Attività_Cardine,\"\")),\"\")","v":""},{"$f":"IFERROR(IF(LEN(Attività_cardine[[#This Row],[Numero di giorni]])=0,\"\",IF(AND(O$5=$E9,$F9=1),Indicatore_Attività_Cardine,\"\")),\"\")","v":""},{"$f":"IFERROR(IF(LEN(Attività_cardine[[#This Row],[Numero di giorni]])=0,\"\",IF(AND(P$5=$E9,$F9=1),Indicatore_Attività_Cardine,\"\")),\"\")","v":""},{"$f":"IFERROR(IF(LEN(Attività_cardine[[#This Row],[Numero di giorni]])=0,\"\",IF(AND(Q$5=$E9,$F9=1),Indicatore_Attività_Cardine,\"\")),\"\")","v":""},{"$f":"IFERROR(IF(LEN(Attività_cardine[[#This Row],[Numero di giorni]])=0,\"\",IF(AND(R$5=$E9,$F9=1),Indicatore_Attività_Cardine,\"\")),\"\")","v":""},{"$f":"IFERROR(IF(LEN(Attività_cardine[[#This Row],[Numero di giorni]])=0,\"\",IF(AND(S$5=$E9,$F9=1),Indicatore_Attività_Cardine,\"\")),\"\")","v":""},{"$f":"IFERROR(IF(LEN(Attività_cardine[[#This Row],[Numero di giorni]])=0,\"\",IF(AND(T$5=$E9,$F9=1),Indicatore_Attività_Cardine,\"\")),\"\")","v":""},{"$f":"IFERROR(IF(LEN(Attività_cardine[[#This Row],[Numero di giorni]])=0,\"\",IF(AND(U$5=$E9,$F9=1),Indicatore_Attività_Cardine,\"\")),\"\")","v":""},{"$f":"IFERROR(IF(LEN(Attività_cardine[[#This Row],[Numero di giorni]])=0,\"\",IF(AND(V$5=$E9,$F9=1),Indicatore_Attività_Cardine,\"\")),\"\")","v":""},{"$f":"IFERROR(IF(LEN(Attività_cardine[[#This Row],[Numero di giorni]])=0,\"\",IF(AND(W$5=$E9,$F9=1),Indicatore_Attività_Cardine,\"\")),\"\")","v":""},{"$f":"IFERROR(IF(LEN(Attività_cardine[[#This Row],[Numero di giorni]])=0,\"\",IF(AND(X$5=$E9,$F9=1),Indicatore_Attività_Cardine,\"\")),\"\")","v":""},{"$f":"IFERROR(IF(LEN(Attività_cardine[[#This Row],[Numero di giorni]])=0,\"\",IF(AND(Y$5=$E9,$F9=1),Indicatore_Attività_Cardine,\"\")),\"\")","v":""},{"$f":"IFERROR(IF(LEN(Attività_cardine[[#This Row],[Numero di giorni]])=0,\"\",IF(AND(Z$5=$E9,$F9=1),Indicatore_Attività_Cardine,\"\")),\"\")","v":""},{"$f":"IFERROR(IF(LEN(Attività_cardine[[#This Row],[Numero di giorni]])=0,\"\",IF(AND(AA$5=$E9,$F9=1),Indicatore_Attività_Cardine,\"\")),\"\")","v":""},{"$f":"IFERROR(IF(LEN(Attività_cardine[[#This Row],[Numero di giorni]])=0,\"\",IF(AND(AB$5=$E9,$F9=1),Indicatore_Attività_Cardine,\"\")),\"\")","v":""},{"$f":"IFERROR(IF(LEN(Attività_cardine[[#This Row],[Numero di giorni]])=0,\"\",IF(AND(AC$5=$E9,$F9=1),Indicatore_Attività_Cardine,\"\")),\"\")","v":""},{"$f":"IFERROR(IF(LEN(Attività_cardine[[#This Row],[Numero di giorni]])=0,\"\",IF(AND(AD$5=$E9,$F9=1),Indicatore_Attività_Cardine,\"\")),\"\")","v":""},{"$f":"IFERROR(IF(LEN(Attività_cardine[[#This Row],[Numero di giorni]])=0,\"\",IF(AND(AE$5=$E9,$F9=1),Indicatore_Attività_Cardine,\"\")),\"\")","v":""},{"$f":"IFERROR(IF(LEN(Attività_cardine[[#This Row],[Numero di giorni]])=0,\"\",IF(AND(AF$5=$E9,$F9=1),Indicatore_Attività_Cardine,\"\")),\"\")","v":""},{"$f":"IFERROR(IF(LEN(Attività_cardine[[#This Row],[Numero di giorni]])=0,\"\",IF(AND(AG$5=$E9,$F9=1),Indicatore_Attività_Cardine,\"\")),\"\")","v":""},{"$f":"IFERROR(IF(LEN(Attività_cardine[[#This Row],[Numero di giorni]])=0,\"\",IF(AND(AH$5=$E9,$F9=1),Indicatore_Attività_Cardine,\"\")),\"\")","v":""},{"$f":"IFERROR(IF(LEN(Attività_cardine[[#This Row],[Numero di giorni]])=0,\"\",IF(AND(AI$5=$E9,$F9=1),Indicatore_Attività_Cardine,\"\")),\"\")","v":""},{"$f":"IFERROR(IF(LEN(Attività_cardine[[#This Row],[Numero di giorni]])=0,\"\",IF(AND(AJ$5=$E9,$F9=1),Indicatore_Attività_Cardine,\"\")),\"\")","v":""},{"$f":"IFERROR(IF(LEN(Attività_cardine[[#This Row],[Numero di giorni]])=0,\"\",IF(AND(AK$5=$E9,$F9=1),Indicatore_Attività_Cardine,\"\")),\"\")","v":""},{"$f":"IFERROR(IF(LEN(Attività_cardine[[#This Row],[Numero di giorni]])=0,\"\",IF(AND(AL$5=$E9,$F9=1),Indicatore_Attività_Cardine,\"\")),\"\")","v":""},{"$f":"IFERROR(IF(LEN(Attività_cardine[[#This Row],[Numero di giorni]])=0,\"\",IF(AND(AM$5=$E9,$F9=1),Indicatore_Attività_Cardine,\"\")),\"\")","v":""},{"$f":"IFERROR(IF(LEN(Attività_cardine[[#This Row],[Numero di giorni]])=0,\"\",IF(AND(AN$5=$E9,$F9=1),Indicatore_Attività_Cardine,\"\")),\"\")","v":""},{"$f":"IFERROR(IF(LEN(Attività_cardine[[#This Row],[Numero di giorni]])=0,\"\",IF(AND(AO$5=$E9,$F9=1),Indicatore_Attività_Cardine,\"\")),\"\")","v":""},{"$f":"IFERROR(IF(LEN(Attività_cardine[[#This Row],[Numero di giorni]])=0,\"\",IF(AND(AP$5=$E9,$F9=1),Indicatore_Attività_Cardine,\"\")),\"\")","v":""},{"$f":"IFERROR(IF(LEN(Attività_cardine[[#This Row],[Numero di giorni]])=0,\"\",IF(AND(AQ$5=$E9,$F9=1),Indicatore_Attività_Cardine,\"\")),\"\")","v":""},{"$f":"IFERROR(IF(LEN(Attività_cardine[[#This Row],[Numero di giorni]])=0,\"\",IF(AND(AR$5=$E9,$F9=1),Indicatore_Attività_Cardine,\"\")),\"\")","v":""},{"$f":"IFERROR(IF(LEN(Attività_cardine[[#This Row],[Numero di giorni]])=0,\"\",IF(AND(AS$5=$E9,$F9=1),Indicatore_Attività_Cardine,\"\")),\"\")","v":""},{"$f":"IFERROR(IF(LEN(Attività_cardine[[#This Row],[Numero di giorni]])=0,\"\",IF(AND(AT$5=$E9,$F9=1),Indicatore_Attività_Cardine,\"\")),\"\")","v":""},{"$f":"IFERROR(IF(LEN(Attività_cardine[[#This Row],[Numero di giorni]])=0,\"\",IF(AND(AU$5=$E9,$F9=1),Indicatore_Attività_Cardine,\"\")),\"\")","v":""},{"$f":"IFERROR(IF(LEN(Attività_cardine[[#This Row],[Numero di giorni]])=0,\"\",IF(AND(AV$5=$E9,$F9=1),Indicatore_Attività_Cardine,\"\")),\"\")","v":""},{"$f":"IFERROR(IF(LEN(Attività_cardine[[#This Row],[Numero di giorni]])=0,\"\",IF(AND(AW$5=$E9,$F9=1),Indicatore_Attività_Cardine,\"\")),\"\")","v":""},{"$f":"IFERROR(IF(LEN(Attività_cardine[[#This Row],[Numero di giorni]])=0,\"\",IF(AND(AX$5=$E9,$F9=1),Indicatore_Attività_Cardine,\"\")),\"\")","v":""},{"$f":"IFERROR(IF(LEN(Attività_cardine[[#This Row],[Numero di giorni]])=0,\"\",IF(AND(AY$5=$E9,$F9=1),Indicatore_Attività_Cardine,\"\")),\"\")","v":""},{"$f":"IFERROR(IF(LEN(Attività_cardine[[#This Row],[Numero di giorni]])=0,\"\",IF(AND(AZ$5=$E9,$F9=1),Indicatore_Attività_Cardine,\"\")),\"\")","v":""},{"$f":"IFERROR(IF(LEN(Attività_cardine[[#This Row],[Numero di giorni]])=0,\"\",IF(AND(BA$5=$E9,$F9=1),Indicatore_Attività_Cardine,\"\")),\"\")","v":""},{"$f":"IFERROR(IF(LEN(Attività_cardine[[#This Row],[Numero di giorni]])=0,\"\",IF(AND(BB$5=$E9,$F9=1),Indicatore_Attività_Cardine,\"\")),\"\")","v":""},{"$f":"IFERROR(IF(LEN(Attività_cardine[[#This Row],[Numero di giorni]])=0,\"\",IF(AND(BC$5=$E9,$F9=1),Indicatore_Attività_Cardine,\"\")),\"\")","v":""},{"$f":"IFERROR(IF(LEN(Attività_cardine[[#This Row],[Numero di giorni]])=0,\"\",IF(AND(BD$5=$E9,$F9=1),Indicatore_Attività_Cardine,\"\")),\"\")","v":""},{"$f":"IFERROR(IF(LEN(Attività_cardine[[#This Row],[Numero di giorni]])=0,\"\",IF(AND(BE$5=$E9,$F9=1),Indicatore_Attività_Cardine,\"\")),\"\")","v":""},{"$f":"IFERROR(IF(LEN(Attività_cardine[[#This Row],[Numero di giorni]])=0,\"\",IF(AND(BF$5=$E9,$F9=1),Indicatore_Attività_Cardine,\"\")),\"\")","v":""},{"$f":"IFERROR(IF(LEN(Attività_cardine[[#This Row],[Numero di giorni]])=0,\"\",IF(AND(BG$5=$E9,$F9=1),Indicatore_Attività_Cardine,\"\")),\"\")","v":""},{"$f":"IFERROR(IF(LEN(Attività_cardine[[#This Row],[Numero di giorni]])=0,\"\",IF(AND(BH$5=$E9,$F9=1),Indicatore_Attività_Cardine,\"\")),\"\")","v":""},{"$f":"IFERROR(IF(LEN(Attività_cardine[[#This Row],[Numero di giorni]])=0,\"\",IF(AND(BI$5=$E9,$F9=1),Indicatore_Attività_Cardine,\"\")),\"\")","v":""},{"$f":"IFERROR(IF(LEN(Attività_cardine[[#This Row],[Numero di giorni]])=0,\"\",IF(AND(BJ$5=$E9,$F9=1),Indicatore_Attività_Cardine,\"\")),\"\")","v":""},{"$f":"IFERROR(IF(LEN(Attività_cardine[[#This Row],[Numero di giorni]])=0,\"\",IF(AND(BK$5=$E9,$F9=1),Indicatore_Attività_Cardine,\"\")),\"\")","v":""}]
[null,"Attività 2",null,null,{"$f":"TODAY()+5","v":"2018-09-24"},1,null,{"$f":"IFERROR(IF(LEN(Attività_cardine[[#This Row],[Numero di giorni]])=0,\"\",IF(AND(H$5=$E10,$F10=1),Indicatore_Attività_Cardine,\"\")),\"\")","v":""},{"$f":"IFERROR(IF(LEN(Attività_cardine[[#This Row],[Numero di giorni]])=0,\"\",IF(AND(I$5=$E10,$F10=1),Indicatore_Attività_Cardine,\"\")),\"\")","v":""},{"$f":"IFERROR(IF(LEN(Attività_cardine[[#This Row],[Numero di giorni]])=0,\"\",IF(AND(J$5=$E10,$F10=1),Indicatore_Attività_Cardine,\"\")),\"\")","v":""},{"$f":"IFERROR(IF(LEN(Attività_cardine[[#This Row],[Numero di giorni]])=0,\"\",IF(AND(K$5=$E10,$F10=1),Indicatore_Attività_Cardine,\"\")),\"\")","v":""},{"$f":"IFERROR(IF(LEN(Attività_cardine[[#This Row],[Numero di giorni]])=0,\"\",IF(AND(L$5=$E10,$F10=1),Indicatore_Attività_Cardine,\"\")),\"\")","v":""},{"$f":"IFERROR(IF(LEN(Attività_cardine[[#This Row],[Numero di giorni]])=0,\"\",IF(AND(M$5=$E10,$F10=1),Indicatore_Attività_Cardine,\"\")),\"\")","v":""},{"$f":"IFERROR(IF(LEN(Attività_cardine[[#This Row],[Numero di giorni]])=0,\"\",IF(AND(N$5=$E10,$F10=1),Indicatore_Attività_Cardine,\"\")),\"\")","v":""},{"$f":"IFERROR(IF(LEN(Attività_cardine[[#This Row],[Numero di giorni]])=0,\"\",IF(AND(O$5=$E10,$F10=1),Indicatore_Attività_Cardine,\"\")),\"\")","v":""},{"$f":"IFERROR(IF(LEN(Attività_cardine[[#This Row],[Numero di giorni]])=0,\"\",IF(AND(P$5=$E10,$F10=1),Indicatore_Attività_Cardine,\"\")),\"\")","v":1},{"$f":"IFERROR(IF(LEN(Attività_cardine[[#This Row],[Numero di giorni]])=0,\"\",IF(AND(Q$5=$E10,$F10=1),Indicatore_Attività_Cardine,\"\")),\"\")","v":""},{"$f":"IFERROR(IF(LEN(Attività_cardine[[#This Row],[Numero di giorni]])=0,\"\",IF(AND(R$5=$E10,$F10=1),Indicatore_Attività_Cardine,\"\")),\"\")","v":""},{"$f":"IFERROR(IF(LEN(Attività_cardine[[#This Row],[Numero di giorni]])=0,\"\",IF(AND(S$5=$E10,$F10=1),Indicatore_Attività_Cardine,\"\")),\"\")","v":""},{"$f":"IFERROR(IF(LEN(Attività_cardine[[#This Row],[Numero di giorni]])=0,\"\",IF(AND(T$5=$E10,$F10=1),Indicatore_Attività_Cardine,\"\")),\"\")","v":""},{"$f":"IFERROR(IF(LEN(Attività_cardine[[#This Row],[Numero di giorni]])=0,\"\",IF(AND(U$5=$E10,$F10=1),Indicatore_Attività_Cardine,\"\")),\"\")","v":""},{"$f":"IFERROR(IF(LEN(Attività_cardine[[#This Row],[Numero di giorni]])=0,\"\",IF(AND(V$5=$E10,$F10=1),Indicatore_Attività_Cardine,\"\")),\"\")","v":""},{"$f":"IFERROR(IF(LEN(Attività_cardine[[#This Row],[Numero di giorni]])=0,\"\",IF(AND(W$5=$E10,$F10=1),Indicatore_Attività_Cardine,\"\")),\"\")","v":""},{"$f":"IFERROR(IF(LEN(Attività_cardine[[#This Row],[Numero di giorni]])=0,\"\",IF(AND(X$5=$E10,$F10=1),Indicatore_Attività_Cardine,\"\")),\"\")","v":""},{"$f":"IFERROR(IF(LEN(Attività_cardine[[#This Row],[Numero di giorni]])=0,\"\",IF(AND(Y$5=$E10,$F10=1),Indicatore_Attività_Cardine,\"\")),\"\")","v":""},{"$f":"IFERROR(IF(LEN(Attività_cardine[[#This Row],[Numero di giorni]])=0,\"\",IF(AND(Z$5=$E10,$F10=1),Indicatore_Attività_Cardine,\"\")),\"\")","v":""},{"$f":"IFERROR(IF(LEN(Attività_cardine[[#This Row],[Numero di giorni]])=0,\"\",IF(AND(AA$5=$E10,$F10=1),Indicatore_Attività_Cardine,\"\")),\"\")","v":""},{"$f":"IFERROR(IF(LEN(Attività_cardine[[#This Row],[Numero di giorni]])=0,\"\",IF(AND(AB$5=$E10,$F10=1),Indicatore_Attività_Cardine,\"\")),\"\")","v":""},{"$f":"IFERROR(IF(LEN(Attività_cardine[[#This Row],[Numero di giorni]])=0,\"\",IF(AND(AC$5=$E10,$F10=1),Indicatore_Attività_Cardine,\"\")),\"\")","v":""},{"$f":"IFERROR(IF(LEN(Attività_cardine[[#This Row],[Numero di giorni]])=0,\"\",IF(AND(AD$5=$E10,$F10=1),Indicatore_Attività_Cardine,\"\")),\"\")","v":""},{"$f":"IFERROR(IF(LEN(Attività_cardine[[#This Row],[Numero di giorni]])=0,\"\",IF(AND(AE$5=$E10,$F10=1),Indicatore_Attività_Cardine,\"\")),\"\")","v":""},{"$f":"IFERROR(IF(LEN(Attività_cardine[[#This Row],[Numero di giorni]])=0,\"\",IF(AND(AF$5=$E10,$F10=1),Indicatore_Attività_Cardine,\"\")),\"\")","v":""},{"$f":"IFERROR(IF(LEN(Attività_cardine[[#This Row],[Numero di giorni]])=0,\"\",IF(AND(AG$5=$E10,$F10=1),Indicatore_Attività_Cardine,\"\")),\"\")","v":""},{"$f":"IFERROR(IF(LEN(Attività_cardine[[#This Row],[Numero di giorni]])=0,\"\",IF(AND(AH$5=$E10,$F10=1),Indicatore_Attività_Cardine,\"\")),\"\")","v":""},{"$f":"IFERROR(IF(LEN(Attività_cardine[[#This Row],[Numero di giorni]])=0,\"\",IF(AND(AI$5=$E10,$F10=1),Indicatore_Attività_Cardine,\"\")),\"\")","v":""},{"$f":"IFERROR(IF(LEN(Attività_cardine[[#This Row],[Numero di giorni]])=0,\"\",IF(AND(AJ$5=$E10,$F10=1),Indicatore_Attività_Cardine,\"\")),\"\")","v":""},{"$f":"IFERROR(IF(LEN(Attività_cardine[[#This Row],[Numero di giorni]])=0,\"\",IF(AND(AK$5=$E10,$F10=1),Indicatore_Attività_Cardine,\"\")),\"\")","v":""},{"$f":"IFERROR(IF(LEN(Attività_cardine[[#This Row],[Numero di giorni]])=0,\"\",IF(AND(AL$5=$E10,$F10=1),Indicatore_Attività_Cardine,\"\")),\"\")","v":""},{"$f":"IFERROR(IF(LEN(Attività_cardine[[#This Row],[Numero di giorni]])=0,\"\",IF(AND(AM$5=$E10,$F10=1),Indicatore_Attività_Cardine,\"\")),\"\")","v":""},{"$f":"IFERROR(IF(LEN(Attività_cardine[[#This Row],[Numero di giorni]])=0,\"\",IF(AND(AN$5=$E10,$F10=1),Indicatore_Attività_Cardine,\"\")),\"\")","v":""},{"$f":"IFERROR(IF(LEN(Attività_cardine[[#This Row],[Numero di giorni]])=0,\"\",IF(AND(AO$5=$E10,$F10=1),Indicatore_Attività_Cardine,\"\")),\"\")","v":""},{"$f":"IFERROR(IF(LEN(Attività_cardine[[#This Row],[Numero di giorni]])=0,\"\",IF(AND(AP$5=$E10,$F10=1),Indicatore_Attività_Cardine,\"\")),\"\")","v":""},{"$f":"IFERROR(IF(LEN(Attività_cardine[[#This Row],[Numero di giorni]])=0,\"\",IF(AND(AQ$5=$E10,$F10=1),Indicatore_Attività_Cardine,\"\")),\"\")","v":""},{"$f":"IFERROR(IF(LEN(Attività_cardine[[#This Row],[Numero di giorni]])=0,\"\",IF(AND(AR$5=$E10,$F10=1),Indicatore_Attività_Cardine,\"\")),\"\")","v":""},{"$f":"IFERROR(IF(LEN(Attività_cardine[[#This Row],[Numero di giorni]])=0,\"\",IF(AND(AS$5=$E10,$F10=1),Indicatore_Attività_Cardine,\"\")),\"\")","v":""},{"$f":"IFERROR(IF(LEN(Attività_cardine[[#This Row],[Numero di giorni]])=0,\"\",IF(AND(AT$5=$E10,$F10=1),Indicatore_Attività_Cardine,\"\")),\"\")","v":""},{"$f":"IFERROR(IF(LEN(Attività_cardine[[#This Row],[Numero di giorni]])=0,\"\",IF(AND(AU$5=$E10,$F10=1),Indicatore_Attività_Cardine,\"\")),\"\")","v":""},{"$f":"IFERROR(IF(LEN(Attività_cardine[[#This Row],[Numero di giorni]])=0,\"\",IF(AND(AV$5=$E10,$F10=1),Indicatore_Attività_Cardine,\"\")),\"\")","v":""},{"$f":"IFERROR(IF(LEN(Attività_cardine[[#This Row],[Numero di giorni]])=0,\"\",IF(AND(AW$5=$E10,$F10=1),Indicatore_Attività_Cardine,\"\")),\"\")","v":""},{"$f":"IFERROR(IF(LEN(Attività_cardine[[#This Row],[Numero di giorni]])=0,\"\",IF(AND(AX$5=$E10,$F10=1),Indicatore_Attività_Cardine,\"\")),\"\")","v":""},{"$f":"IFERROR(IF(LEN(Attività_cardine[[#This Row],[Numero di giorni]])=0,\"\",IF(AND(AY$5=$E10,$F10=1),Indicatore_Attività_Cardine,\"\")),\"\")","v":""},{"$f":"IFERROR(IF(LEN(Attività_cardine[[#This Row],[Numero di giorni]])=0,\"\",IF(AND(AZ$5=$E10,$F10=1),Indicatore_Attività_Cardine,\"\")),\"\")","v":""},{"$f":"IFERROR(IF(LEN(Attività_cardine[[#This Row],[Numero di giorni]])=0,\"\",IF(AND(BA$5=$E10,$F10=1),Indicatore_Attività_Cardine,\"\")),\"\")","v":""},{"$f":"IFERROR(IF(LEN(Attività_cardine[[#This Row],[Numero di giorni]])=0,\"\",IF(AND(BB$5=$E10,$F10=1),Indicatore_Attività_Cardine,\"\")),\"\")","v":""},{"$f":"IFERROR(IF(LEN(Attività_cardine[[#This Row],[Numero di giorni]])=0,\"\",IF(AND(BC$5=$E10,$F10=1),Indicatore_Attività_Cardine,\"\")),\"\")","v":""},{"$f":"IFERROR(IF(LEN(Attività_cardine[[#This Row],[Numero di giorni]])=0,\"\",IF(AND(BD$5=$E10,$F10=1),Indicatore_Attività_Cardine,\"\")),\"\")","v":""},{"$f":"IFERROR(IF(LEN(Attività_cardine[[#This Row],[Numero di giorni]])=0,\"\",IF(AND(BE$5=$E10,$F10=1),Indicatore_Attività_Cardine,\"\")),\"\")","v":""},{"$f":"IFERROR(IF(LEN(Attività_cardine[[#This Row],[Numero di giorni]])=0,\"\",IF(AND(BF$5=$E10,$F10=1),Indicatore_Attività_Cardine,\"\")),\"\")","v":""},{"$f":"IFERROR(IF(LEN(Attività_cardine[[#This Row],[Numero di giorni]])=0,\"\",IF(AND(BG$5=$E10,$F10=1),Indicatore_Attività_Cardine,\"\")),\"\")","v":""},{"$f":"IFERROR(IF(LEN(Attività_cardine[[#This Row],[Numero di giorni]])=0,\"\",IF(AND(BH$5=$E10,$F10=1),Indicatore_Attività_Cardine,\"\")),\"\")","v":""},{"$f":"IFERROR(IF(LEN(Attività_cardine[[#This Row],[Numero di giorni]])=0,\"\",IF(AND(BI$5=$E10,$F10=1),Indicatore_Attività_Cardine,\"\")),\"\")","v":""},{"$f":"IFERROR(IF(LEN(Attività_cardine[[#This Row],[Numero di giorni]])=0,\"\",IF(AND(BJ$5=$E10,$F10=1),Indicatore_Attività_Cardine,\"\")),\"\")","v":""},{"$f":"IFERROR(IF(LEN(Attività_cardine[[#This Row],[Numero di giorni]])=0,\"\",IF(AND(BK$5=$E10,$F10=1),Indicatore_Attività_Cardine,\"\")),\"\")","v":""}]
[null,"Attività 3",null,{"v":0.5,"d":"50%"},{"$f":"TODAY()-3","v":"2018-09-16"},10,null,{"$f":"IFERROR(IF(LEN(Attività_cardine[[#This Row],[Numero di giorni]])=0,\"\",IF(AND(H$5=$E11,$F11=1),Indicatore_Attività_Cardine,\"\")),\"\")","v":""},{"$f":"IFERROR(IF(LEN(Attività_cardine[[#This Row],[Numero di giorni]])=0,\"\",IF(AND(I$5=$E11,$F11=1),Indicatore_Attività_Cardine,\"\")),\"\")","v":""},{"$f":"IFERROR(IF(LEN(Attività_cardine[[#This Row],[Numero di giorni]])=0,\"\",IF(AND(J$5=$E11,$F11=1),Indicatore_Attività_Cardine,\"\")),\"\")","v":""},{"$f":"IFERROR(IF(LEN(Attività_cardine[[#This Row],[Numero di giorni]])=0,\"\",IF(AND(K$5=$E11,$F11=1),Indicatore_Attività_Cardine,\"\")),\"\")","v":""},{"$f":"IFERROR(IF(LEN(Attività_cardine[[#This Row],[Numero di giorni]])=0,\"\",IF(AND(L$5=$E11,$F11=1),Indicatore_Attività_Cardine,\"\")),\"\")","v":""},{"$f":"IFERROR(IF(LEN(Attività_cardine[[#This Row],[Numero di giorni]])=0,\"\",IF(AND(M$5=$E11,$F11=1),Indicatore_Attività_Cardine,\"\")),\"\")","v":""},{"$f":"IFERROR(IF(LEN(Attività_cardine[[#This Row],[Numero di giorni]])=0,\"\",IF(AND(N$5=$E11,$F11=1),Indicatore_Attività_Cardine,\"\")),\"\")","v":""},{"$f":"IFERROR(IF(LEN(Attività_cardine[[#This Row],[Numero di giorni]])=0,\"\",IF(AND(O$5=$E11,$F11=1),Indicatore_Attività_Cardine,\"\")),\"\")","v":""},{"$f":"IFERROR(IF(LEN(Attività_cardine[[#This Row],[Numero di giorni]])=0,\"\",IF(AND(P$5=$E11,$F11=1),Indicatore_Attività_Cardine,\"\")),\"\")","v":""},{"$f":"IFERROR(IF(LEN(Attività_cardine[[#This Row],[Numero di giorni]])=0,\"\",IF(AND(Q$5=$E11,$F11=1),Indicatore_Attività_Cardine,\"\")),\"\")","v":""},{"$f":"IFERROR(IF(LEN(Attività_cardine[[#This Row],[Numero di giorni]])=0,\"\",IF(AND(R$5=$E11,$F11=1),Indicatore_Attività_Cardine,\"\")),\"\")","v":""},{"$f":"IFERROR(IF(LEN(Attività_cardine[[#This Row],[Numero di giorni]])=0,\"\",IF(AND(S$5=$E11,$F11=1),Indicatore_Attività_Cardine,\"\")),\"\")","v":""},{"$f":"IFERROR(IF(LEN(Attività_cardine[[#This Row],[Numero di giorni]])=0,\"\",IF(AND(T$5=$E11,$F11=1),Indicatore_Attività_Cardine,\"\")),\"\")","v":""},{"$f":"IFERROR(IF(LEN(Attività_cardine[[#This Row],[Numero di giorni]])=0,\"\",IF(AND(U$5=$E11,$F11=1),Indicatore_Attività_Cardine,\"\")),\"\")","v":""},{"$f":"IFERROR(IF(LEN(Attività_cardine[[#This Row],[Numero di giorni]])=0,\"\",IF(AND(V$5=$E11,$F11=1),Indicatore_Attività_Cardine,\"\")),\"\")","v":""},{"$f":"IFERROR(IF(LEN(Attività_cardine[[#This Row],[Numero di giorni]])=0,\"\",IF(AND(W$5=$E11,$F11=1),Indicatore_Attività_Cardine,\"\")),\"\")","v":""},{"$f":"IFERROR(IF(LEN(Attività_cardine[[#This Row],[Numero di giorni]])=0,\"\",IF(AND(X$5=$E11,$F11=1),Indicatore_Attività_Cardine,\"\")),\"\")","v":""},{"$f":"IFERROR(IF(LEN(Attività_cardine[[#This Row],[Numero di giorni]])=0,\"\",IF(AND(Y$5=$E11,$F11=1),Indicatore_Attività_Cardine,\"\")),\"\")","v":""},{"$f":"IFERROR(IF(LEN(Attività_cardine[[#This Row],[Numero di giorni]])=0,\"\",IF(AND(Z$5=$E11,$F11=1),Indicatore_Attività_Cardine,\"\")),\"\")","v":""},{"$f":"IFERROR(IF(LEN(Attività_cardine[[#This Row],[Numero di giorni]])=0,\"\",IF(AND(AA$5=$E11,$F11=1),Indicatore_Attività_Cardine,\"\")),\"\")","v":""},{"$f":"IFERROR(IF(LEN(Attività_cardine[[#This Row],[Numero di giorni]])=0,\"\",IF(AND(AB$5=$E11,$F11=1),Indicatore_Attività_Cardine,\"\")),\"\")","v":""},{"$f":"IFERROR(IF(LEN(Attività_cardine[[#This Row],[Numero di giorni]])=0,\"\",IF(AND(AC$5=$E11,$F11=1),Indicatore_Attività_Cardine,\"\")),\"\")","v":""},{"$f":"IFERROR(IF(LEN(Attività_cardine[[#This Row],[Numero di giorni]])=0,\"\",IF(AND(AD$5=$E11,$F11=1),Indicatore_Attività_Cardine,\"\")),\"\")","v":""},{"$f":"IFERROR(IF(LEN(Attività_cardine[[#This Row],[Numero di giorni]])=0,\"\",IF(AND(AE$5=$E11,$F11=1),Indicatore_Attività_Cardine,\"\")),\"\")","v":""},{"$f":"IFERROR(IF(LEN(Attività_cardine[[#This Row],[Numero di giorni]])=0,\"\",IF(AND(AF$5=$E11,$F11=1),Indicatore_Attività_Cardine,\"\")),\"\")","v":""},{"$f":"IFERROR(IF(LEN(Attività_cardine[[#This Row],[Numero di giorni]])=0,\"\",IF(AND(AG$5=$E11,$F11=1),Indicatore_Attività_Cardine,\"\")),\"\")","v":""},{"$f":"IFERROR(IF(LEN(Attività_cardine[[#This Row],[Numero di giorni]])=0,\"\",IF(AND(AH$5=$E11,$F11=1),Indicatore_Attività_Cardine,\"\")),\"\")","v":""},{"$f":"IFERROR(IF(LEN(Attività_cardine[[#This Row],[Numero di giorni]])=0,\"\",IF(AND(AI$5=$E11,$F11=1),Indicatore_Attività_Cardine,\"\")),\"\")","v":""},{"$f":"IFERROR(IF(LEN(Attività_cardine[[#This Row],[Numero di giorni]])=0,\"\",IF(AND(AJ$5=$E11,$F11=1),Indicatore_Attività_Cardine,\"\")),\"\")","v":""},{"$f":"IFERROR(IF(LEN(Attività_cardine[[#This Row],[Numero di giorni]])=0,\"\",IF(AND(AK$5=$E11,$F11=1),Indicatore_Attività_Cardine,\"\")),\"\")","v":""},{"$f":"IFERROR(IF(LEN(Attività_cardine[[#This Row],[Numero di giorni]])=0,\"\",IF(AND(AL$5=$E11,$F11=1),Indicatore_Attività_Cardine,\"\")),\"\")","v":""},{"$f":"IFERROR(IF(LEN(Attività_cardine[[#This Row],[Numero di giorni]])=0,\"\",IF(AND(AM$5=$E11,$F11=1),Indicatore_Attività_Cardine,\"\")),\"\")","v":""},{"$f":"IFERROR(IF(LEN(Attività_cardine[[#This Row],[Numero di giorni]])=0,\"\",IF(AND(AN$5=$E11,$F11=1),Indicatore_Attività_Cardine,\"\")),\"\")","v":""},{"$f":"IFERROR(IF(LEN(Attività_cardine[[#This Row],[Numero di giorni]])=0,\"\",IF(AND(AO$5=$E11,$F11=1),Indicatore_Attività_Cardine,\"\")),\"\")","v":""},{"$f":"IFERROR(IF(LEN(Attività_cardine[[#This Row],[Numero di giorni]])=0,\"\",IF(AND(AP$5=$E11,$F11=1),Indicatore_Attività_Cardine,\"\")),\"\")","v":""},{"$f":"IFERROR(IF(LEN(Attività_cardine[[#This Row],[Numero di giorni]])=0,\"\",IF(AND(AQ$5=$E11,$F11=1),Indicatore_Attività_Cardine,\"\")),\"\")","v":""},{"$f":"IFERROR(IF(LEN(Attività_cardine[[#This Row],[Numero di giorni]])=0,\"\",IF(AND(AR$5=$E11,$F11=1),Indicatore_Attività_Cardine,\"\")),\"\")","v":""},{"$f":"IFERROR(IF(LEN(Attività_cardine[[#This Row],[Numero di giorni]])=0,\"\",IF(AND(AS$5=$E11,$F11=1),Indicatore_Attività_Cardine,\"\")),\"\")","v":""},{"$f":"IFERROR(IF(LEN(Attività_cardine[[#This Row],[Numero di giorni]])=0,\"\",IF(AND(AT$5=$E11,$F11=1),Indicatore_Attività_Cardine,\"\")),\"\")","v":""},{"$f":"IFERROR(IF(LEN(Attività_cardine[[#This Row],[Numero di giorni]])=0,\"\",IF(AND(AU$5=$E11,$F11=1),Indicatore_Attività_Cardine,\"\")),\"\")","v":""},{"$f":"IFERROR(IF(LEN(Attività_cardine[[#This Row],[Numero di giorni]])=0,\"\",IF(AND(AV$5=$E11,$F11=1),Indicatore_Attività_Cardine,\"\")),\"\")","v":""},{"$f":"IFERROR(IF(LEN(Attività_cardine[[#This Row],[Numero di giorni]])=0,\"\",IF(AND(AW$5=$E11,$F11=1),Indicatore_Attività_Cardine,\"\")),\"\")","v":""},{"$f":"IFERROR(IF(LEN(Attività_cardine[[#This Row],[Numero di giorni]])=0,\"\",IF(AND(AX$5=$E11,$F11=1),Indicatore_Attività_Cardine,\"\")),\"\")","v":""},{"$f":"IFERROR(IF(LEN(Attività_cardine[[#This Row],[Numero di giorni]])=0,\"\",IF(AND(AY$5=$E11,$F11=1),Indicatore_Attività_Cardine,\"\")),\"\")","v":""},{"$f":"IFERROR(IF(LEN(Attività_cardine[[#This Row],[Numero di giorni]])=0,\"\",IF(AND(AZ$5=$E11,$F11=1),Indicatore_Attività_Cardine,\"\")),\"\")","v":""},{"$f":"IFERROR(IF(LEN(Attività_cardine[[#This Row],[Numero di giorni]])=0,\"\",IF(AND(BA$5=$E11,$F11=1),Indicatore_Attività_Cardine,\"\")),\"\")","v":""},{"$f":"IFERROR(IF(LEN(Attività_cardine[[#This Row],[Numero di giorni]])=0,\"\",IF(AND(BB$5=$E11,$F11=1),Indicatore_Attività_Cardine,\"\")),\"\")","v":""},{"$f":"IFERROR(IF(LEN(Attività_cardine[[#This Row],[Numero di giorni]])=0,\"\",IF(AND(BC$5=$E11,$F11=1),Indicatore_Attività_Cardine,\"\")),\"\")","v":""},{"$f":"IFERROR(IF(LEN(Attività_cardine[[#This Row],[Numero di giorni]])=0,\"\",IF(AND(BD$5=$E11,$F11=1),Indicatore_Attività_Cardine,\"\")),\"\")","v":""},{"$f":"IFERROR(IF(LEN(Attività_cardine[[#This Row],[Numero di giorni]])=0,\"\",IF(AND(BE$5=$E11,$F11=1),Indicatore_Attività_Cardine,\"\")),\"\")","v":""},{"$f":"IFERROR(IF(LEN(Attività_cardine[[#This Row],[Numero di giorni]])=0,\"\",IF(AND(BF$5=$E11,$F11=1),Indicatore_Attività_Cardine,\"\")),\"\")","v":""},{"$f":"IFERROR(IF(LEN(Attività_cardine[[#This Row],[Numero di giorni]])=0,\"\",IF(AND(BG$5=$E11,$F11=1),Indicatore_Attività_Cardine,\"\")),\"\")","v":""},{"$f":"IFERROR(IF(LEN(Attività_cardine[[#This Row],[Numero di giorni]])=0,\"\",IF(AND(BH$5=$E11,$F11=1),Indicatore_Attività_Cardine,\"\")),\"\")","v":""},{"$f":"IFERROR(IF(LEN(Attività_cardine[[#This Row],[Numero di giorni]])=0,\"\",IF(AND(BI$5=$E11,$F11=1),Indicatore_Attività_Cardine,\"\")),\"\")","v":""},{"$f":"IFERROR(IF(LEN(Attività_cardine[[#This Row],[Numero di giorni]])=0,\"\",IF(AND(BJ$5=$E11,$F11=1),Indicatore_Attività_Cardine,\"\")),\"\")","v":""},{"$f":"IFERROR(IF(LEN(Attività_cardine[[#This Row],[Numero di giorni]])=0,\"\",IF(AND(BK$5=$E11,$F11=1),Indicatore_Attività_Cardine,\"\")),\"\")","v":""}]
[null,"Attività 4",null,null,{"$f":"TODAY()+20","v":"2018-10-09"},1,null,{"$f":"IFERROR(IF(LEN(Attività_cardine[[#This Row],[Numero di giorni]])=0,\"\",IF(AND(H$5=$E12,$F12=1),Indicatore_Attività_Cardine,\"\")),\"\")","v":""},{"$f":"IFERROR(IF(LEN(Attività_cardine[[#This Row],[Numero di giorni]])=0,\"\",IF(AND(I$5=$E12,$F12=1),Indicatore_Attività_Cardine,\"\")),\"\")","v":""},{"$f":"IFERROR(IF(LEN(Attività_cardine[[#This Row],[Numero di giorni]])=0,\"\",IF(AND(J$5=$E12,$F12=1),Indicatore_Attività_Cardine,\"\")),\"\")","v":""},{"$f":"IFERROR(IF(LEN(Attività_cardine[[#This Row],[Numero di giorni]])=0,\"\",IF(AND(K$5=$E12,$F12=1),Indicatore_Attività_Cardine,\"\")),\"\")","v":""},{"$f":"IFERROR(IF(LEN(Attività_cardine[[#This Row],[Numero di giorni]])=0,\"\",IF(AND(L$5=$E12,$F12=1),Indicatore_Attività_Cardine,\"\")),\"\")","v":""},{"$f":"IFERROR(IF(LEN(Attività_cardine[[#This Row],[Numero di giorni]])=0,\"\",IF(AND(M$5=$E12,$F12=1),Indicatore_Attività_Cardine,\"\")),\"\")","v":""},{"$f":"IFERROR(IF(LEN(Attività_cardine[[#This Row],[Numero di giorni]])=0,\"\",IF(AND(N$5=$E12,$F12=1),Indicatore_Attività_Cardine,\"\")),\"\")","v":""},{"$f":"IFERROR(IF(LEN(Attività_cardine[[#This Row],[Numero di giorni]])=0,\"\",IF(AND(O$5=$E12,$F12=1),Indicatore_Attività_Cardine,\"\")),\"\")","v":""},{"$f":"IFERROR(IF(LEN(Attività_cardine[[#This Row],[Numero di giorni]])=0,\"\",IF(AND(P$5=$E12,$F12=1),Indicatore_Attività_Cardine,\"\")),\"\")","v":""},{"$f":"IFERROR(IF(LEN(Attività_cardine[[#This Row],[Numero di giorni]])=0,\"\",IF(AND(Q$5=$E12,$F12=1),Indicatore_Attività_Cardine,\"\")),\"\")","v":""},{"$f":"IFERROR(IF(LEN(Attività_cardine[[#This Row],[Numero di giorni]])=0,\"\",IF(AND(R$5=$E12,$F12=1),Indicatore_Attività_Cardine,\"\")),\"\")","v":""},{"$f":"IFERROR(IF(LEN(Attività_cardine[[#This Row],[Numero di giorni]])=0,\"\",IF(AND(S$5=$E12,$F12=1),Indicatore_Attività_Cardine,\"\")),\"\")","v":""},{"$f":"IFERROR(IF(LEN(Attività_cardine[[#This Row],[Numero di giorni]])=0,\"\",IF(AND(T$5=$E12,$F12=1),Indicatore_Attività_Cardine,\"\")),\"\")","v":""},{"$f":"IFERROR(IF(LEN(Attività_cardine[[#This Row],[Numero di giorni]])=0,\"\",IF(AND(U$5=$E12,$F12=1),Indicatore_Attività_Cardine,\"\")),\"\")","v":""},{"$f":"IFERROR(IF(LEN(Attività_cardine[[#This Row],[Numero di giorni]])=0,\"\",IF(AND(V$5=$E12,$F12=1),Indicatore_Attività_Cardine,\"\")),\"\")","v":""},{"$f":"IFERROR(IF(LEN(Attività_cardine[[#This Row],[Numero di giorni]])=0,\"\",IF(AND(W$5=$E12,$F12=1),Indicatore_Attività_Cardine,\"\")),\"\")","v":""},{"$f":"IFERROR(IF(LEN(Attività_cardine[[#This Row],[Numero di giorni]])=0,\"\",IF(AND(X$5=$E12,$F12=1),Indicatore_Attività_Cardine,\"\")),\"\")","v":""},{"$f":"IFERROR(IF(LEN(Attività_cardine[[#This Row],[Numero di giorni]])=0,\"\",IF(AND(Y$5=$E12,$F12=1),Indicatore_Attività_Cardine,\"\")),\"\")","v":""},{"$f":"IFERROR(IF(LEN(Attività_cardine[[#This Row],[Numero di giorni]])=0,\"\",IF(AND(Z$5=$E12,$F12=1),Indicatore_Attività_Cardine,\"\")),\"\")","v":""},{"$f":"IFERROR(IF(LEN(Attività_cardine[[#This Row],[Numero di giorni]])=0,\"\",IF(AND(AA$5=$E12,$F12=1),Indicatore_Attività_Cardine,\"\")),\"\")","v":""},{"$f":"IFERROR(IF(LEN(Attività_cardine[[#This Row],[Numero di giorni]])=0,\"\",IF(AND(AB$5=$E12,$F12=1),Indicatore_Attività_Cardine,\"\")),\"\")","v":""},{"$f":"IFERROR(IF(LEN(Attività_cardine[[#This Row],[Numero di giorni]])=0,\"\",IF(AND(AC$5=$E12,$F12=1),Indicatore_Attività_Cardine,\"\")),\"\")","v":""},{"$f":"IFERROR(IF(LEN(Attività_cardine[[#This Row],[Numero di giorni]])=0,\"\",IF(AND(AD$5=$E12,$F12=1),Indicatore_Attività_Cardine,\"\")),\"\")","v":""},{"$f":"IFERROR(IF(LEN(Attività_cardine[[#This Row],[Numero di giorni]])=0,\"\",IF(AND(AE$5=$E12,$F12=1),Indicatore_Attività_Cardine,\"\")),\"\")","v":1},{"$f":"IFERROR(IF(LEN(Attività_cardine[[#This Row],[Numero di giorni]])=0,\"\",IF(AND(AF$5=$E12,$F12=1),Indicatore_Attività_Cardine,\"\")),\"\")","v":""},{"$f":"IFERROR(IF(LEN(Attività_cardine[[#This Row],[Numero di giorni]])=0,\"\",IF(AND(AG$5=$E12,$F12=1),Indicatore_Attività_Cardine,\"\")),\"\")","v":""},{"$f":"IFERROR(IF(LEN(Attività_cardine[[#This Row],[Numero di giorni]])=0,\"\",IF(AND(AH$5=$E12,$F12=1),Indicatore_Attività_Cardine,\"\")),\"\")","v":""},{"$f":"IFERROR(IF(LEN(Attività_cardine[[#This Row],[Numero di giorni]])=0,\"\",IF(AND(AI$5=$E12,$F12=1),Indicatore_Attività_Cardine,\"\")),\"\")","v":""},{"$f":"IFERROR(IF(LEN(Attività_cardine[[#This Row],[Numero di giorni]])=0,\"\",IF(AND(AJ$5=$E12,$F12=1),Indicatore_Attività_Cardine,\"\")),\"\")","v":""},{"$f":"IFERROR(IF(LEN(Attività_cardine[[#This Row],[Numero di giorni]])=0,\"\",IF(AND(AK$5=$E12,$F12=1),Indicatore_Attività_Cardine,\"\")),\"\")","v":""},{"$f":"IFERROR(IF(LEN(Attività_cardine[[#This Row],[Numero di giorni]])=0,\"\",IF(AND(AL$5=$E12,$F12=1),Indicatore_Attività_Cardine,\"\")),\"\")","v":""},{"$f":"IFERROR(IF(LEN(Attività_cardine[[#This Row],[Numero di giorni]])=0,\"\",IF(AND(AM$5=$E12,$F12=1),Indicatore_Attività_Cardine,\"\")),\"\")","v":""},{"$f":"IFERROR(IF(LEN(Attività_cardine[[#This Row],[Numero di giorni]])=0,\"\",IF(AND(AN$5=$E12,$F12=1),Indicatore_Attività_Cardine,\"\")),\"\")","v":""},{"$f":"IFERROR(IF(LEN(Attività_cardine[[#This Row],[Numero di giorni]])=0,\"\",IF(AND(AO$5=$E12,$F12=1),Indicatore_Attività_Cardine,\"\")),\"\")","v":""},{"$f":"IFERROR(IF(LEN(Attività_cardine[[#This Row],[Numero di giorni]])=0,\"\",IF(AND(AP$5=$E12,$F12=1),Indicatore_Attività_Cardine,\"\")),\"\")","v":""},{"$f":"IFERROR(IF(LEN(Attività_cardine[[#This Row],[Numero di giorni]])=0,\"\",IF(AND(AQ$5=$E12,$F12=1),Indicatore_Attività_Cardine,\"\")),\"\")","v":""},{"$f":"IFERROR(IF(LEN(Attività_cardine[[#This Row],[Numero di giorni]])=0,\"\",IF(AND(AR$5=$E12,$F12=1),Indicatore_Attività_Cardine,\"\")),\"\")","v":""},{"$f":"IFERROR(IF(LEN(Attività_cardine[[#This Row],[Numero di giorni]])=0,\"\",IF(AND(AS$5=$E12,$F12=1),Indicatore_Attività_Cardine,\"\")),\"\")","v":""},{"$f":"IFERROR(IF(LEN(Attività_cardine[[#This Row],[Numero di giorni]])=0,\"\",IF(AND(AT$5=$E12,$F12=1),Indicatore_Attività_Cardine,\"\")),\"\")","v":""},{"$f":"IFERROR(IF(LEN(Attività_cardine[[#This Row],[Numero di giorni]])=0,\"\",IF(AND(AU$5=$E12,$F12=1),Indicatore_Attività_Cardine,\"\")),\"\")","v":""},{"$f":"IFERROR(IF(LEN(Attività_cardine[[#This Row],[Numero di giorni]])=0,\"\",IF(AND(AV$5=$E12,$F12=1),Indicatore_Attività_Cardine,\"\")),\"\")","v":""},{"$f":"IFERROR(IF(LEN(Attività_cardine[[#This Row],[Numero di giorni]])=0,\"\",IF(AND(AW$5=$E12,$F12=1),Indicatore_Attività_Cardine,\"\")),\"\")","v":""},{"$f":"IFERROR(IF(LEN(Attività_cardine[[#This Row],[Numero di giorni]])=0,\"\",IF(AND(AX$5=$E12,$F12=1),Indicatore_Attività_Cardine,\"\")),\"\")","v":""},{"$f":"IFERROR(IF(LEN(Attività_cardine[[#This Row],[Numero di giorni]])=0,\"\",IF(AND(AY$5=$E12,$F12=1),Indicatore_Attività_Cardine,\"\")),\"\")","v":""},{"$f":"IFERROR(IF(LEN(Attività_cardine[[#This Row],[Numero di giorni]])=0,\"\",IF(AND(AZ$5=$E12,$F12=1),Indicatore_Attività_Cardine,\"\")),\"\")","v":""},{"$f":"IFERROR(IF(LEN(Attività_cardine[[#This Row],[Numero di giorni]])=0,\"\",IF(AND(BA$5=$E12,$F12=1),Indicatore_Attività_Cardine,\"\")),\"\")","v":""},{"$f":"IFERROR(IF(LEN(Attività_cardine[[#This Row],[Numero di giorni]])=0,\"\",IF(AND(BB$5=$E12,$F12=1),Indicatore_Attività_Cardine,\"\")),\"\")","v":""},{"$f":"IFERROR(IF(LEN(Attività_cardine[[#This Row],[Numero di giorni]])=0,\"\",IF(AND(BC$5=$E12,$F12=1),Indicatore_Attività_Cardine,\"\")),\"\")","v":""},{"$f":"IFERROR(IF(LEN(Attività_cardine[[#This Row],[Numero di giorni]])=0,\"\",IF(AND(BD$5=$E12,$F12=1),Indicatore_Attività_Cardine,\"\")),\"\")","v":""},{"$f":"IFERROR(IF(LEN(Attività_cardine[[#This Row],[Numero di giorni]])=0,\"\",IF(AND(BE$5=$E12,$F12=1),Indicatore_Attività_Cardine,\"\")),\"\")","v":""},{"$f":"IFERROR(IF(LEN(Attività_cardine[[#This Row],[Numero di giorni]])=0,\"\",IF(AND(BF$5=$E12,$F12=1),Indicatore_Attività_Cardine,\"\")),\"\")","v":""},{"$f":"IFERROR(IF(LEN(Attività_cardine[[#This Row],[Numero di giorni]])=0,\"\",IF(AND(BG$5=$E12,$F12=1),Indicatore_Attività_Cardine,\"\")),\"\")","v":""},{"$f":"IFERROR(IF(LEN(Attività_cardine[[#This Row],[Numero di giorni]])=0,\"\",IF(AND(BH$5=$E12,$F12=1),Indicatore_Attività_Cardine,\"\")),\"\")","v":""},{"$f":"IFERROR(IF(LEN(Attività_cardine[[#This Row],[Numero di giorni]])=0,\"\",IF(AND(BI$5=$E12,$F12=1),Indicatore_Attività_Cardine,\"\")),\"\")","v":""},{"$f":"IFERROR(IF(LEN(Attività_cardine[[#This Row],[Numero di giorni]])=0,\"\",IF(AND(BJ$5=$E12,$F12=1),Indicatore_Attività_Cardine,\"\")),\"\")","v":""},{"$f":"IFERROR(IF(LEN(Attività_cardine[[#This Row],[Numero di giorni]])=0,\"\",IF(AND(BK$5=$E12,$F12=1),Indicatore_Attività_Cardine,\"\")),\"\")","v":""}]
[null,"Attività 5",null,{"v":0.1,"d":"10%"},{"$f":"TODAY()+6","v":"2018-09-25"},6,null,{"$f":"IFERROR(IF(LEN(Attività_cardine[[#This Row],[Numero di giorni]])=0,\"\",IF(AND(H$5=$E13,$F13=1),Indicatore_Attività_Cardine,\"\")),\"\")","v":""},{"$f":"IFERROR(IF(LEN(Attività_cardine[[#This Row],[Numero di giorni]])=0,\"\",IF(AND(I$5=$E13,$F13=1),Indicatore_Attività_Cardine,\"\")),\"\")","v":""},{"$f":"IFERROR(IF(LEN(Attività_cardine[[#This Row],[Numero di giorni]])=0,\"\",IF(AND(J$5=$E13,$F13=1),Indicatore_Attività_Cardine,\"\")),\"\")","v":""},{"$f":"IFERROR(IF(LEN(Attività_cardine[[#This Row],[Numero di giorni]])=0,\"\",IF(AND(K$5=$E13,$F13=1),Indicatore_Attività_Cardine,\"\")),\"\")","v":""},{"$f":"IFERROR(IF(LEN(Attività_cardine[[#This Row],[Numero di giorni]])=0,\"\",IF(AND(L$5=$E13,$F13=1),Indicatore_Attività_Cardine,\"\")),\"\")","v":""},{"$f":"IFERROR(IF(LEN(Attività_cardine[[#This Row],[Numero di giorni]])=0,\"\",IF(AND(M$5=$E13,$F13=1),Indicatore_Attività_Cardine,\"\")),\"\")","v":""},{"$f":"IFERROR(IF(LEN(Attività_cardine[[#This Row],[Numero di giorni]])=0,\"\",IF(AND(N$5=$E13,$F13=1),Indicatore_Attività_Cardine,\"\")),\"\")","v":""},{"$f":"IFERROR(IF(LEN(Attività_cardine[[#This Row],[Numero di giorni]])=0,\"\",IF(AND(O$5=$E13,$F13=1),Indicatore_Attività_Cardine,\"\")),\"\")","v":""},{"$f":"IFERROR(IF(LEN(Attività_cardine[[#This Row],[Numero di giorni]])=0,\"\",IF(AND(P$5=$E13,$F13=1),Indicatore_Attività_Cardine,\"\")),\"\")","v":""},{"$f":"IFERROR(IF(LEN(Attività_cardine[[#This Row],[Numero di giorni]])=0,\"\",IF(AND(Q$5=$E13,$F13=1),Indicatore_Attività_Cardine,\"\")),\"\")","v":""},{"$f":"IFERROR(IF(LEN(Attività_cardine[[#This Row],[Numero di giorni]])=0,\"\",IF(AND(R$5=$E13,$F13=1),Indicatore_Attività_Cardine,\"\")),\"\")","v":""},{"$f":"IFERROR(IF(LEN(Attività_cardine[[#This Row],[Numero di giorni]])=0,\"\",IF(AND(S$5=$E13,$F13=1),Indicatore_Attività_Cardine,\"\")),\"\")","v":""},{"$f":"IFERROR(IF(LEN(Attività_cardine[[#This Row],[Numero di giorni]])=0,\"\",IF(AND(T$5=$E13,$F13=1),Indicatore_Attività_Cardine,\"\")),\"\")","v":""},{"$f":"IFERROR(IF(LEN(Attività_cardine[[#This Row],[Numero di giorni]])=0,\"\",IF(AND(U$5=$E13,$F13=1),Indicatore_Attività_Cardine,\"\")),\"\")","v":""},{"$f":"IFERROR(IF(LEN(Attività_cardine[[#This Row],[Numero di giorni]])=0,\"\",IF(AND(V$5=$E13,$F13=1),Indicatore_Attività_Cardine,\"\")),\"\")","v":""},{"$f":"IFERROR(IF(LEN(Attività_cardine[[#This Row],[Numero di giorni]])=0,\"\",IF(AND(W$5=$E13,$F13=1),Indicatore_Attività_Cardine,\"\")),\"\")","v":""},{"$f":"IFERROR(IF(LEN(Attività_cardine[[#This Row],[Numero di giorni]])=0,\"\",IF(AND(X$5=$E13,$F13=1),Indicatore_Attività_Cardine,\"\")),\"\")","v":""},{"$f":"IFERROR(IF(LEN(Attività_cardine[[#This Row],[Numero di giorni]])=0,\"\",IF(AND(Y$5=$E13,$F13=1),Indicatore_Attività_Cardine,\"\")),\"\")","v":""},{"$f":"IFERROR(IF(LEN(Attività_cardine[[#This Row],[Numero di giorni]])=0,\"\",IF(AND(Z$5=$E13,$F13=1),Indicatore_Attività_Cardine,\"\")),\"\")","v":""},{"$f":"IFERROR(IF(LEN(Attività_cardine[[#This Row],[Numero di giorni]])=0,\"\",IF(AND(AA$5=$E13,$F13=1),Indicatore_Attività_Cardine,\"\")),\"\")","v":""},{"$f":"IFERROR(IF(LEN(Attività_cardine[[#This Row],[Numero di giorni]])=0,\"\",IF(AND(AB$5=$E13,$F13=1),Indicatore_Attività_Cardine,\"\")),\"\")","v":""},{"$f":"IFERROR(IF(LEN(Attività_cardine[[#This Row],[Numero di giorni]])=0,\"\",IF(AND(AC$5=$E13,$F13=1),Indicatore_Attività_Cardine,\"\")),\"\")","v":""},{"$f":"IFERROR(IF(LEN(Attività_cardine[[#This Row],[Numero di giorni]])=0,\"\",IF(AND(AD$5=$E13,$F13=1),Indicatore_Attività_Cardine,\"\")),\"\")","v":""},{"$f":"IFERROR(IF(LEN(Attività_cardine[[#This Row],[Numero di giorni]])=0,\"\",IF(AND(AE$5=$E13,$F13=1),Indicatore_Attività_Cardine,\"\")),\"\")","v":""},{"$f":"IFERROR(IF(LEN(Attività_cardine[[#This Row],[Numero di giorni]])=0,\"\",IF(AND(AF$5=$E13,$F13=1),Indicatore_Attività_Cardine,\"\")),\"\")","v":""},{"$f":"IFERROR(IF(LEN(Attività_cardine[[#This Row],[Numero di giorni]])=0,\"\",IF(AND(AG$5=$E13,$F13=1),Indicatore_Attività_Cardine,\"\")),\"\")","v":""},{"$f":"IFERROR(IF(LEN(Attività_cardine[[#This Row],[Numero di giorni]])=0,\"\",IF(AND(AH$5=$E13,$F13=1),Indicatore_Attività_Cardine,\"\")),\"\")","v":""},{"$f":"IFERROR(IF(LEN(Attività_cardine[[#This Row],[Numero di giorni]])=0,\"\",IF(AND(AI$5=$E13,$F13=1),Indicatore_Attività_Cardine,\"\")),\"\")","v":""},{"$f":"IFERROR(IF(LEN(Attività_cardine[[#This Row],[Numero di giorni]])=0,\"\",IF(AND(AJ$5=$E13,$F13=1),Indicatore_Attività_Cardine,\"\")),\"\")","v":""},{"$f":"IFERROR(IF(LEN(Attività_cardine[[#This Row],[Numero di giorni]])=0,\"\",IF(AND(AK$5=$E13,$F13=1),Indicatore_Attività_Cardine,\"\")),\"\")","v":""},{"$f":"IFERROR(IF(LEN(Attività_cardine[[#This Row],[Numero di giorni]])=0,\"\",IF(AND(AL$5=$E13,$F13=1),Indicatore_Attività_Cardine,\"\")),\"\")","v":""},{"$f":"IFERROR(IF(LEN(Attività_cardine[[#This Row],[Numero di giorni]])=0,\"\",IF(AND(AM$5=$E13,$F13=1),Indicatore_Attività_Cardine,\"\")),\"\")","v":""},{"$f":"IFERROR(IF(LEN(Attività_cardine[[#This Row],[Numero di giorni]])=0,\"\",IF(AND(AN$5=$E13,$F13=1),Indicatore_Attività_Cardine,\"\")),\"\")","v":""},{"$f":"IFERROR(IF(LEN(Attività_cardine[[#This Row],[Numero di giorni]])=0,\"\",IF(AND(AO$5=$E13,$F13=1),Indicatore_Attività_Cardine,\"\")),\"\")","v":""},{"$f":"IFERROR(IF(LEN(Attività_cardine[[#This Row],[Numero di giorni]])=0,\"\",IF(AND(AP$5=$E13,$F13=1),Indicatore_Attività_Cardine,\"\")),\"\")","v":""},{"$f":"IFERROR(IF(LEN(Attività_cardine[[#This Row],[Numero di giorni]])=0,\"\",IF(AND(AQ$5=$E13,$F13=1),Indicatore_Attività_Cardine,\"\")),\"\")","v":""},{"$f":"IFERROR(IF(LEN(Attività_cardine[[#This Row],[Numero di giorni]])=0,\"\",IF(AND(AR$5=$E13,$F13=1),Indicatore_Attività_Cardine,\"\")),\"\")","v":""},{"$f":"IFERROR(IF(LEN(Attività_cardine[[#This Row],[Numero di giorni]])=0,\"\",IF(AND(AS$5=$E13,$F13=1),Indicatore_Attività_Cardine,\"\")),\"\")","v":""},{"$f":"IFERROR(IF(LEN(Attività_cardine[[#This Row],[Numero di giorni]])=0,\"\",IF(AND(AT$5=$E13,$F13=1),Indicatore_Attività_Cardine,\"\")),\"\")","v":""},{"$f":"IFERROR(IF(LEN(Attività_cardine[[#This Row],[Numero di giorni]])=0,\"\",IF(AND(AU$5=$E13,$F13=1),Indicatore_Attività_Cardine,\"\")),\"\")","v":""},{"$f":"IFERROR(IF(LEN(Attività_cardine[[#This Row],[Numero di giorni]])=0,\"\",IF(AND(AV$5=$E13,$F13=1),Indicatore_Attività_Cardine,\"\")),\"\")","v":""},{"$f":"IFERROR(IF(LEN(Attività_cardine[[#This Row],[Numero di giorni]])=0,\"\",IF(AND(AW$5=$E13,$F13=1),Indicatore_Attività_Cardine,\"\")),\"\")","v":""},{"$f":"IFERROR(IF(LEN(Attività_cardine[[#This Row],[Numero di giorni]])=0,\"\",IF(AND(AX$5=$E13,$F13=1),Indicatore_Attività_Cardine,\"\")),\"\")","v":""},{"$f":"IFERROR(IF(LEN(Attività_cardine[[#This Row],[Numero di giorni]])=0,\"\",IF(AND(AY$5=$E13,$F13=1),Indicatore_Attività_Cardine,\"\")),\"\")","v":""},{"$f":"IFERROR(IF(LEN(Attività_cardine[[#This Row],[Numero di giorni]])=0,\"\",IF(AND(AZ$5=$E13,$F13=1),Indicatore_Attività_Cardine,\"\")),\"\")","v":""},{"$f":"IFERROR(IF(LEN(Attività_cardine[[#This Row],[Numero di giorni]])=0,\"\",IF(AND(BA$5=$E13,$F13=1),Indicatore_Attività_Cardine,\"\")),\"\")","v":""},{"$f":"IFERROR(IF(LEN(Attività_cardine[[#This Row],[Numero di giorni]])=0,\"\",IF(AND(BB$5=$E13,$F13=1),Indicatore_Attività_Cardine,\"\")),\"\")","v":""},{"$f":"IFERROR(IF(LEN(Attività_cardine[[#This Row],[Numero di giorni]])=0,\"\",IF(AND(BC$5=$E13,$F13=1),Indicatore_Attività_Cardine,\"\")),\"\")","v":""},{"$f":"IFERROR(IF(LEN(Attività_cardine[[#This Row],[Numero di giorni]])=0,\"\",IF(AND(BD$5=$E13,$F13=1),Indicatore_Attività_Cardine,\"\")),\"\")","v":""},{"$f":"IFERROR(IF(LEN(Attività_cardine[[#This Row],[Numero di giorni]])=0,\"\",IF(AND(BE$5=$E13,$F13=1),Indicatore_Attività_Cardine,\"\")),\"\")","v":""},{"$f":"IFERROR(IF(LEN(Attività_cardine[[#This Row],[Numero di giorni]])=0,\"\",IF(AND(BF$5=$E13,$F13=1),Indicatore_Attività_Cardine,\"\")),\"\")","v":""},{"$f":"IFERROR(IF(LEN(Attività_cardine[[#This Row],[Numero di giorni]])=0,\"\",IF(AND(BG$5=$E13,$F13=1),Indicatore_Attività_Cardine,\"\")),\"\")","v":""},{"$f":"IFERROR(IF(LEN(Attività_cardine[[#This Row],[Numero di giorni]])=0,\"\",IF(AND(BH$5=$E13,$F13=1),Indicatore_Attività_Cardine,\"\")),\"\")","v":""},{"$f":"IFERROR(IF(LEN(Attività_cardine[[#This Row],[Numero di giorni]])=0,\"\",IF(AND(BI$5=$E13,$F13=1),Indicatore_Attività_Cardine,\"\")),\"\")","v":""},{"$f":"IFERROR(IF(LEN(Attività_cardine[[#This Row],[Numero di giorni]])=0,\"\",IF(AND(BJ$5=$E13,$F13=1),Indicatore_Attività_Cardine,\"\")),\"\")","v":""},{"$f":"IFERROR(IF(LEN(Attività_cardine[[#This Row],[Numero di giorni]])=0,\"\",IF(AND(BK$5=$E13,$F13=1),Indicatore_Attività_Cardine,\"\")),\"\")","v":""}]
[null,"Titolo 2",{"$nulls":5},{"$f":"IFERROR(IF(LEN(Attività_cardine[[#This Row],[Numero di giorni]])=0,\"\",IF(AND(H$5=$E14,$F14=1),Indicatore_Attività_Cardine,\"\")),\"\")","v":""},{"$f":"IFERROR(IF(LEN(Attività_cardine[[#This Row],[Numero di giorni]])=0,\"\",IF(AND(I$5=$E14,$F14=1),Indicatore_Attività_Cardine,\"\")),\"\")","v":""},{"$f":"IFERROR(IF(LEN(Attività_cardine[[#This Row],[Numero di giorni]])=0,\"\",IF(AND(J$5=$E14,$F14=1),Indicatore_Attività_Cardine,\"\")),\"\")","v":""},{"$f":"IFERROR(IF(LEN(Attività_cardine[[#This Row],[Numero di giorni]])=0,\"\",IF(AND(K$5=$E14,$F14=1),Indicatore_Attività_Cardine,\"\")),\"\")","v":""},{"$f":"IFERROR(IF(LEN(Attività_cardine[[#This Row],[Numero di giorni]])=0,\"\",IF(AND(L$5=$E14,$F14=1),Indicatore_Attività_Cardine,\"\")),\"\")","v":""},{"$f":"IFERROR(IF(LEN(Attività_cardine[[#This Row],[Numero di giorni]])=0,\"\",IF(AND(M$5=$E14,$F14=1),Indicatore_Attività_Cardine,\"\")),\"\")","v":""},{"$f":"IFERROR(IF(LEN(Attività_cardine[[#This Row],[Numero di giorni]])=0,\"\",IF(AND(N$5=$E14,$F14=1),Indicatore_Attività_Cardine,\"\")),\"\")","v":""},{"$f":"IFERROR(IF(LEN(Attività_cardine[[#This Row],[Numero di giorni]])=0,\"\",IF(AND(O$5=$E14,$F14=1),Indicatore_Attività_Cardine,\"\")),\"\")","v":""},{"$f":"IFERROR(IF(LEN(Attività_cardine[[#This Row],[Numero di giorni]])=0,\"\",IF(AND(P$5=$E14,$F14=1),Indicatore_Attività_Cardine,\"\")),\"\")","v":""},{"$f":"IFERROR(IF(LEN(Attività_cardine[[#This Row],[Numero di giorni]])=0,\"\",IF(AND(Q$5=$E14,$F14=1),Indicatore_Attività_Cardine,\"\")),\"\")","v":""},{"$f":"IFERROR(IF(LEN(Attività_cardine[[#This Row],[Numero di giorni]])=0,\"\",IF(AND(R$5=$E14,$F14=1),Indicatore_Attività_Cardine,\"\")),\"\")","v":""},{"$f":"IFERROR(IF(LEN(Attività_cardine[[#This Row],[Numero di giorni]])=0,\"\",IF(AND(S$5=$E14,$F14=1),Indicatore_Attività_Cardine,\"\")),\"\")","v":""},{"$f":"IFERROR(IF(LEN(Attività_cardine[[#This Row],[Numero di giorni]])=0,\"\",IF(AND(T$5=$E14,$F14=1),Indicatore_Attività_Cardine,\"\")),\"\")","v":""},{"$f":"IFERROR(IF(LEN(Attività_cardine[[#This Row],[Numero di giorni]])=0,\"\",IF(AND(U$5=$E14,$F14=1),Indicatore_Attività_Cardine,\"\")),\"\")","v":""},{"$f":"IFERROR(IF(LEN(Attività_cardine[[#This Row],[Numero di giorni]])=0,\"\",IF(AND(V$5=$E14,$F14=1),Indicatore_Attività_Cardine,\"\")),\"\")","v":""},{"$f":"IFERROR(IF(LEN(Attività_cardine[[#This Row],[Numero di giorni]])=0,\"\",IF(AND(W$5=$E14,$F14=1),Indicatore_Attività_Cardine,\"\")),\"\")","v":""},{"$f":"IFERROR(IF(LEN(Attività_cardine[[#This Row],[Numero di giorni]])=0,\"\",IF(AND(X$5=$E14,$F14=1),Indicatore_Attività_Cardine,\"\")),\"\")","v":""},{"$f":"IFERROR(IF(LEN(Attività_cardine[[#This Row],[Numero di giorni]])=0,\"\",IF(AND(Y$5=$E14,$F14=1),Indicatore_Attività_Cardine,\"\")),\"\")","v":""},{"$f":"IFERROR(IF(LEN(Attività_cardine[[#This Row],[Numero di giorni]])=0,\"\",IF(AND(Z$5=$E14,$F14=1),Indicatore_Attività_Cardine,\"\")),\"\")","v":""},{"$f":"IFERROR(IF(LEN(Attività_cardine[[#This Row],[Numero di giorni]])=0,\"\",IF(AND(AA$5=$E14,$F14=1),Indicatore_Attività_Cardine,\"\")),\"\")","v":""},{"$f":"IFERROR(IF(LEN(Attività_cardine[[#This Row],[Numero di giorni]])=0,\"\",IF(AND(AB$5=$E14,$F14=1),Indicatore_Attività_Cardine,\"\")),\"\")","v":""},{"$f":"IFERROR(IF(LEN(Attività_cardine[[#This Row],[Numero di giorni]])=0,\"\",IF(AND(AC$5=$E14,$F14=1),Indicatore_Attività_Cardine,\"\")),\"\")","v":""},{"$f":"IFERROR(IF(LEN(Attività_cardine[[#This Row],[Numero di giorni]])=0,\"\",IF(AND(AD$5=$E14,$F14=1),Indicatore_Attività_Cardine,\"\")),\"\")","v":""},{"$f":"IFERROR(IF(LEN(Attività_cardine[[#This Row],[Numero di giorni]])=0,\"\",IF(AND(AE$5=$E14,$F14=1),Indicatore_Attività_Cardine,\"\")),\"\")","v":""},{"$f":"IFERROR(IF(LEN(Attività_cardine[[#This Row],[Numero di giorni]])=0,\"\",IF(AND(AF$5=$E14,$F14=1),Indicatore_Attività_Cardine,\"\")),\"\")","v":""},{"$f":"IFERROR(IF(LEN(Attività_cardine[[#This Row],[Numero di giorni]])=0,\"\",IF(AND(AG$5=$E14,$F14=1),Indicatore_Attività_Cardine,\"\")),\"\")","v":""},{"$f":"IFERROR(IF(LEN(Attività_cardine[[#This Row],[Numero di giorni]])=0,\"\",IF(AND(AH$5=$E14,$F14=1),Indicatore_Attività_Cardine,\"\")),\"\")","v":""},{"$f":"IFERROR(IF(LEN(Attività_cardine[[#This Row],[Numero di giorni]])=0,\"\",IF(AND(AI$5=$E14,$F14=1),Indicatore_Attività_Cardine,\"\")),\"\")","v":""},{"$f":"IFERROR(IF(LEN(Attività_cardine[[#This Row],[Numero di giorni]])=0,\"\",IF(AND(AJ$5=$E14,$F14=1),Indicatore_Attività_Cardine,\"\")),\"\")","v":""},{"$f":"IFERROR(IF(LEN(Attività_cardine[[#This Row],[Numero di giorni]])=0,\"\",IF(AND(AK$5=$E14,$F14=1),Indicatore_Attività_Cardine,\"\")),\"\")","v":""},{"$f":"IFERROR(IF(LEN(Attività_cardine[[#This Row],[Numero di giorni]])=0,\"\",IF(AND(AL$5=$E14,$F14=1),Indicatore_Attività_Cardine,\"\")),\"\")","v":""},{"$f":"IFERROR(IF(LEN(Attività_cardine[[#This Row],[Numero di giorni]])=0,\"\",IF(AND(AM$5=$E14,$F14=1),Indicatore_Attività_Cardine,\"\")),\"\")","v":""},{"$f":"IFERROR(IF(LEN(Attività_cardine[[#This Row],[Numero di giorni]])=0,\"\",IF(AND(AN$5=$E14,$F14=1),Indicatore_Attività_Cardine,\"\")),\"\")","v":""},{"$f":"IFERROR(IF(LEN(Attività_cardine[[#This Row],[Numero di giorni]])=0,\"\",IF(AND(AO$5=$E14,$F14=1),Indicatore_Attività_Cardine,\"\")),\"\")","v":""},{"$f":"IFERROR(IF(LEN(Attività_cardine[[#This Row],[Numero di giorni]])=0,\"\",IF(AND(AP$5=$E14,$F14=1),Indicatore_Attività_Cardine,\"\")),\"\")","v":""},{"$f":"IFERROR(IF(LEN(Attività_cardine[[#This Row],[Numero di giorni]])=0,\"\",IF(AND(AQ$5=$E14,$F14=1),Indicatore_Attività_Cardine,\"\")),\"\")","v":""},{"$f":"IFERROR(IF(LEN(Attività_cardine[[#This Row],[Numero di giorni]])=0,\"\",IF(AND(AR$5=$E14,$F14=1),Indicatore_Attività_Cardine,\"\")),\"\")","v":""},{"$f":"IFERROR(IF(LEN(Attività_cardine[[#This Row],[Numero di giorni]])=0,\"\",IF(AND(AS$5=$E14,$F14=1),Indicatore_Attività_Cardine,\"\")),\"\")","v":""},{"$f":"IFERROR(IF(LEN(Attività_cardine[[#This Row],[Numero di giorni]])=0,\"\",IF(AND(AT$5=$E14,$F14=1),Indicatore_Attività_Cardine,\"\")),\"\")","v":""},{"$f":"IFERROR(IF(LEN(Attività_cardine[[#This Row],[Numero di giorni]])=0,\"\",IF(AND(AU$5=$E14,$F14=1),Indicatore_Attività_Cardine,\"\")),\"\")","v":""},{"$f":"IFERROR(IF(LEN(Attività_cardine[[#This Row],[Numero di giorni]])=0,\"\",IF(AND(AV$5=$E14,$F14=1),Indicatore_Attività_Cardine,\"\")),\"\")","v":""},{"$f":"IFERROR(IF(LEN(Attività_cardine[[#This Row],[Numero di giorni]])=0,\"\",IF(AND(AW$5=$E14,$F14=1),Indicatore_Attività_Cardine,\"\")),\"\")","v":""},{"$f":"IFERROR(IF(LEN(Attività_cardine[[#This Row],[Numero di giorni]])=0,\"\",IF(AND(AX$5=$E14,$F14=1),Indicatore_Attività_Cardine,\"\")),\"\")","v":""},{"$f":"IFERROR(IF(LEN(Attività_cardine[[#This Row],[Numero di giorni]])=0,\"\",IF(AND(AY$5=$E14,$F14=1),Indicatore_Attività_Cardine,\"\")),\"\")","v":""},{"$f":"IFERROR(IF(LEN(Attività_cardine[[#This Row],[Numero di giorni]])=0,\"\",IF(AND(AZ$5=$E14,$F14=1),Indicatore_Attività_Cardine,\"\")),\"\")","v":""},{"$f":"IFERROR(IF(LEN(Attività_cardine[[#This Row],[Numero di giorni]])=0,\"\",IF(AND(BA$5=$E14,$F14=1),Indicatore_Attività_Cardine,\"\")),\"\")","v":""},{"$f":"IFERROR(IF(LEN(Attività_cardine[[#This Row],[Numero di giorni]])=0,\"\",IF(AND(BB$5=$E14,$F14=1),Indicatore_Attività_Cardine,\"\")),\"\")","v":""},{"$f":"IFERROR(IF(LEN(Attività_cardine[[#This Row],[Numero di giorni]])=0,\"\",IF(AND(BC$5=$E14,$F14=1),Indicatore_Attività_Cardine,\"\")),\"\")","v":""},{"$f":"IFERROR(IF(LEN(Attività_cardine[[#This Row],[Numero di giorni]])=0,\"\",IF(AND(BD$5=$E14,$F14=1),Indicatore_Attività_Cardine,\"\")),\"\")","v":""},{"$f":"IFERROR(IF(LEN(Attività_cardine[[#This Row],[Numero di giorni]])=0,\"\",IF(AND(BE$5=$E14,$F14=1),Indicatore_Attività_Cardine,\"\")),\"\")","v":""},{"$f":"IFERROR(IF(LEN(Attività_cardine[[#This Row],[Numero di giorni]])=0,\"\",IF(AND(BF$5=$E14,$F14=1),Indicatore_Attività_Cardine,\"\")),\"\")","v":""},{"$f":"IFERROR(IF(LEN(Attività_cardine[[#This Row],[Numero di giorni]])=0,\"\",IF(AND(BG$5=$E14,$F14=1),Indicatore_Attività_Cardine,\"\")),\"\")","v":""},{"$f":"IFERROR(IF(LEN(Attività_cardine[[#This Row],[Numero di giorni]])=0,\"\",IF(AND(BH$5=$E14,$F14=1),Indicatore_Attività_Cardine,\"\")),\"\")","v":""},{"$f":"IFERROR(IF(LEN(Attività_cardine[[#This Row],[Numero di giorni]])=0,\"\",IF(AND(BI$5=$E14,$F14=1),Indicatore_Attività_Cardine,\"\")),\"\")","v":""},{"$f":"IFERROR(IF(LEN(Attività_cardine[[#This Row],[Numero di giorni]])=0,\"\",IF(AND(BJ$5=$E14,$F14=1),Indicatore_Attività_Cardine,\"\")),\"\")","v":""},{"$f":"IFERROR(IF(LEN(Attività_cardine[[#This Row],[Numero di giorni]])=0,\"\",IF(AND(BK$5=$E14,$F14=1),Indicatore_Attività_Cardine,\"\")),\"\")","v":""}]
[null,"Attività 1",null,{"v":0.6,"d":"60%"},{"$f":"TODAY()+6","v":"2018-09-25"},13,null,{"$f":"IFERROR(IF(LEN(Attività_cardine[[#This Row],[Numero di giorni]])=0,\"\",IF(AND(H$5=$E15,$F15=1),Indicatore_Attività_Cardine,\"\")),\"\")","v":""},{"$f":"IFERROR(IF(LEN(Attività_cardine[[#This Row],[Numero di giorni]])=0,\"\",IF(AND(I$5=$E15,$F15=1),Indicatore_Attività_Cardine,\"\")),\"\")","v":""},{"$f":"IFERROR(IF(LEN(Attività_cardine[[#This Row],[Numero di giorni]])=0,\"\",IF(AND(J$5=$E15,$F15=1),Indicatore_Attività_Cardine,\"\")),\"\")","v":""},{"$f":"IFERROR(IF(LEN(Attività_cardine[[#This Row],[Numero di giorni]])=0,\"\",IF(AND(K$5=$E15,$F15=1),Indicatore_Attività_Cardine,\"\")),\"\")","v":""},{"$f":"IFERROR(IF(LEN(Attività_cardine[[#This Row],[Numero di giorni]])=0,\"\",IF(AND(L$5=$E15,$F15=1),Indicatore_Attività_Cardine,\"\")),\"\")","v":""},{"$f":"IFERROR(IF(LEN(Attività_cardine[[#This Row],[Numero di giorni]])=0,\"\",IF(AND(M$5=$E15,$F15=1),Indicatore_Attività_Cardine,\"\")),\"\")","v":""},{"$f":"IFERROR(IF(LEN(Attività_cardine[[#This Row],[Numero di giorni]])=0,\"\",IF(AND(N$5=$E15,$F15=1),Indicatore_Attività_Cardine,\"\")),\"\")","v":""},{"$f":"IFERROR(IF(LEN(Attività_cardine[[#This Row],[Numero di giorni]])=0,\"\",IF(AND(O$5=$E15,$F15=1),Indicatore_Attività_Cardine,\"\")),\"\")","v":""},{"$f":"IFERROR(IF(LEN(Attività_cardine[[#This Row],[Numero di giorni]])=0,\"\",IF(AND(P$5=$E15,$F15=1),Indicatore_Attività_Cardine,\"\")),\"\")","v":""},{"$f":"IFERROR(IF(LEN(Attività_cardine[[#This Row],[Numero di giorni]])=0,\"\",IF(AND(Q$5=$E15,$F15=1),Indicatore_Attività_Cardine,\"\")),\"\")","v":""},{"$f":"IFERROR(IF(LEN(Attività_cardine[[#This Row],[Numero di giorni]])=0,\"\",IF(AND(R$5=$E15,$F15=1),Indicatore_Attività_Cardine,\"\")),\"\")","v":""},{"$f":"IFERROR(IF(LEN(Attività_cardine[[#This Row],[Numero di giorni]])=0,\"\",IF(AND(S$5=$E15,$F15=1),Indicatore_Attività_Cardine,\"\")),\"\")","v":""},{"$f":"IFERROR(IF(LEN(Attività_cardine[[#This Row],[Numero di giorni]])=0,\"\",IF(AND(T$5=$E15,$F15=1),Indicatore_Attività_Cardine,\"\")),\"\")","v":""},{"$f":"IFERROR(IF(LEN(Attività_cardine[[#This Row],[Numero di giorni]])=0,\"\",IF(AND(U$5=$E15,$F15=1),Indicatore_Attività_Cardine,\"\")),\"\")","v":""},{"$f":"IFERROR(IF(LEN(Attività_cardine[[#This Row],[Numero di giorni]])=0,\"\",IF(AND(V$5=$E15,$F15=1),Indicatore_Attività_Cardine,\"\")),\"\")","v":""},{"$f":"IFERROR(IF(LEN(Attività_cardine[[#This Row],[Numero di giorni]])=0,\"\",IF(AND(W$5=$E15,$F15=1),Indicatore_Attività_Cardine,\"\")),\"\")","v":""},{"$f":"IFERROR(IF(LEN(Attività_cardine[[#This Row],[Numero di giorni]])=0,\"\",IF(AND(X$5=$E15,$F15=1),Indicatore_Attività_Cardine,\"\")),\"\")","v":""},{"$f":"IFERROR(IF(LEN(Attività_cardine[[#This Row],[Numero di giorni]])=0,\"\",IF(AND(Y$5=$E15,$F15=1),Indicatore_Attività_Cardine,\"\")),\"\")","v":""},{"$f":"IFERROR(IF(LEN(Attività_cardine[[#This Row],[Numero di giorni]])=0,\"\",IF(AND(Z$5=$E15,$F15=1),Indicatore_Attività_Cardine,\"\")),\"\")","v":""},{"$f":"IFERROR(IF(LEN(Attività_cardine[[#This Row],[Numero di giorni]])=0,\"\",IF(AND(AA$5=$E15,$F15=1),Indicatore_Attività_Cardine,\"\")),\"\")","v":""},{"$f":"IFERROR(IF(LEN(Attività_cardine[[#This Row],[Numero di giorni]])=0,\"\",IF(AND(AB$5=$E15,$F15=1),Indicatore_Attività_Cardine,\"\")),\"\")","v":""},{"$f":"IFERROR(IF(LEN(Attività_cardine[[#This Row],[Numero di giorni]])=0,\"\",IF(AND(AC$5=$E15,$F15=1),Indicatore_Attività_Cardine,\"\")),\"\")","v":""},{"$f":"IFERROR(IF(LEN(Attività_cardine[[#This Row],[Numero di giorni]])=0,\"\",IF(AND(AD$5=$E15,$F15=1),Indicatore_Attività_Cardine,\"\")),\"\")","v":""},{"$f":"IFERROR(IF(LEN(Attività_cardine[[#This Row],[Numero di giorni]])=0,\"\",IF(AND(AE$5=$E15,$F15=1),Indicatore_Attività_Cardine,\"\")),\"\")","v":""},{"$f":"IFERROR(IF(LEN(Attività_cardine[[#This Row],[Numero di giorni]])=0,\"\",IF(AND(AF$5=$E15,$F15=1),Indicatore_Attività_Cardine,\"\")),\"\")","v":""},{"$f":"IFERROR(IF(LEN(Attività_cardine[[#This Row],[Numero di giorni]])=0,\"\",IF(AND(AG$5=$E15,$F15=1),Indicatore_Attività_Cardine,\"\")),\"\")","v":""},{"$f":"IFERROR(IF(LEN(Attività_cardine[[#This Row],[Numero di giorni]])=0,\"\",IF(AND(AH$5=$E15,$F15=1),Indicatore_Attività_Cardine,\"\")),\"\")","v":""},{"$f":"IFERROR(IF(LEN(Attività_cardine[[#This Row],[Numero di giorni]])=0,\"\",IF(AND(AI$5=$E15,$F15=1),Indicatore_Attività_Cardine,\"\")),\"\")","v":""},{"$f":"IFERROR(IF(LEN(Attività_cardine[[#This Row],[Numero di giorni]])=0,\"\",IF(AND(AJ$5=$E15,$F15=1),Indicatore_Attività_Cardine,\"\")),\"\")","v":""},{"$f":"IFERROR(IF(LEN(Attività_cardine[[#This Row],[Numero di giorni]])=0,\"\",IF(AND(AK$5=$E15,$F15=1),Indicatore_Attività_Cardine,\"\")),\"\")","v":""},{"$f":"IFERROR(IF(LEN(Attività_cardine[[#This Row],[Numero di giorni]])=0,\"\",IF(AND(AL$5=$E15,$F15=1),Indicatore_Attività_Cardine,\"\")),\"\")","v":""},{"$f":"IFERROR(IF(LEN(Attività_cardine[[#This Row],[Numero di giorni]])=0,\"\",IF(AND(AM$5=$E15,$F15=1),Indicatore_Attività_Cardine,\"\")),\"\")","v":""},{"$f":"IFERROR(IF(LEN(Attività_cardine[[#This Row],[Numero di giorni]])=0,\"\",IF(AND(AN$5=$E15,$F15=1),Indicatore_Attività_Cardine,\"\")),\"\")","v":""},{"$f":"IFERROR(IF(LEN(Attività_cardine[[#This Row],[Numero di giorni]])=0,\"\",IF(AND(AO$5=$E15,$F15=1),Indicatore_Attività_Cardine,\"\")),\"\")","v":""},{"$f":"IFERROR(IF(LEN(Attività_cardine[[#This Row],[Numero di giorni]])=0,\"\",IF(AND(AP$5=$E15,$F15=1),Indicatore_Attività_Cardine,\"\")),\"\")","v":""},{"$f":"IFERROR(IF(LEN(Attività_cardine[[#This Row],[Numero di giorni]])=0,\"\",IF(AND(AQ$5=$E15,$F15=1),Indicatore_Attività_Cardine,\"\")),\"\")","v":""},{"$f":"IFERROR(IF(LEN(Attività_cardine[[#This Row],[Numero di giorni]])=0,\"\",IF(AND(AR$5=$E15,$F15=1),Indicatore_Attività_Cardine,\"\")),\"\")","v":""},{"$f":"IFERROR(IF(LEN(Attività_cardine[[#This Row],[Numero di giorni]])=0,\"\",IF(AND(AS$5=$E15,$F15=1),Indicatore_Attività_Cardine,\"\")),\"\")","v":""},{"$f":"IFERROR(IF(LEN(Attività_cardine[[#This Row],[Numero di giorni]])=0,\"\",IF(AND(AT$5=$E15,$F15=1),Indicatore_Attività_Cardine,\"\")),\"\")","v":""},{"$f":"IFERROR(IF(LEN(Attività_cardine[[#This Row],[Numero di giorni]])=0,\"\",IF(AND(AU$5=$E15,$F15=1),Indicatore_Attività_Cardine,\"\")),\"\")","v":""},{"$f":"IFERROR(IF(LEN(Attività_cardine[[#This Row],[Numero di giorni]])=0,\"\",IF(AND(AV$5=$E15,$F15=1),Indicatore_Attività_Cardine,\"\")),\"\")","v":""},{"$f":"IFERROR(IF(LEN(Attività_cardine[[#This Row],[Numero di giorni]])=0,\"\",IF(AND(AW$5=$E15,$F15=1),Indicatore_Attività_Cardine,\"\")),\"\")","v":""},{"$f":"IFERROR(IF(LEN(Attività_cardine[[#This Row],[Numero di giorni]])=0,\"\",IF(AND(AX$5=$E15,$F15=1),Indicatore_Attività_Cardine,\"\")),\"\")","v":""},{"$f":"IFERROR(IF(LEN(Attività_cardine[[#This Row],[Numero di giorni]])=0,\"\",IF(AND(AY$5=$E15,$F15=1),Indicatore_Attività_Cardine,\"\")),\"\")","v":""},{"$f":"IFERROR(IF(LEN(Attività_cardine[[#This Row],[Numero di giorni]])=0,\"\",IF(AND(AZ$5=$E15,$F15=1),Indicatore_Attività_Cardine,\"\")),\"\")","v":""},{"$f":"IFERROR(IF(LEN(Attività_cardine[[#This Row],[Numero di giorni]])=0,\"\",IF(AND(BA$5=$E15,$F15=1),Indicatore_Attività_Cardine,\"\")),\"\")","v":""},{"$f":"IFERROR(IF(LEN(Attività_cardine[[#This Row],[Numero di giorni]])=0,\"\",IF(AND(BB$5=$E15,$F15=1),Indicatore_Attività_Cardine,\"\")),\"\")","v":""},{"$f":"IFERROR(IF(LEN(Attività_cardine[[#This Row],[Numero di giorni]])=0,\"\",IF(AND(BC$5=$E15,$F15=1),Indicatore_Attività_Cardine,\"\")),\"\")","v":""},{"$f":"IFERROR(IF(LEN(Attività_cardine[[#This Row],[Numero di giorni]])=0,\"\",IF(AND(BD$5=$E15,$F15=1),Indicatore_Attività_Cardine,\"\")),\"\")","v":""},{"$f":"IFERROR(IF(LEN(Attività_cardine[[#This Row],[Numero di giorni]])=0,\"\",IF(AND(BE$5=$E15,$F15=1),Indicatore_Attività_Cardine,\"\")),\"\")","v":""},{"$f":"IFERROR(IF(LEN(Attività_cardine[[#This Row],[Numero di giorni]])=0,\"\",IF(AND(BF$5=$E15,$F15=1),Indicatore_Attività_Cardine,\"\")),\"\")","v":""},{"$f":"IFERROR(IF(LEN(Attività_cardine[[#This Row],[Numero di giorni]])=0,\"\",IF(AND(BG$5=$E15,$F15=1),Indicatore_Attività_Cardine,\"\")),\"\")","v":""},{"$f":"IFERROR(IF(LEN(Attività_cardine[[#This Row],[Numero di giorni]])=0,\"\",IF(AND(BH$5=$E15,$F15=1),Indicatore_Attività_Cardine,\"\")),\"\")","v":""},{"$f":"IFERROR(IF(LEN(Attività_cardine[[#This Row],[Numero di giorni]])=0,\"\",IF(AND(BI$5=$E15,$F15=1),Indicatore_Attività_Cardine,\"\")),\"\")","v":""},{"$f":"IFERROR(IF(LEN(Attività_cardine[[#This Row],[Numero di giorni]])=0,\"\",IF(AND(BJ$5=$E15,$F15=1),Indicatore_Attività_Cardine,\"\")),\"\")","v":""},{"$f":"IFERROR(IF(LEN(Attività_cardine[[#This Row],[Numero di giorni]])=0,\"\",IF(AND(BK$5=$E15,$F15=1),Indicatore_Attività_Cardine,\"\")),\"\")","v":""}]
[null,"Attività 2",null,{"v":0.5,"d":"50%"},{"$f":"TODAY()+7","v":"2018-09-26"},9,null,{"$f":"IFERROR(IF(LEN(Attività_cardine[[#This Row],[Numero di giorni]])=0,\"\",IF(AND(H$5=$E16,$F16=1),Indicatore_Attività_Cardine,\"\")),\"\")","v":""},{"$f":"IFERROR(IF(LEN(Attività_cardine[[#This Row],[Numero di giorni]])=0,\"\",IF(AND(I$5=$E16,$F16=1),Indicatore_Attività_Cardine,\"\")),\"\")","v":""},{"$f":"IFERROR(IF(LEN(Attività_cardine[[#This Row],[Numero di giorni]])=0,\"\",IF(AND(J$5=$E16,$F16=1),Indicatore_Attività_Cardine,\"\")),\"\")","v":""},{"$f":"IFERROR(IF(LEN(Attività_cardine[[#This Row],[Numero di giorni]])=0,\"\",IF(AND(K$5=$E16,$F16=1),Indicatore_Attività_Cardine,\"\")),\"\")","v":""},{"$f":"IFERROR(IF(LEN(Attività_cardine[[#This Row],[Numero di giorni]])=0,\"\",IF(AND(L$5=$E16,$F16=1),Indicatore_Attività_Cardine,\"\")),\"\")","v":""},{"$f":"IFERROR(IF(LEN(Attività_cardine[[#This Row],[Numero di giorni]])=0,\"\",IF(AND(M$5=$E16,$F16=1),Indicatore_Attività_Cardine,\"\")),\"\")","v":""},{"$f":"IFERROR(IF(LEN(Attività_cardine[[#This Row],[Numero di giorni]])=0,\"\",IF(AND(N$5=$E16,$F16=1),Indicatore_Attività_Cardine,\"\")),\"\")","v":""},{"$f":"IFERROR(IF(LEN(Attività_cardine[[#This Row],[Numero di giorni]])=0,\"\",IF(AND(O$5=$E16,$F16=1),Indicatore_Attività_Cardine,\"\")),\"\")","v":""},{"$f":"IFERROR(IF(LEN(Attività_cardine[[#This Row],[Numero di giorni]])=0,\"\",IF(AND(P$5=$E16,$F16=1),Indicatore_Attività_Cardine,\"\")),\"\")","v":""},{"$f":"IFERROR(IF(LEN(Attività_cardine[[#This Row],[Numero di giorni]])=0,\"\",IF(AND(Q$5=$E16,$F16=1),Indicatore_Attività_Cardine,\"\")),\"\")","v":""},{"$f":"IFERROR(IF(LEN(Attività_cardine[[#This Row],[Numero di giorni]])=0,\"\",IF(AND(R$5=$E16,$F16=1),Indicatore_Attività_Cardine,\"\")),\"\")","v":""},{"$f":"IFERROR(IF(LEN(Attività_cardine[[#This Row],[Numero di giorni]])=0,\"\",IF(AND(S$5=$E16,$F16=1),Indicatore_Attività_Cardine,\"\")),\"\")","v":""},{"$f":"IFERROR(IF(LEN(Attività_cardine[[#This Row],[Numero di giorni]])=0,\"\",IF(AND(T$5=$E16,$F16=1),Indicatore_Attività_Cardine,\"\")),\"\")","v":""},{"$f":"IFERROR(IF(LEN(Attività_cardine[[#This Row],[Numero di giorni]])=0,\"\",IF(AND(U$5=$E16,$F16=1),Indicatore_Attività_Cardine,\"\")),\"\")","v":""},{"$f":"IFERROR(IF(LEN(Attività_cardine[[#This Row],[Numero di giorni]])=0,\"\",IF(AND(V$5=$E16,$F16=1),Indicatore_Attività_Cardine,\"\")),\"\")","v":""},{"$f":"IFERROR(IF(LEN(Attività_cardine[[#This Row],[Numero di giorni]])=0,\"\",IF(AND(W$5=$E16,$F16=1),Indicatore_Attività_Cardine,\"\")),\"\")","v":""},{"$f":"IFERROR(IF(LEN(Attività_cardine[[#This Row],[Numero di giorni]])=0,\"\",IF(AND(X$5=$E16,$F16=1),Indicatore_Attività_Cardine,\"\")),\"\")","v":""},{"$f":"IFERROR(IF(LEN(Attività_cardine[[#This Row],[Numero di giorni]])=0,\"\",IF(AND(Y$5=$E16,$F16=1),Indicatore_Attività_Cardine,\"\")),\"\")","v":""},{"$f":"IFERROR(IF(LEN(Attività_cardine[[#This Row],[Numero di giorni]])=0,\"\",IF(AND(Z$5=$E16,$F16=1),Indicatore_Attività_Cardine,\"\")),\"\")","v":""},{"$f":"IFERROR(IF(LEN(Attività_cardine[[#This Row],[Numero di giorni]])=0,\"\",IF(AND(AA$5=$E16,$F16=1),Indicatore_Attività_Cardine,\"\")),\"\")","v":""},{"$f":"IFERROR(IF(LEN(Attività_cardine[[#This Row],[Numero di giorni]])=0,\"\",IF(AND(AB$5=$E16,$F16=1),Indicatore_Attività_Cardine,\"\")),\"\")","v":""},{"$f":"IFERROR(IF(LEN(Attività_cardine[[#This Row],[Numero di giorni]])=0,\"\",IF(AND(AC$5=$E16,$F16=1),Indicatore_Attività_Cardine,\"\")),\"\")","v":""},{"$f":"IFERROR(IF(LEN(Attività_cardine[[#This Row],[Numero di giorni]])=0,\"\",IF(AND(AD$5=$E16,$F16=1),Indicatore_Attività_Cardine,\"\")),\"\")","v":""},{"$f":"IFERROR(IF(LEN(Attività_cardine[[#This Row],[Numero di giorni]])=0,\"\",IF(AND(AE$5=$E16,$F16=1),Indicatore_Attività_Cardine,\"\")),\"\")","v":""},{"$f":"IFERROR(IF(LEN(Attività_cardine[[#This Row],[Numero di giorni]])=0,\"\",IF(AND(AF$5=$E16,$F16=1),Indicatore_Attività_Cardine,\"\")),\"\")","v":""},{"$f":"IFERROR(IF(LEN(Attività_cardine[[#This Row],[Numero di giorni]])=0,\"\",IF(AND(AG$5=$E16,$F16=1),Indicatore_Attività_Cardine,\"\")),\"\")","v":""},{"$f":"IFERROR(IF(LEN(Attività_cardine[[#This Row],[Numero di giorni]])=0,\"\",IF(AND(AH$5=$E16,$F16=1),Indicatore_Attività_Cardine,\"\")),\"\")","v":""},{"$f":"IFERROR(IF(LEN(Attività_cardine[[#This Row],[Numero di giorni]])=0,\"\",IF(AND(AI$5=$E16,$F16=1),Indicatore_Attività_Cardine,\"\")),\"\")","v":""},{"$f":"IFERROR(IF(LEN(Attività_cardine[[#This Row],[Numero di giorni]])=0,\"\",IF(AND(AJ$5=$E16,$F16=1),Indicatore_Attività_Cardine,\"\")),\"\")","v":""},{"$f":"IFERROR(IF(LEN(Attività_cardine[[#This Row],[Numero di giorni]])=0,\"\",IF(AND(AK$5=$E16,$F16=1),Indicatore_Attività_Cardine,\"\")),\"\")","v":""},{"$f":"IFERROR(IF(LEN(Attività_cardine[[#This Row],[Numero di giorni]])=0,\"\",IF(AND(AL$5=$E16,$F16=1),Indicatore_Attività_Cardine,\"\")),\"\")","v":""},{"$f":"IFERROR(IF(LEN(Attività_cardine[[#This Row],[Numero di giorni]])=0,\"\",IF(AND(AM$5=$E16,$F16=1),Indicatore_Attività_Cardine,\"\")),\"\")","v":""},{"$f":"IFERROR(IF(LEN(Attività_cardine[[#This Row],[Numero di giorni]])=0,\"\",IF(AND(AN$5=$E16,$F16=1),Indicatore_Attività_Cardine,\"\")),\"\")","v":""},{"$f":"IFERROR(IF(LEN(Attività_cardine[[#This Row],[Numero di giorni]])=0,\"\",IF(AND(AO$5=$E16,$F16=1),Indicatore_Attività_Cardine,\"\")),\"\")","v":""},{"$f":"IFERROR(IF(LEN(Attività_cardine[[#This Row],[Numero di giorni]])=0,\"\",IF(AND(AP$5=$E16,$F16=1),Indicatore_Attività_Cardine,\"\")),\"\")","v":""},{"$f":"IFERROR(IF(LEN(Attività_cardine[[#This Row],[Numero di giorni]])=0,\"\",IF(AND(AQ$5=$E16,$F16=1),Indicatore_Attività_Cardine,\"\")),\"\")","v":""},{"$f":"IFERROR(IF(LEN(Attività_cardine[[#This Row],[Numero di giorni]])=0,\"\",IF(AND(AR$5=$E16,$F16=1),Indicatore_Attività_Cardine,\"\")),\"\")","v":""},{"$f":"IFERROR(IF(LEN(Attività_cardine[[#This Row],[Numero di giorni]])=0,\"\",IF(AND(AS$5=$E16,$F16=1),Indicatore_Attività_Cardine,\"\")),\"\")","v":""},{"$f":"IFERROR(IF(LEN(Attività_cardine[[#This Row],[Numero di giorni]])=0,\"\",IF(AND(AT$5=$E16,$F16=1),Indicatore_Attività_Cardine,\"\")),\"\")","v":""},{"$f":"IFERROR(IF(LEN(Attività_cardine[[#This Row],[Numero di giorni]])=0,\"\",IF(AND(AU$5=$E16,$F16=1),Indicatore_Attività_Cardine,\"\")),\"\")","v":""},{"$f":"IFERROR(IF(LEN(Attività_cardine[[#This Row],[Numero di giorni]])=0,\"\",IF(AND(AV$5=$E16,$F16=1),Indicatore_Attività_Cardine,\"\")),\"\")","v":""},{"$f":"IFERROR(IF(LEN(Attività_cardine[[#This Row],[Numero di giorni]])=0,\"\",IF(AND(AW$5=$E16,$F16=1),Indicatore_Attività_Cardine,\"\")),\"\")","v":""},{"$f":"IFERROR(IF(LEN(Attività_cardine[[#This Row],[Numero di giorni]])=0,\"\",IF(AND(AX$5=$E16,$F16=1),Indicatore_Attività_Cardine,\"\")),\"\")","v":""},{"$f":"IFERROR(IF(LEN(Attività_cardine[[#This Row],[Numero di giorni]])=0,\"\",IF(AND(AY$5=$E16,$F16=1),Indicatore_Attività_Cardine,\"\")),\"\")","v":""},{"$f":"IFERROR(IF(LEN(Attività_cardine[[#This Row],[Numero di giorni]])=0,\"\",IF(AND(AZ$5=$E16,$F16=1),Indicatore_Attività_Cardine,\"\")),\"\")","v":""},{"$f":"IFERROR(IF(LEN(Attività_cardine[[#This Row],[Numero di giorni]])=0,\"\",IF(AND(BA$5=$E16,$F16=1),Indicatore_Attività_Cardine,\"\")),\"\")","v":""},{"$f":"IFERROR(IF(LEN(Attività_cardine[[#This Row],[Numero di giorni]])=0,\"\",IF(AND(BB$5=$E16,$F16=1),Indicatore_Attività_Cardine,\"\")),\"\")","v":""},{"$f":"IFERROR(IF(LEN(Attività_cardine[[#This Row],[Numero di giorni]])=0,\"\",IF(AND(BC$5=$E16,$F16=1),Indicatore_Attività_Cardine,\"\")),\"\")","v":""},{"$f":"IFERROR(IF(LEN(Attività_cardine[[#This Row],[Numero di giorni]])=0,\"\",IF(AND(BD$5=$E16,$F16=1),Indicatore_Attività_Cardine,\"\")),\"\")","v":""},{"$f":"IFERROR(IF(LEN(Attività_cardine[[#This Row],[Numero di giorni]])=0,\"\",IF(AND(BE$5=$E16,$F16=1),Indicatore_Attività_Cardine,\"\")),\"\")","v":""},{"$f":"IFERROR(IF(LEN(Attività_cardine[[#This Row],[Numero di giorni]])=0,\"\",IF(AND(BF$5=$E16,$F16=1),Indicatore_Attività_Cardine,\"\")),\"\")","v":""},{"$f":"IFERROR(IF(LEN(Attività_cardine[[#This Row],[Numero di giorni]])=0,\"\",IF(AND(BG$5=$E16,$F16=1),Indicatore_Attività_Cardine,\"\")),\"\")","v":""},{"$f":"IFERROR(IF(LEN(Attività_cardine[[#This Row],[Numero di giorni]])=0,\"\",IF(AND(BH$5=$E16,$F16=1),Indicatore_Attività_Cardine,\"\")),\"\")","v":""},{"$f":"IFERROR(IF(LEN(Attività_cardine[[#This Row],[Numero di giorni]])=0,\"\",IF(AND(BI$5=$E16,$F16=1),Indicatore_Attività_Cardine,\"\")),\"\")","v":""},{"$f":"IFERROR(IF(LEN(Attività_cardine[[#This Row],[Numero di giorni]])=0,\"\",IF(AND(BJ$5=$E16,$F16=1),Indicatore_Attività_Cardine,\"\")),\"\")","v":""},{"$f":"IFERROR(IF(LEN(Attività_cardine[[#This Row],[Numero di giorni]])=0,\"\",IF(AND(BK$5=$E16,$F16=1),Indicatore_Attività_Cardine,\"\")),\"\")","v":""}]
[null,"Attività 3",null,{"v":0.33,"d":"33%"},{"$f":"TODAY()+15","v":"2018-10-04"},11,null,{"$f":"IFERROR(IF(LEN(Attività_cardine[[#This Row],[Numero di giorni]])=0,\"\",IF(AND(H$5=$E17,$F17=1),Indicatore_Attività_Cardine,\"\")),\"\")","v":""},{"$f":"IFERROR(IF(LEN(Attività_cardine[[#This Row],[Numero di giorni]])=0,\"\",IF(AND(I$5=$E17,$F17=1),Indicatore_Attività_Cardine,\"\")),\"\")","v":""},{"$f":"IFERROR(IF(LEN(Attività_cardine[[#This Row],[Numero di giorni]])=0,\"\",IF(AND(J$5=$E17,$F17=1),Indicatore_Attività_Cardine,\"\")),\"\")","v":""},{"$f":"IFERROR(IF(LEN(Attività_cardine[[#This Row],[Numero di giorni]])=0,\"\",IF(AND(K$5=$E17,$F17=1),Indicatore_Attività_Cardine,\"\")),\"\")","v":""},{"$f":"IFERROR(IF(LEN(Attività_cardine[[#This Row],[Numero di giorni]])=0,\"\",IF(AND(L$5=$E17,$F17=1),Indicatore_Attività_Cardine,\"\")),\"\")","v":""},{"$f":"IFERROR(IF(LEN(Attività_cardine[[#This Row],[Numero di giorni]])=0,\"\",IF(AND(M$5=$E17,$F17=1),Indicatore_Attività_Cardine,\"\")),\"\")","v":""},{"$f":"IFERROR(IF(LEN(Attività_cardine[[#This Row],[Numero di giorni]])=0,\"\",IF(AND(N$5=$E17,$F17=1),Indicatore_Attività_Cardine,\"\")),\"\")","v":""},{"$f":"IFERROR(IF(LEN(Attività_cardine[[#This Row],[Numero di giorni]])=0,\"\",IF(AND(O$5=$E17,$F17=1),Indicatore_Attività_Cardine,\"\")),\"\")","v":""},{"$f":"IFERROR(IF(LEN(Attività_cardine[[#This Row],[Numero di giorni]])=0,\"\",IF(AND(P$5=$E17,$F17=1),Indicatore_Attività_Cardine,\"\")),\"\")","v":""},{"$f":"IFERROR(IF(LEN(Attività_cardine[[#This Row],[Numero di giorni]])=0,\"\",IF(AND(Q$5=$E17,$F17=1),Indicatore_Attività_Cardine,\"\")),\"\")","v":""},{"$f":"IFERROR(IF(LEN(Attività_cardine[[#This Row],[Numero di giorni]])=0,\"\",IF(AND(R$5=$E17,$F17=1),Indicatore_Attività_Cardine,\"\")),\"\")","v":""},{"$f":"IFERROR(IF(LEN(Attività_cardine[[#This Row],[Numero di giorni]])=0,\"\",IF(AND(S$5=$E17,$F17=1),Indicatore_Attività_Cardine,\"\")),\"\")","v":""},{"$f":"IFERROR(IF(LEN(Attività_cardine[[#This Row],[Numero di giorni]])=0,\"\",IF(AND(T$5=$E17,$F17=1),Indicatore_Attività_Cardine,\"\")),\"\")","v":""},{"$f":"IFERROR(IF(LEN(Attività_cardine[[#This Row],[Numero di giorni]])=0,\"\",IF(AND(U$5=$E17,$F17=1),Indicatore_Attività_Cardine,\"\")),\"\")","v":""},{"$f":"IFERROR(IF(LEN(Attività_cardine[[#This Row],[Numero di giorni]])=0,\"\",IF(AND(V$5=$E17,$F17=1),Indicatore_Attività_Cardine,\"\")),\"\")","v":""},{"$f":"IFERROR(IF(LEN(Attività_cardine[[#This Row],[Numero di giorni]])=0,\"\",IF(AND(W$5=$E17,$F17=1),Indicatore_Attività_Cardine,\"\")),\"\")","v":""},{"$f":"IFERROR(IF(LEN(Attività_cardine[[#This Row],[Numero di giorni]])=0,\"\",IF(AND(X$5=$E17,$F17=1),Indicatore_Attività_Cardine,\"\")),\"\")","v":""},{"$f":"IFERROR(IF(LEN(Attività_cardine[[#This Row],[Numero di giorni]])=0,\"\",IF(AND(Y$5=$E17,$F17=1),Indicatore_Attività_Cardine,\"\")),\"\")","v":""},{"$f":"IFERROR(IF(LEN(Attività_cardine[[#This Row],[Numero di giorni]])=0,\"\",IF(AND(Z$5=$E17,$F17=1),Indicatore_Attività_Cardine,\"\")),\"\")","v":""},{"$f":"IFERROR(IF(LEN(Attività_cardine[[#This Row],[Numero di giorni]])=0,\"\",IF(AND(AA$5=$E17,$F17=1),Indicatore_Attività_Cardine,\"\")),\"\")","v":""},{"$f":"IFERROR(IF(LEN(Attività_cardine[[#This Row],[Numero di giorni]])=0,\"\",IF(AND(AB$5=$E17,$F17=1),Indicatore_Attività_Cardine,\"\")),\"\")","v":""},{"$f":"IFERROR(IF(LEN(Attività_cardine[[#This Row],[Numero di giorni]])=0,\"\",IF(AND(AC$5=$E17,$F17=1),Indicatore_Attività_Cardine,\"\")),\"\")","v":""},{"$f":"IFERROR(IF(LEN(Attività_cardine[[#This Row],[Numero di giorni]])=0,\"\",IF(AND(AD$5=$E17,$F17=1),Indicatore_Attività_Cardine,\"\")),\"\")","v":""},{"$f":"IFERROR(IF(LEN(Attività_cardine[[#This Row],[Numero di giorni]])=0,\"\",IF(AND(AE$5=$E17,$F17=1),Indicatore_Attività_Cardine,\"\")),\"\")","v":""},{"$f":"IFERROR(IF(LEN(Attività_cardine[[#This Row],[Numero di giorni]])=0,\"\",IF(AND(AF$5=$E17,$F17=1),Indicatore_Attività_Cardine,\"\")),\"\")","v":""},{"$f":"IFERROR(IF(LEN(Attività_cardine[[#This Row],[Numero di giorni]])=0,\"\",IF(AND(AG$5=$E17,$F17=1),Indicatore_Attività_Cardine,\"\")),\"\")","v":""},{"$f":"IFERROR(IF(LEN(Attività_cardine[[#This Row],[Numero di giorni]])=0,\"\",IF(AND(AH$5=$E17,$F17=1),Indicatore_Attività_Cardine,\"\")),\"\")","v":""},{"$f":"IFERROR(IF(LEN(Attività_cardine[[#This Row],[Numero di giorni]])=0,\"\",IF(AND(AI$5=$E17,$F17=1),Indicatore_Attività_Cardine,\"\")),\"\")","v":""},{"$f":"IFERROR(IF(LEN(Attività_cardine[[#This Row],[Numero di giorni]])=0,\"\",IF(AND(AJ$5=$E17,$F17=1),Indicatore_Attività_Cardine,\"\")),\"\")","v":""},{"$f":"IFERROR(IF(LEN(Attività_cardine[[#This Row],[Numero di giorni]])=0,\"\",IF(AND(AK$5=$E17,$F17=1),Indicatore_Attività_Cardine,\"\")),\"\")","v":""},{"$f":"IFERROR(IF(LEN(Attività_cardine[[#This Row],[Numero di giorni]])=0,\"\",IF(AND(AL$5=$E17,$F17=1),Indicatore_Attività_Cardine,\"\")),\"\")","v":""},{"$f":"IFERROR(IF(LEN(Attività_cardine[[#This Row],[Numero di giorni]])=0,\"\",IF(AND(AM$5=$E17,$F17=1),Indicatore_Attività_Cardine,\"\")),\"\")","v":""},{"$f":"IFERROR(IF(LEN(Attività_cardine[[#This Row],[Numero di giorni]])=0,\"\",IF(AND(AN$5=$E17,$F17=1),Indicatore_Attività_Cardine,\"\")),\"\")","v":""},{"$f":"IFERROR(IF(LEN(Attività_cardine[[#This Row],[Numero di giorni]])=0,\"\",IF(AND(AO$5=$E17,$F17=1),Indicatore_Attività_Cardine,\"\")),\"\")","v":""},{"$f":"IFERROR(IF(LEN(Attività_cardine[[#This Row],[Numero di giorni]])=0,\"\",IF(AND(AP$5=$E17,$F17=1),Indicatore_Attività_Cardine,\"\")),\"\")","v":""},{"$f":"IFERROR(IF(LEN(Attività_cardine[[#This Row],[Numero di giorni]])=0,\"\",IF(AND(AQ$5=$E17,$F17=1),Indicatore_Attività_Cardine,\"\")),\"\")","v":""},{"$f":"IFERROR(IF(LEN(Attività_cardine[[#This Row],[Numero di giorni]])=0,\"\",IF(AND(AR$5=$E17,$F17=1),Indicatore_Attività_Cardine,\"\")),\"\")","v":""},{"$f":"IFERROR(IF(LEN(Attività_cardine[[#This Row],[Numero di giorni]])=0,\"\",IF(AND(AS$5=$E17,$F17=1),Indicatore_Attività_Cardine,\"\")),\"\")","v":""},{"$f":"IFERROR(IF(LEN(Attività_cardine[[#This Row],[Numero di giorni]])=0,\"\",IF(AND(AT$5=$E17,$F17=1),Indicatore_Attività_Cardine,\"\")),\"\")","v":""},{"$f":"IFERROR(IF(LEN(Attività_cardine[[#This Row],[Numero di giorni]])=0,\"\",IF(AND(AU$5=$E17,$F17=1),Indicatore_Attività_Cardine,\"\")),\"\")","v":""},{"$f":"IFERROR(IF(LEN(Attività_cardine[[#This Row],[Numero di giorni]])=0,\"\",IF(AND(AV$5=$E17,$F17=1),Indicatore_Attività_Cardine,\"\")),\"\")","v":""},{"$f":"IFERROR(IF(LEN(Attività_cardine[[#This Row],[Numero di giorni]])=0,\"\",IF(AND(AW$5=$E17,$F17=1),Indicatore_Attività_Cardine,\"\")),\"\")","v":""},{"$f":"IFERROR(IF(LEN(Attività_cardine[[#This Row],[Numero di giorni]])=0,\"\",IF(AND(AX$5=$E17,$F17=1),Indicatore_Attività_Cardine,\"\")),\"\")","v":""},{"$f":"IFERROR(IF(LEN(Attività_cardine[[#This Row],[Numero di giorni]])=0,\"\",IF(AND(AY$5=$E17,$F17=1),Indicatore_Attività_Cardine,\"\")),\"\")","v":""},{"$f":"IFERROR(IF(LEN(Attività_cardine[[#This Row],[Numero di giorni]])=0,\"\",IF(AND(AZ$5=$E17,$F17=1),Indicatore_Attività_Cardine,\"\")),\"\")","v":""},{"$f":"IFERROR(IF(LEN(Attività_cardine[[#This Row],[Numero di giorni]])=0,\"\",IF(AND(BA$5=$E17,$F17=1),Indicatore_Attività_Cardine,\"\")),\"\")","v":""},{"$f":"IFERROR(IF(LEN(Attività_cardine[[#This Row],[Numero di giorni]])=0,\"\",IF(AND(BB$5=$E17,$F17=1),Indicatore_Attività_Cardine,\"\")),\"\")","v":""},{"$f":"IFERROR(IF(LEN(Attività_cardine[[#This Row],[Numero di giorni]])=0,\"\",IF(AND(BC$5=$E17,$F17=1),Indicatore_Attività_Cardine,\"\")),\"\")","v":""},{"$f":"IFERROR(IF(LEN(Attività_cardine[[#This Row],[Numero di giorni]])=0,\"\",IF(AND(BD$5=$E17,$F17=1),Indicatore_Attività_Cardine,\"\")),\"\")","v":""},{"$f":"IFERROR(IF(LEN(Attività_cardine[[#This Row],[Numero di giorni]])=0,\"\",IF(AND(BE$5=$E17,$F17=1),Indicatore_Attività_Cardine,\"\")),\"\")","v":""},{"$f":"IFERROR(IF(LEN(Attività_cardine[[#This Row],[Numero di giorni]])=0,\"\",IF(AND(BF$5=$E17,$F17=1),Indicatore_Attività_Cardine,\"\")),\"\")","v":""},{"$f":"IFERROR(IF(LEN(Attività_cardine[[#This Row],[Numero di giorni]])=0,\"\",IF(AND(BG$5=$E17,$F17=1),Indicatore_Attività_Cardine,\"\")),\"\")","v":""},{"$f":"IFERROR(IF(LEN(Attività_cardine[[#This Row],[Numero di giorni]])=0,\"\",IF(AND(BH$5=$E17,$F17=1),Indicatore_Attività_Cardine,\"\")),\"\")","v":""},{"$f":"IFERROR(IF(LEN(Attività_cardine[[#This Row],[Numero di giorni]])=0,\"\",IF(AND(BI$5=$E17,$F17=1),Indicatore_Attività_Cardine,\"\")),\"\")","v":""},{"$f":"IFERROR(IF(LEN(Attività_cardine[[#This Row],[Numero di giorni]])=0,\"\",IF(AND(BJ$5=$E17,$F17=1),Indicatore_Attività_Cardine,\"\")),\"\")","v":""},{"$f":"IFERROR(IF(LEN(Attività_cardine[[#This Row],[Numero di giorni]])=0,\"\",IF(AND(BK$5=$E17,$F17=1),Indicatore_Attività_Cardine,\"\")),\"\")","v":""}]
[null,"Attività 4",null,null,{"$f":"TODAY()+24","v":"2018-10-13"},1,null,{"$f":"IFERROR(IF(LEN(Attività_cardine[[#This Row],[Numero di giorni]])=0,\"\",IF(AND(H$5=$E18,$F18=1),Indicatore_Attività_Cardine,\"\")),\"\")","v":""},{"$f":"IFERROR(IF(LEN(Attività_cardine[[#This Row],[Numero di giorni]])=0,\"\",IF(AND(I$5=$E18,$F18=1),Indicatore_Attività_Cardine,\"\")),\"\")","v":""},{"$f":"IFERROR(IF(LEN(Attività_cardine[[#This Row],[Numero di giorni]])=0,\"\",IF(AND(J$5=$E18,$F18=1),Indicatore_Attività_Cardine,\"\")),\"\")","v":""},{"$f":"IFERROR(IF(LEN(Attività_cardine[[#This Row],[Numero di giorni]])=0,\"\",IF(AND(K$5=$E18,$F18=1),Indicatore_Attività_Cardine,\"\")),\"\")","v":""},{"$f":"IFERROR(IF(LEN(Attività_cardine[[#This Row],[Numero di giorni]])=0,\"\",IF(AND(L$5=$E18,$F18=1),Indicatore_Attività_Cardine,\"\")),\"\")","v":""},{"$f":"IFERROR(IF(LEN(Attività_cardine[[#This Row],[Numero di giorni]])=0,\"\",IF(AND(M$5=$E18,$F18=1),Indicatore_Attività_Cardine,\"\")),\"\")","v":""},{"$f":"IFERROR(IF(LEN(Attività_cardine[[#This Row],[Numero di giorni]])=0,\"\",IF(AND(N$5=$E18,$F18=1),Indicatore_Attività_Cardine,\"\")),\"\")","v":""},{"$f":"IFERROR(IF(LEN(Attività_cardine[[#This Row],[Numero di giorni]])=0,\"\",IF(AND(O$5=$E18,$F18=1),Indicatore_Attività_Cardine,\"\")),\"\")","v":""},{"$f":"IFERROR(IF(LEN(Attività_cardine[[#This Row],[Numero di giorni]])=0,\"\",IF(AND(P$5=$E18,$F18=1),Indicatore_Attività_Cardine,\"\")),\"\")","v":""},{"$f":"IFERROR(IF(LEN(Attività_cardine[[#This Row],[Numero di giorni]])=0,\"\",IF(AND(Q$5=$E18,$F18=1),Indicatore_Attività_Cardine,\"\")),\"\")","v":""},{"$f":"IFERROR(IF(LEN(Attività_cardine[[#This Row],[Numero di giorni]])=0,\"\",IF(AND(R$5=$E18,$F18=1),Indicatore_Attività_Cardine,\"\")),\"\")","v":""},{"$f":"IFERROR(IF(LEN(Attività_cardine[[#This Row],[Numero di giorni]])=0,\"\",IF(AND(S$5=$E18,$F18=1),Indicatore_Attività_Cardine,\"\")),\"\")","v":""},{"$f":"IFERROR(IF(LEN(Attività_cardine[[#This Row],[Numero di giorni]])=0,\"\",IF(AND(T$5=$E18,$F18=1),Indicatore_Attività_Cardine,\"\")),\"\")","v":""},{"$f":"IFERROR(IF(LEN(Attività_cardine[[#This Row],[Numero di giorni]])=0,\"\",IF(AND(U$5=$E18,$F18=1),Indicatore_Attività_Cardine,\"\")),\"\")","v":""},{"$f":"IFERROR(IF(LEN(Attività_cardine[[#This Row],[Numero di giorni]])=0,\"\",IF(AND(V$5=$E18,$F18=1),Indicatore_Attività_Cardine,\"\")),\"\")","v":""},{"$f":"IFERROR(IF(LEN(Attività_cardine[[#This Row],[Numero di giorni]])=0,\"\",IF(AND(W$5=$E18,$F18=1),Indicatore_Attività_Cardine,\"\")),\"\")","v":""},{"$f":"IFERROR(IF(LEN(Attività_cardine[[#This Row],[Numero di giorni]])=0,\"\",IF(AND(X$5=$E18,$F18=1),Indicatore_Attività_Cardine,\"\")),\"\")","v":""},{"$f":"IFERROR(IF(LEN(Attività_cardine[[#This Row],[Numero di giorni]])=0,\"\",IF(AND(Y$5=$E18,$F18=1),Indicatore_Attività_Cardine,\"\")),\"\")","v":""},{"$f":"IFERROR(IF(LEN(Attività_cardine[[#This Row],[Numero di giorni]])=0,\"\",IF(AND(Z$5=$E18,$F18=1),Indicatore_Attività_Cardine,\"\")),\"\")","v":""},{"$f":"IFERROR(IF(LEN(Attività_cardine[[#This Row],[Numero di giorni]])=0,\"\",IF(AND(AA$5=$E18,$F18=1),Indicatore_Attività_Cardine,\"\")),\"\")","v":""},{"$f":"IFERROR(IF(LEN(Attività_cardine[[#This Row],[Numero di giorni]])=0,\"\",IF(AND(AB$5=$E18,$F18=1),Indicatore_Attività_Cardine,\"\")),\"\")","v":""},{"$f":"IFERROR(IF(LEN(Attività_cardine[[#This Row],[Numero di giorni]])=0,\"\",IF(AND(AC$5=$E18,$F18=1),Indicatore_Attività_Cardine,\"\")),\"\")","v":""},{"$f":"IFERROR(IF(LEN(Attività_cardine[[#This Row],[Numero di giorni]])=0,\"\",IF(AND(AD$5=$E18,$F18=1),Indicatore_Attività_Cardine,\"\")),\"\")","v":""},{"$f":"IFERROR(IF(LEN(Attività_cardine[[#This Row],[Numero di giorni]])=0,\"\",IF(AND(AE$5=$E18,$F18=1),Indicatore_Attività_Cardine,\"\")),\"\")","v":""},{"$f":"IFERROR(IF(LEN(Attività_cardine[[#This Row],[Numero di giorni]])=0,\"\",IF(AND(AF$5=$E18,$F18=1),Indicatore_Attività_Cardine,\"\")),\"\")","v":""},{"$f":"IFERROR(IF(LEN(Attività_cardine[[#This Row],[Numero di giorni]])=0,\"\",IF(AND(AG$5=$E18,$F18=1),Indicatore_Attività_Cardine,\"\")),\"\")","v":""},{"$f":"IFERROR(IF(LEN(Attività_cardine[[#This Row],[Numero di giorni]])=0,\"\",IF(AND(AH$5=$E18,$F18=1),Indicatore_Attività_Cardine,\"\")),\"\")","v":""},{"$f":"IFERROR(IF(LEN(Attività_cardine[[#This Row],[Numero di giorni]])=0,\"\",IF(AND(AI$5=$E18,$F18=1),Indicatore_Attività_Cardine,\"\")),\"\")","v":1},{"$f":"IFERROR(IF(LEN(Attività_cardine[[#This Row],[Numero di giorni]])=0,\"\",IF(AND(AJ$5=$E18,$F18=1),Indicatore_Attività_Cardine,\"\")),\"\")","v":""},{"$f":"IFERROR(IF(LEN(Attività_cardine[[#This Row],[Numero di giorni]])=0,\"\",IF(AND(AK$5=$E18,$F18=1),Indicatore_Attività_Cardine,\"\")),\"\")","v":""},{"$f":"IFERROR(IF(LEN(Attività_cardine[[#This Row],[Numero di giorni]])=0,\"\",IF(AND(AL$5=$E18,$F18=1),Indicatore_Attività_Cardine,\"\")),\"\")","v":""},{"$f":"IFERROR(IF(LEN(Attività_cardine[[#This Row],[Numero di giorni]])=0,\"\",IF(AND(AM$5=$E18,$F18=1),Indicatore_Attività_Cardine,\"\")),\"\")","v":""},{"$f":"IFERROR(IF(LEN(Attività_cardine[[#This Row],[Numero di giorni]])=0,\"\",IF(AND(AN$5=$E18,$F18=1),Indicatore_Attività_Cardine,\"\")),\"\")","v":""},{"$f":"IFERROR(IF(LEN(Attività_cardine[[#This Row],[Numero di giorni]])=0,\"\",IF(AND(AO$5=$E18,$F18=1),Indicatore_Attività_Cardine,\"\")),\"\")","v":""},{"$f":"IFERROR(IF(LEN(Attività_cardine[[#This Row],[Numero di giorni]])=0,\"\",IF(AND(AP$5=$E18,$F18=1),Indicatore_Attività_Cardine,\"\")),\"\")","v":""},{"$f":"IFERROR(IF(LEN(Attività_cardine[[#This Row],[Numero di giorni]])=0,\"\",IF(AND(AQ$5=$E18,$F18=1),Indicatore_Attività_Cardine,\"\")),\"\")","v":""},{"$f":"IFERROR(IF(LEN(Attività_cardine[[#This Row],[Numero di giorni]])=0,\"\",IF(AND(AR$5=$E18,$F18=1),Indicatore_Attività_Cardine,\"\")),\"\")","v":""},{"$f":"IFERROR(IF(LEN(Attività_cardine[[#This Row],[Numero di giorni]])=0,\"\",IF(AND(AS$5=$E18,$F18=1),Indicatore_Attività_Cardine,\"\")),\"\")","v":""},{"$f":"IFERROR(IF(LEN(Attività_cardine[[#This Row],[Numero di giorni]])=0,\"\",IF(AND(AT$5=$E18,$F18=1),Indicatore_Attività_Cardine,\"\")),\"\")","v":""},{"$f":"IFERROR(IF(LEN(Attività_cardine[[#This Row],[Numero di giorni]])=0,\"\",IF(AND(AU$5=$E18,$F18=1),Indicatore_Attività_Cardine,\"\")),\"\")","v":""},{"$f":"IFERROR(IF(LEN(Attività_cardine[[#This Row],[Numero di giorni]])=0,\"\",IF(AND(AV$5=$E18,$F18=1),Indicatore_Attività_Cardine,\"\")),\"\")","v":""},{"$f":"IFERROR(IF(LEN(Attività_cardine[[#This Row],[Numero di giorni]])=0,\"\",IF(AND(AW$5=$E18,$F18=1),Indicatore_Attività_Cardine,\"\")),\"\")","v":""},{"$f":"IFERROR(IF(LEN(Attività_cardine[[#This Row],[Numero di giorni]])=0,\"\",IF(AND(AX$5=$E18,$F18=1),Indicatore_Attività_Cardine,\"\")),\"\")","v":""},{"$f":"IFERROR(IF(LEN(Attività_cardine[[#This Row],[Numero di giorni]])=0,\"\",IF(AND(AY$5=$E18,$F18=1),Indicatore_Attività_Cardine,\"\")),\"\")","v":""},{"$f":"IFERROR(IF(LEN(Attività_cardine[[#This Row],[Numero di giorni]])=0,\"\",IF(AND(AZ$5=$E18,$F18=1),Indicatore_Attività_Cardine,\"\")),\"\")","v":""},{"$f":"IFERROR(IF(LEN(Attività_cardine[[#This Row],[Numero di giorni]])=0,\"\",IF(AND(BA$5=$E18,$F18=1),Indicatore_Attività_Cardine,\"\")),\"\")","v":""},{"$f":"IFERROR(IF(LEN(Attività_cardine[[#This Row],[Numero di giorni]])=0,\"\",IF(AND(BB$5=$E18,$F18=1),Indicatore_Attività_Cardine,\"\")),\"\")","v":""},{"$f":"IFERROR(IF(LEN(Attività_cardine[[#This Row],[Numero di giorni]])=0,\"\",IF(AND(BC$5=$E18,$F18=1),Indicatore_Attività_Cardine,\"\")),\"\")","v":""},{"$f":"IFERROR(IF(LEN(Attività_cardine[[#This Row],[Numero di giorni]])=0,\"\",IF(AND(BD$5=$E18,$F18=1),Indicatore_Attività_Cardine,\"\")),\"\")","v":""},{"$f":"IFERROR(IF(LEN(Attività_cardine[[#This Row],[Numero di giorni]])=0,\"\",IF(AND(BE$5=$E18,$F18=1),Indicatore_Attività_Cardine,\"\")),\"\")","v":""},{"$f":"IFERROR(IF(LEN(Attività_cardine[[#This Row],[Numero di giorni]])=0,\"\",IF(AND(BF$5=$E18,$F18=1),Indicatore_Attività_Cardine,\"\")),\"\")","v":""},{"$f":"IFERROR(IF(LEN(Attività_cardine[[#This Row],[Numero di giorni]])=0,\"\",IF(AND(BG$5=$E18,$F18=1),Indicatore_Attività_Cardine,\"\")),\"\")","v":""},{"$f":"IFERROR(IF(LEN(Attività_cardine[[#This Row],[Numero di giorni]])=0,\"\",IF(AND(BH$5=$E18,$F18=1),Indicatore_Attività_Cardine,\"\")),\"\")","v":""},{"$f":"IFERROR(IF(LEN(Attività_cardine[[#This Row],[Numero di giorni]])=0,\"\",IF(AND(BI$5=$E18,$F18=1),Indicatore_Attività_Cardine,\"\")),\"\")","v":""},{"$f":"IFERROR(IF(LEN(Attività_cardine[[#This Row],[Numero di giorni]])=0,\"\",IF(AND(BJ$5=$E18,$F18=1),Indicatore_Attività_Cardine,\"\")),\"\")","v":""},{"$f":"IFERROR(IF(LEN(Attività_cardine[[#This Row],[Numero di giorni]])=0,\"\",IF(AND(BK$5=$E18,$F18=1),Indicatore_Attività_Cardine,\"\")),\"\")","v":""}]
[null,"Attività 5",null,null,{"$f":"TODAY()+25","v":"2018-10-14"},24,null,{"$f":"IFERROR(IF(LEN(Attività_cardine[[#This Row],[Numero di giorni]])=0,\"\",IF(AND(H$5=$E19,$F19=1),Indicatore_Attività_Cardine,\"\")),\"\")","v":""},{"$f":"IFERROR(IF(LEN(Attività_cardine[[#This Row],[Numero di giorni]])=0,\"\",IF(AND(I$5=$E19,$F19=1),Indicatore_Attività_Cardine,\"\")),\"\")","v":""},{"$f":"IFERROR(IF(LEN(Attività_cardine[[#This Row],[Numero di giorni]])=0,\"\",IF(AND(J$5=$E19,$F19=1),Indicatore_Attività_Cardine,\"\")),\"\")","v":""},{"$f":"IFERROR(IF(LEN(Attività_cardine[[#This Row],[Numero di giorni]])=0,\"\",IF(AND(K$5=$E19,$F19=1),Indicatore_Attività_Cardine,\"\")),\"\")","v":""},{"$f":"IFERROR(IF(LEN(Attività_cardine[[#This Row],[Numero di giorni]])=0,\"\",IF(AND(L$5=$E19,$F19=1),Indicatore_Attività_Cardine,\"\")),\"\")","v":""},{"$f":"IFERROR(IF(LEN(Attività_cardine[[#This Row],[Numero di giorni]])=0,\"\",IF(AND(M$5=$E19,$F19=1),Indicatore_Attività_Cardine,\"\")),\"\")","v":""},{"$f":"IFERROR(IF(LEN(Attività_cardine[[#This Row],[Numero di giorni]])=0,\"\",IF(AND(N$5=$E19,$F19=1),Indicatore_Attività_Cardine,\"\")),\"\")","v":""},{"$f":"IFERROR(IF(LEN(Attività_cardine[[#This Row],[Numero di giorni]])=0,\"\",IF(AND(O$5=$E19,$F19=1),Indicatore_Attività_Cardine,\"\")),\"\")","v":""},{"$f":"IFERROR(IF(LEN(Attività_cardine[[#This Row],[Numero di giorni]])=0,\"\",IF(AND(P$5=$E19,$F19=1),Indicatore_Attività_Cardine,\"\")),\"\")","v":""},{"$f":"IFERROR(IF(LEN(Attività_cardine[[#This Row],[Numero di giorni]])=0,\"\",IF(AND(Q$5=$E19,$F19=1),Indicatore_Attività_Cardine,\"\")),\"\")","v":""},{"$f":"IFERROR(IF(LEN(Attività_cardine[[#This Row],[Numero di giorni]])=0,\"\",IF(AND(R$5=$E19,$F19=1),Indicatore_Attività_Cardine,\"\")),\"\")","v":""},{"$f":"IFERROR(IF(LEN(Attività_cardine[[#This Row],[Numero di giorni]])=0,\"\",IF(AND(S$5=$E19,$F19=1),Indicatore_Attività_Cardine,\"\")),\"\")","v":""},{"$f":"IFERROR(IF(LEN(Attività_cardine[[#This Row],[Numero di giorni]])=0,\"\",IF(AND(T$5=$E19,$F19=1),Indicatore_Attività_Cardine,\"\")),\"\")","v":""},{"$f":"IFERROR(IF(LEN(Attività_cardine[[#This Row],[Numero di giorni]])=0,\"\",IF(AND(U$5=$E19,$F19=1),Indicatore_Attività_Cardine,\"\")),\"\")","v":""},{"$f":"IFERROR(IF(LEN(Attività_cardine[[#This Row],[Numero di giorni]])=0,\"\",IF(AND(V$5=$E19,$F19=1),Indicatore_Attività_Cardine,\"\")),\"\")","v":""},{"$f":"IFERROR(IF(LEN(Attività_cardine[[#This Row],[Numero di giorni]])=0,\"\",IF(AND(W$5=$E19,$F19=1),Indicatore_Attività_Cardine,\"\")),\"\")","v":""},{"$f":"IFERROR(IF(LEN(Attività_cardine[[#This Row],[Numero di giorni]])=0,\"\",IF(AND(X$5=$E19,$F19=1),Indicatore_Attività_Cardine,\"\")),\"\")","v":""},{"$f":"IFERROR(IF(LEN(Attività_cardine[[#This Row],[Numero di giorni]])=0,\"\",IF(AND(Y$5=$E19,$F19=1),Indicatore_Attività_Cardine,\"\")),\"\")","v":""},{"$f":"IFERROR(IF(LEN(Attività_cardine[[#This Row],[Numero di giorni]])=0,\"\",IF(AND(Z$5=$E19,$F19=1),Indicatore_Attività_Cardine,\"\")),\"\")","v":""},{"$f":"IFERROR(IF(LEN(Attività_cardine[[#This Row],[Numero di giorni]])=0,\"\",IF(AND(AA$5=$E19,$F19=1),Indicatore_Attività_Cardine,\"\")),\"\")","v":""},{"$f":"IFERROR(IF(LEN(Attività_cardine[[#This Row],[Numero di giorni]])=0,\"\",IF(AND(AB$5=$E19,$F19=1),Indicatore_Attività_Cardine,\"\")),\"\")","v":""},{"$f":"IFERROR(IF(LEN(Attività_cardine[[#This Row],[Numero di giorni]])=0,\"\",IF(AND(AC$5=$E19,$F19=1),Indicatore_Attività_Cardine,\"\")),\"\")","v":""},{"$f":"IFERROR(IF(LEN(Attività_cardine[[#This Row],[Numero di giorni]])=0,\"\",IF(AND(AD$5=$E19,$F19=1),Indicatore_Attività_Cardine,\"\")),\"\")","v":""},{"$f":"IFERROR(IF(LEN(Attività_cardine[[#This Row],[Numero di giorni]])=0,\"\",IF(AND(AE$5=$E19,$F19=1),Indicatore_Attività_Cardine,\"\")),\"\")","v":""},{"$f":"IFERROR(IF(LEN(Attività_cardine[[#This Row],[Numero di giorni]])=0,\"\",IF(AND(AF$5=$E19,$F19=1),Indicatore_Attività_Cardine,\"\")),\"\")","v":""},{"$f":"IFERROR(IF(LEN(Attività_cardine[[#This Row],[Numero di giorni]])=0,\"\",IF(AND(AG$5=$E19,$F19=1),Indicatore_Attività_Cardine,\"\")),\"\")","v":""},{"$f":"IFERROR(IF(LEN(Attività_cardine[[#This Row],[Numero di giorni]])=0,\"\",IF(AND(AH$5=$E19,$F19=1),Indicatore_Attività_Cardine,\"\")),\"\")","v":""},{"$f":"IFERROR(IF(LEN(Attività_cardine[[#This Row],[Numero di giorni]])=0,\"\",IF(AND(AI$5=$E19,$F19=1),Indicatore_Attività_Cardine,\"\")),\"\")","v":""},{"$f":"IFERROR(IF(LEN(Attività_cardine[[#This Row],[Numero di giorni]])=0,\"\",IF(AND(AJ$5=$E19,$F19=1),Indicatore_Attività_Cardine,\"\")),\"\")","v":""},{"$f":"IFERROR(IF(LEN(Attività_cardine[[#This Row],[Numero di giorni]])=0,\"\",IF(AND(AK$5=$E19,$F19=1),Indicatore_Attività_Cardine,\"\")),\"\")","v":""},{"$f":"IFERROR(IF(LEN(Attività_cardine[[#This Row],[Numero di giorni]])=0,\"\",IF(AND(AL$5=$E19,$F19=1),Indicatore_Attività_Cardine,\"\")),\"\")","v":""},{"$f":"IFERROR(IF(LEN(Attività_cardine[[#This Row],[Numero di giorni]])=0,\"\",IF(AND(AM$5=$E19,$F19=1),Indicatore_Attività_Cardine,\"\")),\"\")","v":""},{"$f":"IFERROR(IF(LEN(Attività_cardine[[#This Row],[Numero di giorni]])=0,\"\",IF(AND(AN$5=$E19,$F19=1),Indicatore_Attività_Cardine,\"\")),\"\")","v":""},{"$f":"IFERROR(IF(LEN(Attività_cardine[[#This Row],[Numero di giorni]])=0,\"\",IF(AND(AO$5=$E19,$F19=1),Indicatore_Attività_Cardine,\"\")),\"\")","v":""},{"$f":"IFERROR(IF(LEN(Attività_cardine[[#This Row],[Numero di giorni]])=0,\"\",IF(AND(AP$5=$E19,$F19=1),Indicatore_Attività_Cardine,\"\")),\"\")","v":""},{"$f":"IFERROR(IF(LEN(Attività_cardine[[#This Row],[Numero di giorni]])=0,\"\",IF(AND(AQ$5=$E19,$F19=1),Indicatore_Attività_Cardine,\"\")),\"\")","v":""},{"$f":"IFERROR(IF(LEN(Attività_cardine[[#This Row],[Numero di giorni]])=0,\"\",IF(AND(AR$5=$E19,$F19=1),Indicatore_Attività_Cardine,\"\")),\"\")","v":""},{"$f":"IFERROR(IF(LEN(Attività_cardine[[#This Row],[Numero di giorni]])=0,\"\",IF(AND(AS$5=$E19,$F19=1),Indicatore_Attività_Cardine,\"\")),\"\")","v":""},{"$f":"IFERROR(IF(LEN(Attività_cardine[[#This Row],[Numero di giorni]])=0,\"\",IF(AND(AT$5=$E19,$F19=1),Indicatore_Attività_Cardine,\"\")),\"\")","v":""},{"$f":"IFERROR(IF(LEN(Attività_cardine[[#This Row],[Numero di giorni]])=0,\"\",IF(AND(AU$5=$E19,$F19=1),Indicatore_Attività_Cardine,\"\")),\"\")","v":""},{"$f":"IFERROR(IF(LEN(Attività_cardine[[#This Row],[Numero di giorni]])=0,\"\",IF(AND(AV$5=$E19,$F19=1),Indicatore_Attività_Cardine,\"\")),\"\")","v":""},{"$f":"IFERROR(IF(LEN(Attività_cardine[[#This Row],[Numero di giorni]])=0,\"\",IF(AND(AW$5=$E19,$F19=1),Indicatore_Attività_Cardine,\"\")),\"\")","v":""},{"$f":"IFERROR(IF(LEN(Attività_cardine[[#This Row],[Numero di giorni]])=0,\"\",IF(AND(AX$5=$E19,$F19=1),Indicatore_Attività_Cardine,\"\")),\"\")","v":""},{"$f":"IFERROR(IF(LEN(Attività_cardine[[#This Row],[Numero di giorni]])=0,\"\",IF(AND(AY$5=$E19,$F19=1),Indicatore_Attività_Cardine,\"\")),\"\")","v":""},{"$f":"IFERROR(IF(LEN(Attività_cardine[[#This Row],[Numero di giorni]])=0,\"\",IF(AND(AZ$5=$E19,$F19=1),Indicatore_Attività_Cardine,\"\")),\"\")","v":""},{"$f":"IFERROR(IF(LEN(Attività_cardine[[#This Row],[Numero di giorni]])=0,\"\",IF(AND(BA$5=$E19,$F19=1),Indicatore_Attività_Cardine,\"\")),\"\")","v":""},{"$f":"IFERROR(IF(LEN(Attività_cardine[[#This Row],[Numero di giorni]])=0,\"\",IF(AND(BB$5=$E19,$F19=1),Indicatore_Attività_Cardine,\"\")),\"\")","v":""},{"$f":"IFERROR(IF(LEN(Attività_cardine[[#This Row],[Numero di giorni]])=0,\"\",IF(AND(BC$5=$E19,$F19=1),Indicatore_Attività_Cardine,\"\")),\"\")","v":""},{"$f":"IFERROR(IF(LEN(Attività_cardine[[#This Row],[Numero di giorni]])=0,\"\",IF(AND(BD$5=$E19,$F19=1),Indicatore_Attività_Cardine,\"\")),\"\")","v":""},{"$f":"IFERROR(IF(LEN(Attività_cardine[[#This Row],[Numero di giorni]])=0,\"\",IF(AND(BE$5=$E19,$F19=1),Indicatore_Attività_Cardine,\"\")),\"\")","v":""},{"$f":"IFERROR(IF(LEN(Attività_cardine[[#This Row],[Numero di giorni]])=0,\"\",IF(AND(BF$5=$E19,$F19=1),Indicatore_Attività_Cardine,\"\")),\"\")","v":""},{"$f":"IFERROR(IF(LEN(Attività_cardine[[#This Row],[Numero di giorni]])=0,\"\",IF(AND(BG$5=$E19,$F19=1),Indicatore_Attività_Cardine,\"\")),\"\")","v":""},{"$f":"IFERROR(IF(LEN(Attività_cardine[[#This Row],[Numero di giorni]])=0,\"\",IF(AND(BH$5=$E19,$F19=1),Indicatore_Attività_Cardine,\"\")),\"\")","v":""},{"$f":"IFERROR(IF(LEN(Attività_cardine[[#This Row],[Numero di giorni]])=0,\"\",IF(AND(BI$5=$E19,$F19=1),Indicatore_Attività_Cardine,\"\")),\"\")","v":""},{"$f":"IFERROR(IF(LEN(Attività_cardine[[#This Row],[Numero di giorni]])=0,\"\",IF(AND(BJ$5=$E19,$F19=1),Indicatore_Attività_Cardine,\"\")),\"\")","v":""},{"$f":"IFERROR(IF(LEN(Attività_cardine[[#This Row],[Numero di giorni]])=0,\"\",IF(AND(BK$5=$E19,$F19=1),Indicatore_Attività_Cardine,\"\")),\"\")","v":""}]
[null,"Titolo 3",{"$nulls":5},{"$f":"IFERROR(IF(LEN(Attività_cardine[[#This Row],[Numero di giorni]])=0,\"\",IF(AND(H$5=$E20,$F20=1),Indicatore_Attività_Cardine,\"\")),\"\")","v":""},{"$f":"IFERROR(IF(LEN(Attività_cardine[[#This Row],[Numero di giorni]])=0,\"\",IF(AND(I$5=$E20,$F20=1),Indicatore_Attività_Cardine,\"\")),\"\")","v":""},{"$f":"IFERROR(IF(LEN(Attività_cardine[[#This Row],[Numero di giorni]])=0,\"\",IF(AND(J$5=$E20,$F20=1),Indicatore_Attività_Cardine,\"\")),\"\")","v":""},{"$f":"IFERROR(IF(LEN(Attività_cardine[[#This Row],[Numero di giorni]])=0,\"\",IF(AND(K$5=$E20,$F20=1),Indicatore_Attività_Cardine,\"\")),\"\")","v":""},{"$f":"IFERROR(IF(LEN(Attività_cardine[[#This Row],[Numero di giorni]])=0,\"\",IF(AND(L$5=$E20,$F20=1),Indicatore_Attività_Cardine,\"\")),\"\")","v":""},{"$f":"IFERROR(IF(LEN(Attività_cardine[[#This Row],[Numero di giorni]])=0,\"\",IF(AND(M$5=$E20,$F20=1),Indicatore_Attività_Cardine,\"\")),\"\")","v":""},{"$f":"IFERROR(IF(LEN(Attività_cardine[[#This Row],[Numero di giorni]])=0,\"\",IF(AND(N$5=$E20,$F20=1),Indicatore_Attività_Cardine,\"\")),\"\")","v":""},{"$f":"IFERROR(IF(LEN(Attività_cardine[[#This Row],[Numero di giorni]])=0,\"\",IF(AND(O$5=$E20,$F20=1),Indicatore_Attività_Cardine,\"\")),\"\")","v":""},{"$f":"IFERROR(IF(LEN(Attività_cardine[[#This Row],[Numero di giorni]])=0,\"\",IF(AND(P$5=$E20,$F20=1),Indicatore_Attività_Cardine,\"\")),\"\")","v":""},{"$f":"IFERROR(IF(LEN(Attività_cardine[[#This Row],[Numero di giorni]])=0,\"\",IF(AND(Q$5=$E20,$F20=1),Indicatore_Attività_Cardine,\"\")),\"\")","v":""},{"$f":"IFERROR(IF(LEN(Attività_cardine[[#This Row],[Numero di giorni]])=0,\"\",IF(AND(R$5=$E20,$F20=1),Indicatore_Attività_Cardine,\"\")),\"\")","v":""},{"$f":"IFERROR(IF(LEN(Attività_cardine[[#This Row],[Numero di giorni]])=0,\"\",IF(AND(S$5=$E20,$F20=1),Indicatore_Attività_Cardine,\"\")),\"\")","v":""},{"$f":"IFERROR(IF(LEN(Attività_cardine[[#This Row],[Numero di giorni]])=0,\"\",IF(AND(T$5=$E20,$F20=1),Indicatore_Attività_Cardine,\"\")),\"\")","v":""},{"$f":"IFERROR(IF(LEN(Attività_cardine[[#This Row],[Numero di giorni]])=0,\"\",IF(AND(U$5=$E20,$F20=1),Indicatore_Attività_Cardine,\"\")),\"\")","v":""},{"$f":"IFERROR(IF(LEN(Attività_cardine[[#This Row],[Numero di giorni]])=0,\"\",IF(AND(V$5=$E20,$F20=1),Indicatore_Attività_Cardine,\"\")),\"\")","v":""},{"$f":"IFERROR(IF(LEN(Attività_cardine[[#This Row],[Numero di giorni]])=0,\"\",IF(AND(W$5=$E20,$F20=1),Indicatore_Attività_Cardine,\"\")),\"\")","v":""},{"$f":"IFERROR(IF(LEN(Attività_cardine[[#This Row],[Numero di giorni]])=0,\"\",IF(AND(X$5=$E20,$F20=1),Indicatore_Attività_Cardine,\"\")),\"\")","v":""},{"$f":"IFERROR(IF(LEN(Attività_cardine[[#This Row],[Numero di giorni]])=0,\"\",IF(AND(Y$5=$E20,$F20=1),Indicatore_Attività_Cardine,\"\")),\"\")","v":""},{"$f":"IFERROR(IF(LEN(Attività_cardine[[#This Row],[Numero di giorni]])=0,\"\",IF(AND(Z$5=$E20,$F20=1),Indicatore_Attività_Cardine,\"\")),\"\")","v":""},{"$f":"IFERROR(IF(LEN(Attività_cardine[[#This Row],[Numero di giorni]])=0,\"\",IF(AND(AA$5=$E20,$F20=1),Indicatore_Attività_Cardine,\"\")),\"\")","v":""},{"$f":"IFERROR(IF(LEN(Attività_cardine[[#This Row],[Numero di giorni]])=0,\"\",IF(AND(AB$5=$E20,$F20=1),Indicatore_Attività_Cardine,\"\")),\"\")","v":""},{"$f":"IFERROR(IF(LEN(Attività_cardine[[#This Row],[Numero di giorni]])=0,\"\",IF(AND(AC$5=$E20,$F20=1),Indicatore_Attività_Cardine,\"\")),\"\")","v":""},{"$f":"IFERROR(IF(LEN(Attività_cardine[[#This Row],[Numero di giorni]])=0,\"\",IF(AND(AD$5=$E20,$F20=1),Indicatore_Attività_Cardine,\"\")),\"\")","v":""},{"$f":"IFERROR(IF(LEN(Attività_cardine[[#This Row],[Numero di giorni]])=0,\"\",IF(AND(AE$5=$E20,$F20=1),Indicatore_Attività_Cardine,\"\")),\"\")","v":""},{"$f":"IFERROR(IF(LEN(Attività_cardine[[#This Row],[Numero di giorni]])=0,\"\",IF(AND(AF$5=$E20,$F20=1),Indicatore_Attività_Cardine,\"\")),\"\")","v":""},{"$f":"IFERROR(IF(LEN(Attività_cardine[[#This Row],[Numero di giorni]])=0,\"\",IF(AND(AG$5=$E20,$F20=1),Indicatore_Attività_Cardine,\"\")),\"\")","v":""},{"$f":"IFERROR(IF(LEN(Attività_cardine[[#This Row],[Numero di giorni]])=0,\"\",IF(AND(AH$5=$E20,$F20=1),Indicatore_Attività_Cardine,\"\")),\"\")","v":""},{"$f":"IFERROR(IF(LEN(Attività_cardine[[#This Row],[Numero di giorni]])=0,\"\",IF(AND(AI$5=$E20,$F20=1),Indicatore_Attività_Cardine,\"\")),\"\")","v":""},{"$f":"IFERROR(IF(LEN(Attività_cardine[[#This Row],[Numero di giorni]])=0,\"\",IF(AND(AJ$5=$E20,$F20=1),Indicatore_Attività_Cardine,\"\")),\"\")","v":""},{"$f":"IFERROR(IF(LEN(Attività_cardine[[#This Row],[Numero di giorni]])=0,\"\",IF(AND(AK$5=$E20,$F20=1),Indicatore_Attività_Cardine,\"\")),\"\")","v":""},{"$f":"IFERROR(IF(LEN(Attività_cardine[[#This Row],[Numero di giorni]])=0,\"\",IF(AND(AL$5=$E20,$F20=1),Indicatore_Attività_Cardine,\"\")),\"\")","v":""},{"$f":"IFERROR(IF(LEN(Attività_cardine[[#This Row],[Numero di giorni]])=0,\"\",IF(AND(AM$5=$E20,$F20=1),Indicatore_Attività_Cardine,\"\")),\"\")","v":""},{"$f":"IFERROR(IF(LEN(Attività_cardine[[#This Row],[Numero di giorni]])=0,\"\",IF(AND(AN$5=$E20,$F20=1),Indicatore_Attività_Cardine,\"\")),\"\")","v":""},{"$f":"IFERROR(IF(LEN(Attività_cardine[[#This Row],[Numero di giorni]])=0,\"\",IF(AND(AO$5=$E20,$F20=1),Indicatore_Attività_Cardine,\"\")),\"\")","v":""},{"$f":"IFERROR(IF(LEN(Attività_cardine[[#This Row],[Numero di giorni]])=0,\"\",IF(AND(AP$5=$E20,$F20=1),Indicatore_Attività_Cardine,\"\")),\"\")","v":""},{"$f":"IFERROR(IF(LEN(Attività_cardine[[#This Row],[Numero di giorni]])=0,\"\",IF(AND(AQ$5=$E20,$F20=1),Indicatore_Attività_Cardine,\"\")),\"\")","v":""},{"$f":"IFERROR(IF(LEN(Attività_cardine[[#This Row],[Numero di giorni]])=0,\"\",IF(AND(AR$5=$E20,$F20=1),Indicatore_Attività_Cardine,\"\")),\"\")","v":""},{"$f":"IFERROR(IF(LEN(Attività_cardine[[#This Row],[Numero di giorni]])=0,\"\",IF(AND(AS$5=$E20,$F20=1),Indicatore_Attività_Cardine,\"\")),\"\")","v":""},{"$f":"IFERROR(IF(LEN(Attività_cardine[[#This Row],[Numero di giorni]])=0,\"\",IF(AND(AT$5=$E20,$F20=1),Indicatore_Attività_Cardine,\"\")),\"\")","v":""},{"$f":"IFERROR(IF(LEN(Attività_cardine[[#This Row],[Numero di giorni]])=0,\"\",IF(AND(AU$5=$E20,$F20=1),Indicatore_Attività_Cardine,\"\")),\"\")","v":""},{"$f":"IFERROR(IF(LEN(Attività_cardine[[#This Row],[Numero di giorni]])=0,\"\",IF(AND(AV$5=$E20,$F20=1),Indicatore_Attività_Cardine,\"\")),\"\")","v":""},{"$f":"IFERROR(IF(LEN(Attività_cardine[[#This Row],[Numero di giorni]])=0,\"\",IF(AND(AW$5=$E20,$F20=1),Indicatore_Attività_Cardine,\"\")),\"\")","v":""},{"$f":"IFERROR(IF(LEN(Attività_cardine[[#This Row],[Numero di giorni]])=0,\"\",IF(AND(AX$5=$E20,$F20=1),Indicatore_Attività_Cardine,\"\")),\"\")","v":""},{"$f":"IFERROR(IF(LEN(Attività_cardine[[#This Row],[Numero di giorni]])=0,\"\",IF(AND(AY$5=$E20,$F20=1),Indicatore_Attività_Cardine,\"\")),\"\")","v":""},{"$f":"IFERROR(IF(LEN(Attività_cardine[[#This Row],[Numero di giorni]])=0,\"\",IF(AND(AZ$5=$E20,$F20=1),Indicatore_Attività_Cardine,\"\")),\"\")","v":""},{"$f":"IFERROR(IF(LEN(Attività_cardine[[#This Row],[Numero di giorni]])=0,\"\",IF(AND(BA$5=$E20,$F20=1),Indicatore_Attività_Cardine,\"\")),\"\")","v":""},{"$f":"IFERROR(IF(LEN(Attività_cardine[[#This Row],[Numero di giorni]])=0,\"\",IF(AND(BB$5=$E20,$F20=1),Indicatore_Attività_Cardine,\"\")),\"\")","v":""},{"$f":"IFERROR(IF(LEN(Attività_cardine[[#This Row],[Numero di giorni]])=0,\"\",IF(AND(BC$5=$E20,$F20=1),Indicatore_Attività_Cardine,\"\")),\"\")","v":""},{"$f":"IFERROR(IF(LEN(Attività_cardine[[#This Row],[Numero di giorni]])=0,\"\",IF(AND(BD$5=$E20,$F20=1),Indicatore_Attività_Cardine,\"\")),\"\")","v":""},{"$f":"IFERROR(IF(LEN(Attività_cardine[[#This Row],[Numero di giorni]])=0,\"\",IF(AND(BE$5=$E20,$F20=1),Indicatore_Attività_Cardine,\"\")),\"\")","v":""},{"$f":"IFERROR(IF(LEN(Attività_cardine[[#This Row],[Numero di giorni]])=0,\"\",IF(AND(BF$5=$E20,$F20=1),Indicatore_Attività_Cardine,\"\")),\"\")","v":""},{"$f":"IFERROR(IF(LEN(Attività_cardine[[#This Row],[Numero di giorni]])=0,\"\",IF(AND(BG$5=$E20,$F20=1),Indicatore_Attività_Cardine,\"\")),\"\")","v":""},{"$f":"IFERROR(IF(LEN(Attività_cardine[[#This Row],[Numero di giorni]])=0,\"\",IF(AND(BH$5=$E20,$F20=1),Indicatore_Attività_Cardine,\"\")),\"\")","v":""},{"$f":"IFERROR(IF(LEN(Attività_cardine[[#This Row],[Numero di giorni]])=0,\"\",IF(AND(BI$5=$E20,$F20=1),Indicatore_Attività_Cardine,\"\")),\"\")","v":""},{"$f":"IFERROR(IF(LEN(Attività_cardine[[#This Row],[Numero di giorni]])=0,\"\",IF(AND(BJ$5=$E20,$F20=1),Indicatore_Attività_Cardine,\"\")),\"\")","v":""},{"$f":"IFERROR(IF(LEN(Attività_cardine[[#This Row],[Numero di giorni]])=0,\"\",IF(AND(BK$5=$E20,$F20=1),Indicatore_Attività_Cardine,\"\")),\"\")","v":""}]
[null,"Attività 1",null,null,{"$f":"TODAY()+15","v":"2018-10-04"},4,null,{"$f":"IFERROR(IF(LEN(Attività_cardine[[#This Row],[Numero di giorni]])=0,\"\",IF(AND(H$5=$E21,$F21=1),Indicatore_Attività_Cardine,\"\")),\"\")","v":""},{"$f":"IFERROR(IF(LEN(Attività_cardine[[#This Row],[Numero di giorni]])=0,\"\",IF(AND(I$5=$E21,$F21=1),Indicatore_Attività_Cardine,\"\")),\"\")","v":""},{"$f":"IFERROR(IF(LEN(Attività_cardine[[#This Row],[Numero di giorni]])=0,\"\",IF(AND(J$5=$E21,$F21=1),Indicatore_Attività_Cardine,\"\")),\"\")","v":""},{"$f":"IFERROR(IF(LEN(Attività_cardine[[#This Row],[Numero di giorni]])=0,\"\",IF(AND(K$5=$E21,$F21=1),Indicatore_Attività_Cardine,\"\")),\"\")","v":""},{"$f":"IFERROR(IF(LEN(Attività_cardine[[#This Row],[Numero di giorni]])=0,\"\",IF(AND(L$5=$E21,$F21=1),Indicatore_Attività_Cardine,\"\")),\"\")","v":""},{"$f":"IFERROR(IF(LEN(Attività_cardine[[#This Row],[Numero di giorni]])=0,\"\",IF(AND(M$5=$E21,$F21=1),Indicatore_Attività_Cardine,\"\")),\"\")","v":""},{"$f":"IFERROR(IF(LEN(Attività_cardine[[#This Row],[Numero di giorni]])=0,\"\",IF(AND(N$5=$E21,$F21=1),Indicatore_Attività_Cardine,\"\")),\"\")","v":""},{"$f":"IFERROR(IF(LEN(Attività_cardine[[#This Row],[Numero di giorni]])=0,\"\",IF(AND(O$5=$E21,$F21=1),Indicatore_Attività_Cardine,\"\")),\"\")","v":""},{"$f":"IFERROR(IF(LEN(Attività_cardine[[#This Row],[Numero di giorni]])=0,\"\",IF(AND(P$5=$E21,$F21=1),Indicatore_Attività_Cardine,\"\")),\"\")","v":""},{"$f":"IFERROR(IF(LEN(Attività_cardine[[#This Row],[Numero di giorni]])=0,\"\",IF(AND(Q$5=$E21,$F21=1),Indicatore_Attività_Cardine,\"\")),\"\")","v":""},{"$f":"IFERROR(IF(LEN(Attività_cardine[[#This Row],[Numero di giorni]])=0,\"\",IF(AND(R$5=$E21,$F21=1),Indicatore_Attività_Cardine,\"\")),\"\")","v":""},{"$f":"IFERROR(IF(LEN(Attività_cardine[[#This Row],[Numero di giorni]])=0,\"\",IF(AND(S$5=$E21,$F21=1),Indicatore_Attività_Cardine,\"\")),\"\")","v":""},{"$f":"IFERROR(IF(LEN(Attività_cardine[[#This Row],[Numero di giorni]])=0,\"\",IF(AND(T$5=$E21,$F21=1),Indicatore_Attività_Cardine,\"\")),\"\")","v":""},{"$f":"IFERROR(IF(LEN(Attività_cardine[[#This Row],[Numero di giorni]])=0,\"\",IF(AND(U$5=$E21,$F21=1),Indicatore_Attività_Cardine,\"\")),\"\")","v":""},{"$f":"IFERROR(IF(LEN(Attività_cardine[[#This Row],[Numero di giorni]])=0,\"\",IF(AND(V$5=$E21,$F21=1),Indicatore_Attività_Cardine,\"\")),\"\")","v":""},{"$f":"IFERROR(IF(LEN(Attività_cardine[[#This Row],[Numero di giorni]])=0,\"\",IF(AND(W$5=$E21,$F21=1),Indicatore_Attività_Cardine,\"\")),\"\")","v":""},{"$f":"IFERROR(IF(LEN(Attività_cardine[[#This Row],[Numero di giorni]])=0,\"\",IF(AND(X$5=$E21,$F21=1),Indicatore_Attività_Cardine,\"\")),\"\")","v":""},{"$f":"IFERROR(IF(LEN(Attività_cardine[[#This Row],[Numero di giorni]])=0,\"\",IF(AND(Y$5=$E21,$F21=1),Indicatore_Attività_Cardine,\"\")),\"\")","v":""},{"$f":"IFERROR(IF(LEN(Attività_cardine[[#This Row],[Numero di giorni]])=0,\"\",IF(AND(Z$5=$E21,$F21=1),Indicatore_Attività_Cardine,\"\")),\"\")","v":""},{"$f":"IFERROR(IF(LEN(Attività_cardine[[#This Row],[Numero di giorni]])=0,\"\",IF(AND(AA$5=$E21,$F21=1),Indicatore_Attività_Cardine,\"\")),\"\")","v":""},{"$f":"IFERROR(IF(LEN(Attività_cardine[[#This Row],[Numero di giorni]])=0,\"\",IF(AND(AB$5=$E21,$F21=1),Indicatore_Attività_Cardine,\"\")),\"\")","v":""},{"$f":"IFERROR(IF(LEN(Attività_cardine[[#This Row],[Numero di giorni]])=0,\"\",IF(AND(AC$5=$E21,$F21=1),Indicatore_Attività_Cardine,\"\")),\"\")","v":""},{"$f":"IFERROR(IF(LEN(Attività_cardine[[#This Row],[Numero di giorni]])=0,\"\",IF(AND(AD$5=$E21,$F21=1),Indicatore_Attività_Cardine,\"\")),\"\")","v":""},{"$f":"IFERROR(IF(LEN(Attività_cardine[[#This Row],[Numero di giorni]])=0,\"\",IF(AND(AE$5=$E21,$F21=1),Indicatore_Attività_Cardine,\"\")),\"\")","v":""},{"$f":"IFERROR(IF(LEN(Attività_cardine[[#This Row],[Numero di giorni]])=0,\"\",IF(AND(AF$5=$E21,$F21=1),Indicatore_Attività_Cardine,\"\")),\"\")","v":""},{"$f":"IFERROR(IF(LEN(Attività_cardine[[#This Row],[Numero di giorni]])=0,\"\",IF(AND(AG$5=$E21,$F21=1),Indicatore_Attività_Cardine,\"\")),\"\")","v":""},{"$f":"IFERROR(IF(LEN(Attività_cardine[[#This Row],[Numero di giorni]])=0,\"\",IF(AND(AH$5=$E21,$F21=1),Indicatore_Attività_Cardine,\"\")),\"\")","v":""},{"$f":"IFERROR(IF(LEN(Attività_cardine[[#This Row],[Numero di giorni]])=0,\"\",IF(AND(AI$5=$E21,$F21=1),Indicatore_Attività_Cardine,\"\")),\"\")","v":""},{"$f":"IFERROR(IF(LEN(Attività_cardine[[#This Row],[Numero di giorni]])=0,\"\",IF(AND(AJ$5=$E21,$F21=1),Indicatore_Attività_Cardine,\"\")),\"\")","v":""},{"$f":"IFERROR(IF(LEN(Attività_cardine[[#This Row],[Numero di giorni]])=0,\"\",IF(AND(AK$5=$E21,$F21=1),Indicatore_Attività_Cardine,\"\")),\"\")","v":""},{"$f":"IFERROR(IF(LEN(Attività_cardine[[#This Row],[Numero di giorni]])=0,\"\",IF(AND(AL$5=$E21,$F21=1),Indicatore_Attività_Cardine,\"\")),\"\")","v":""},{"$f":"IFERROR(IF(LEN(Attività_cardine[[#This Row],[Numero di giorni]])=0,\"\",IF(AND(AM$5=$E21,$F21=1),Indicatore_Attività_Cardine,\"\")),\"\")","v":""},{"$f":"IFERROR(IF(LEN(Attività_cardine[[#This Row],[Numero di giorni]])=0,\"\",IF(AND(AN$5=$E21,$F21=1),Indicatore_Attività_Cardine,\"\")),\"\")","v":""},{"$f":"IFERROR(IF(LEN(Attività_cardine[[#This Row],[Numero di giorni]])=0,\"\",IF(AND(AO$5=$E21,$F21=1),Indicatore_Attività_Cardine,\"\")),\"\")","v":""},{"$f":"IFERROR(IF(LEN(Attività_cardine[[#This Row],[Numero di giorni]])=0,\"\",IF(AND(AP$5=$E21,$F21=1),Indicatore_Attività_Cardine,\"\")),\"\")","v":""},{"$f":"IFERROR(IF(LEN(Attività_cardine[[#This Row],[Numero di giorni]])=0,\"\",IF(AND(AQ$5=$E21,$F21=1),Indicatore_Attività_Cardine,\"\")),\"\")","v":""},{"$f":"IFERROR(IF(LEN(Attività_cardine[[#This Row],[Numero di giorni]])=0,\"\",IF(AND(AR$5=$E21,$F21=1),Indicatore_Attività_Cardine,\"\")),\"\")","v":""},{"$f":"IFERROR(IF(LEN(Attività_cardine[[#This Row],[Numero di giorni]])=0,\"\",IF(AND(AS$5=$E21,$F21=1),Indicatore_Attività_Cardine,\"\")),\"\")","v":""},{"$f":"IFERROR(IF(LEN(Attività_cardine[[#This Row],[Numero di giorni]])=0,\"\",IF(AND(AT$5=$E21,$F21=1),Indicatore_Attività_Cardine,\"\")),\"\")","v":""},{"$f":"IFERROR(IF(LEN(Attività_cardine[[#This Row],[Numero di giorni]])=0,\"\",IF(AND(AU$5=$E21,$F21=1),Indicatore_Attività_Cardine,\"\")),\"\")","v":""},{"$f":"IFERROR(IF(LEN(Attività_cardine[[#This Row],[Numero di giorni]])=0,\"\",IF(AND(AV$5=$E21,$F21=1),Indicatore_Attività_Cardine,\"\")),\"\")","v":""},{"$f":"IFERROR(IF(LEN(Attività_cardine[[#This Row],[Numero di giorni]])=0,\"\",IF(AND(AW$5=$E21,$F21=1),Indicatore_Attività_Cardine,\"\")),\"\")","v":""},{"$f":"IFERROR(IF(LEN(Attività_cardine[[#This Row],[Numero di giorni]])=0,\"\",IF(AND(AX$5=$E21,$F21=1),Indicatore_Attività_Cardine,\"\")),\"\")","v":""},{"$f":"IFERROR(IF(LEN(Attività_cardine[[#This Row],[Numero di giorni]])=0,\"\",IF(AND(AY$5=$E21,$F21=1),Indicatore_Attività_Cardine,\"\")),\"\")","v":""},{"$f":"IFERROR(IF(LEN(Attività_cardine[[#This Row],[Numero di giorni]])=0,\"\",IF(AND(AZ$5=$E21,$F21=1),Indicatore_Attività_Cardine,\"\")),\"\")","v":""},{"$f":"IFERROR(IF(LEN(Attività_cardine[[#This Row],[Numero di giorni]])=0,\"\",IF(AND(BA$5=$E21,$F21=1),Indicatore_Attività_Cardine,\"\")),\"\")","v":""},{"$f":"IFERROR(IF(LEN(Attività_cardine[[#This Row],[Numero di giorni]])=0,\"\",IF(AND(BB$5=$E21,$F21=1),Indicatore_Attività_Cardine,\"\")),\"\")","v":""},{"$f":"IFERROR(IF(LEN(Attività_cardine[[#This Row],[Numero di giorni]])=0,\"\",IF(AND(BC$5=$E21,$F21=1),Indicatore_Attività_Cardine,\"\")),\"\")","v":""},{"$f":"IFERROR(IF(LEN(Attività_cardine[[#This Row],[Numero di giorni]])=0,\"\",IF(AND(BD$5=$E21,$F21=1),Indicatore_Attività_Cardine,\"\")),\"\")","v":""},{"$f":"IFERROR(IF(LEN(Attività_cardine[[#This Row],[Numero di giorni]])=0,\"\",IF(AND(BE$5=$E21,$F21=1),Indicatore_Attività_Cardine,\"\")),\"\")","v":""},{"$f":"IFERROR(IF(LEN(Attività_cardine[[#This Row],[Numero di giorni]])=0,\"\",IF(AND(BF$5=$E21,$F21=1),Indicatore_Attività_Cardine,\"\")),\"\")","v":""},{"$f":"IFERROR(IF(LEN(Attività_cardine[[#This Row],[Numero di giorni]])=0,\"\",IF(AND(BG$5=$E21,$F21=1),Indicatore_Attività_Cardine,\"\")),\"\")","v":""},{"$f":"IFERROR(IF(LEN(Attività_cardine[[#This Row],[Numero di giorni]])=0,\"\",IF(AND(BH$5=$E21,$F21=1),Indicatore_Attività_Cardine,\"\")),\"\")","v":""},{"$f":"IFERROR(IF(LEN(Attività_cardine[[#This Row],[Numero di giorni]])=0,\"\",IF(AND(BI$5=$E21,$F21=1),Indicatore_Attività_Cardine,\"\")),\"\")","v":""},{"$f":"IFERROR(IF(LEN(Attività_cardine[[#This Row],[Numero di giorni]])=0,\"\",IF(AND(BJ$5=$E21,$F21=1),Indicatore_Attività_Cardine,\"\")),\"\")","v":""},{"$f":"IFERROR(IF(LEN(Attività_cardine[[#This Row],[Numero di giorni]])=0,\"\",IF(AND(BK$5=$E21,$F21=1),Indicatore_Attività_Cardine,\"\")),\"\")","v":""}]
[null,"Attività 2",null,null,{"$f":"TODAY()+19","v":"2018-10-08"},14,null,{"$f":"IFERROR(IF(LEN(Attività_cardine[[#This Row],[Numero di giorni]])=0,\"\",IF(AND(H$5=$E22,$F22=1),Indicatore_Attività_Cardine,\"\")),\"\")","v":""},{"$f":"IFERROR(IF(LEN(Attività_cardine[[#This Row],[Numero di giorni]])=0,\"\",IF(AND(I$5=$E22,$F22=1),Indicatore_Attività_Cardine,\"\")),\"\")","v":""},{"$f":"IFERROR(IF(LEN(Attività_cardine[[#This Row],[Numero di giorni]])=0,\"\",IF(AND(J$5=$E22,$F22=1),Indicatore_Attività_Cardine,\"\")),\"\")","v":""},{"$f":"IFERROR(IF(LEN(Attività_cardine[[#This Row],[Numero di giorni]])=0,\"\",IF(AND(K$5=$E22,$F22=1),Indicatore_Attività_Cardine,\"\")),\"\")","v":""},{"$f":"IFERROR(IF(LEN(Attività_cardine[[#This Row],[Numero di giorni]])=0,\"\",IF(AND(L$5=$E22,$F22=1),Indicatore_Attività_Cardine,\"\")),\"\")","v":""},{"$f":"IFERROR(IF(LEN(Attività_cardine[[#This Row],[Numero di giorni]])=0,\"\",IF(AND(M$5=$E22,$F22=1),Indicatore_Attività_Cardine,\"\")),\"\")","v":""},{"$f":"IFERROR(IF(LEN(Attività_cardine[[#This Row],[Numero di giorni]])=0,\"\",IF(AND(N$5=$E22,$F22=1),Indicatore_Attività_Cardine,\"\")),\"\")","v":""},{"$f":"IFERROR(IF(LEN(Attività_cardine[[#This Row],[Numero di giorni]])=0,\"\",IF(AND(O$5=$E22,$F22=1),Indicatore_Attività_Cardine,\"\")),\"\")","v":""},{"$f":"IFERROR(IF(LEN(Attività_cardine[[#This Row],[Numero di giorni]])=0,\"\",IF(AND(P$5=$E22,$F22=1),Indicatore_Attività_Cardine,\"\")),\"\")","v":""},{"$f":"IFERROR(IF(LEN(Attività_cardine[[#This Row],[Numero di giorni]])=0,\"\",IF(AND(Q$5=$E22,$F22=1),Indicatore_Attività_Cardine,\"\")),\"\")","v":""},{"$f":"IFERROR(IF(LEN(Attività_cardine[[#This Row],[Numero di giorni]])=0,\"\",IF(AND(R$5=$E22,$F22=1),Indicatore_Attività_Cardine,\"\")),\"\")","v":""},{"$f":"IFERROR(IF(LEN(Attività_cardine[[#This Row],[Numero di giorni]])=0,\"\",IF(AND(S$5=$E22,$F22=1),Indicatore_Attività_Cardine,\"\")),\"\")","v":""},{"$f":"IFERROR(IF(LEN(Attività_cardine[[#This Row],[Numero di giorni]])=0,\"\",IF(AND(T$5=$E22,$F22=1),Indicatore_Attività_Cardine,\"\")),\"\")","v":""},{"$f":"IFERROR(IF(LEN(Attività_cardine[[#This Row],[Numero di giorni]])=0,\"\",IF(AND(U$5=$E22,$F22=1),Indicatore_Attività_Cardine,\"\")),\"\")","v":""},{"$f":"IFERROR(IF(LEN(Attività_cardine[[#This Row],[Numero di giorni]])=0,\"\",IF(AND(V$5=$E22,$F22=1),Indicatore_Attività_Cardine,\"\")),\"\")","v":""},{"$f":"IFERROR(IF(LEN(Attività_cardine[[#This Row],[Numero di giorni]])=0,\"\",IF(AND(W$5=$E22,$F22=1),Indicatore_Attività_Cardine,\"\")),\"\")","v":""},{"$f":"IFERROR(IF(LEN(Attività_cardine[[#This Row],[Numero di giorni]])=0,\"\",IF(AND(X$5=$E22,$F22=1),Indicatore_Attività_Cardine,\"\")),\"\")","v":""},{"$f":"IFERROR(IF(LEN(Attività_cardine[[#This Row],[Numero di giorni]])=0,\"\",IF(AND(Y$5=$E22,$F22=1),Indicatore_Attività_Cardine,\"\")),\"\")","v":""},{"$f":"IFERROR(IF(LEN(Attività_cardine[[#This Row],[Numero di giorni]])=0,\"\",IF(AND(Z$5=$E22,$F22=1),Indicatore_Attività_Cardine,\"\")),\"\")","v":""},{"$f":"IFERROR(IF(LEN(Attività_cardine[[#This Row],[Numero di giorni]])=0,\"\",IF(AND(AA$5=$E22,$F22=1),Indicatore_Attività_Cardine,\"\")),\"\")","v":""},{"$f":"IFERROR(IF(LEN(Attività_cardine[[#This Row],[Numero di giorni]])=0,\"\",IF(AND(AB$5=$E22,$F22=1),Indicatore_Attività_Cardine,\"\")),\"\")","v":""},{"$f":"IFERROR(IF(LEN(Attività_cardine[[#This Row],[Numero di giorni]])=0,\"\",IF(AND(AC$5=$E22,$F22=1),Indicatore_Attività_Cardine,\"\")),\"\")","v":""},{"$f":"IFERROR(IF(LEN(Attività_cardine[[#This Row],[Numero di giorni]])=0,\"\",IF(AND(AD$5=$E22,$F22=1),Indicatore_Attività_Cardine,\"\")),\"\")","v":""},{"$f":"IFERROR(IF(LEN(Attività_cardine[[#This Row],[Numero di giorni]])=0,\"\",IF(AND(AE$5=$E22,$F22=1),Indicatore_Attività_Cardine,\"\")),\"\")","v":""},{"$f":"IFERROR(IF(LEN(Attività_cardine[[#This Row],[Numero di giorni]])=0,\"\",IF(AND(AF$5=$E22,$F22=1),Indicatore_Attività_Cardine,\"\")),\"\")","v":""},{"$f":"IFERROR(IF(LEN(Attività_cardine[[#This Row],[Numero di giorni]])=0,\"\",IF(AND(AG$5=$E22,$F22=1),Indicatore_Attività_Cardine,\"\")),\"\")","v":""},{"$f":"IFERROR(IF(LEN(Attività_cardine[[#This Row],[Numero di giorni]])=0,\"\",IF(AND(AH$5=$E22,$F22=1),Indicatore_Attività_Cardine,\"\")),\"\")","v":""},{"$f":"IFERROR(IF(LEN(Attività_cardine[[#This Row],[Numero di giorni]])=0,\"\",IF(AND(AI$5=$E22,$F22=1),Indicatore_Attività_Cardine,\"\")),\"\")","v":""},{"$f":"IFERROR(IF(LEN(Attività_cardine[[#This Row],[Numero di giorni]])=0,\"\",IF(AND(AJ$5=$E22,$F22=1),Indicatore_Attività_Cardine,\"\")),\"\")","v":""},{"$f":"IFERROR(IF(LEN(Attività_cardine[[#This Row],[Numero di giorni]])=0,\"\",IF(AND(AK$5=$E22,$F22=1),Indicatore_Attività_Cardine,\"\")),\"\")","v":""},{"$f":"IFERROR(IF(LEN(Attività_cardine[[#This Row],[Numero di giorni]])=0,\"\",IF(AND(AL$5=$E22,$F22=1),Indicatore_Attività_Cardine,\"\")),\"\")","v":""},{"$f":"IFERROR(IF(LEN(Attività_cardine[[#This Row],[Numero di giorni]])=0,\"\",IF(AND(AM$5=$E22,$F22=1),Indicatore_Attività_Cardine,\"\")),\"\")","v":""},{"$f":"IFERROR(IF(LEN(Attività_cardine[[#This Row],[Numero di giorni]])=0,\"\",IF(AND(AN$5=$E22,$F22=1),Indicatore_Attività_Cardine,\"\")),\"\")","v":""},{"$f":"IFERROR(IF(LEN(Attività_cardine[[#This Row],[Numero di giorni]])=0,\"\",IF(AND(AO$5=$E22,$F22=1),Indicatore_Attività_Cardine,\"\")),\"\")","v":""},{"$f":"IFERROR(IF(LEN(Attività_cardine[[#This Row],[Numero di giorni]])=0,\"\",IF(AND(AP$5=$E22,$F22=1),Indicatore_Attività_Cardine,\"\")),\"\")","v":""},{"$f":"IFERROR(IF(LEN(Attività_cardine[[#This Row],[Numero di giorni]])=0,\"\",IF(AND(AQ$5=$E22,$F22=1),Indicatore_Attività_Cardine,\"\")),\"\")","v":""},{"$f":"IFERROR(IF(LEN(Attività_cardine[[#This Row],[Numero di giorni]])=0,\"\",IF(AND(AR$5=$E22,$F22=1),Indicatore_Attività_Cardine,\"\")),\"\")","v":""},{"$f":"IFERROR(IF(LEN(Attività_cardine[[#This Row],[Numero di giorni]])=0,\"\",IF(AND(AS$5=$E22,$F22=1),Indicatore_Attività_Cardine,\"\")),\"\")","v":""},{"$f":"IFERROR(IF(LEN(Attività_cardine[[#This Row],[Numero di giorni]])=0,\"\",IF(AND(AT$5=$E22,$F22=1),Indicatore_Attività_Cardine,\"\")),\"\")","v":""},{"$f":"IFERROR(IF(LEN(Attività_cardine[[#This Row],[Numero di giorni]])=0,\"\",IF(AND(AU$5=$E22,$F22=1),Indicatore_Attività_Cardine,\"\")),\"\")","v":""},{"$f":"IFERROR(IF(LEN(Attività_cardine[[#This Row],[Numero di giorni]])=0,\"\",IF(AND(AV$5=$E22,$F22=1),Indicatore_Attività_Cardine,\"\")),\"\")","v":""},{"$f":"IFERROR(IF(LEN(Attività_cardine[[#This Row],[Numero di giorni]])=0,\"\",IF(AND(AW$5=$E22,$F22=1),Indicatore_Attività_Cardine,\"\")),\"\")","v":""},{"$f":"IFERROR(IF(LEN(Attività_cardine[[#This Row],[Numero di giorni]])=0,\"\",IF(AND(AX$5=$E22,$F22=1),Indicatore_Attività_Cardine,\"\")),\"\")","v":""},{"$f":"IFERROR(IF(LEN(Attività_cardine[[#This Row],[Numero di giorni]])=0,\"\",IF(AND(AY$5=$E22,$F22=1),Indicatore_Attività_Cardine,\"\")),\"\")","v":""},{"$f":"IFERROR(IF(LEN(Attività_cardine[[#This Row],[Numero di giorni]])=0,\"\",IF(AND(AZ$5=$E22,$F22=1),Indicatore_Attività_Cardine,\"\")),\"\")","v":""},{"$f":"IFERROR(IF(LEN(Attività_cardine[[#This Row],[Numero di giorni]])=0,\"\",IF(AND(BA$5=$E22,$F22=1),Indicatore_Attività_Cardine,\"\")),\"\")","v":""},{"$f":"IFERROR(IF(LEN(Attività_cardine[[#This Row],[Numero di giorni]])=0,\"\",IF(AND(BB$5=$E22,$F22=1),Indicatore_Attività_Cardine,\"\")),\"\")","v":""},{"$f":"IFERROR(IF(LEN(Attività_cardine[[#This Row],[Numero di giorni]])=0,\"\",IF(AND(BC$5=$E22,$F22=1),Indicatore_Attività_Cardine,\"\")),\"\")","v":""},{"$f":"IFERROR(IF(LEN(Attività_cardine[[#This Row],[Numero di giorni]])=0,\"\",IF(AND(BD$5=$E22,$F22=1),Indicatore_Attività_Cardine,\"\")),\"\")","v":""},{"$f":"IFERROR(IF(LEN(Attività_cardine[[#This Row],[Numero di giorni]])=0,\"\",IF(AND(BE$5=$E22,$F22=1),Indicatore_Attività_Cardine,\"\")),\"\")","v":""},{"$f":"IFERROR(IF(LEN(Attività_cardine[[#This Row],[Numero di giorni]])=0,\"\",IF(AND(BF$5=$E22,$F22=1),Indicatore_Attività_Cardine,\"\")),\"\")","v":""},{"$f":"IFERROR(IF(LEN(Attività_cardine[[#This Row],[Numero di giorni]])=0,\"\",IF(AND(BG$5=$E22,$F22=1),Indicatore_Attività_Cardine,\"\")),\"\")","v":""},{"$f":"IFERROR(IF(LEN(Attività_cardine[[#This Row],[Numero di giorni]])=0,\"\",IF(AND(BH$5=$E22,$F22=1),Indicatore_Attività_Cardine,\"\")),\"\")","v":""},{"$f":"IFERROR(IF(LEN(Attività_cardine[[#This Row],[Numero di giorni]])=0,\"\",IF(AND(BI$5=$E22,$F22=1),Indicatore_Attività_Cardine,\"\")),\"\")","v":""},{"$f":"IFERROR(IF(LEN(Attività_cardine[[#This Row],[Numero di giorni]])=0,\"\",IF(AND(BJ$5=$E22,$F22=1),Indicatore_Attività_Cardine,\"\")),\"\")","v":""},{"$f":"IFERROR(IF(LEN(Attività_cardine[[#This Row],[Numero di giorni]])=0,\"\",IF(AND(BK$5=$E22,$F22=1),Indicatore_Attività_Cardine,\"\")),\"\")","v":""}]
[null,"Attività 3",null,null,{"$f":"TODAY()+35","v":"2018-10-24"},6,null,{"$f":"IFERROR(IF(LEN(Attività_cardine[[#This Row],[Numero di giorni]])=0,\"\",IF(AND(H$5=$E23,$F23=1),Indicatore_Attività_Cardine,\"\")),\"\")","v":""},{"$f":"IFERROR(IF(LEN(Attività_cardine[[#This Row],[Numero di giorni]])=0,\"\",IF(AND(I$5=$E23,$F23=1),Indicatore_Attività_Cardine,\"\")),\"\")","v":""},{"$f":"IFERROR(IF(LEN(Attività_cardine[[#This Row],[Numero di giorni]])=0,\"\",IF(AND(J$5=$E23,$F23=1),Indicatore_Attività_Cardine,\"\")),\"\")","v":""},{"$f":"IFERROR(IF(LEN(Attività_cardine[[#This Row],[Numero di giorni]])=0,\"\",IF(AND(K$5=$E23,$F23=1),Indicatore_Attività_Cardine,\"\")),\"\")","v":""},{"$f":"IFERROR(IF(LEN(Attività_cardine[[#This Row],[Numero di giorni]])=0,\"\",IF(AND(L$5=$E23,$F23=1),Indicatore_Attività_Cardine,\"\")),\"\")","v":""},{"$f":"IFERROR(IF(LEN(Attività_cardine[[#This Row],[Numero di giorni]])=0,\"\",IF(AND(M$5=$E23,$F23=1),Indicatore_Attività_Cardine,\"\")),\"\")","v":""},{"$f":"IFERROR(IF(LEN(Attività_cardine[[#This Row],[Numero di giorni]])=0,\"\",IF(AND(N$5=$E23,$F23=1),Indicatore_Attività_Cardine,\"\")),\"\")","v":""},{"$f":"IFERROR(IF(LEN(Attività_cardine[[#This Row],[Numero di giorni]])=0,\"\",IF(AND(O$5=$E23,$F23=1),Indicatore_Attività_Cardine,\"\")),\"\")","v":""},{"$f":"IFERROR(IF(LEN(Attività_cardine[[#This Row],[Numero di giorni]])=0,\"\",IF(AND(P$5=$E23,$F23=1),Indicatore_Attività_Cardine,\"\")),\"\")","v":""},{"$f":"IFERROR(IF(LEN(Attività_cardine[[#This Row],[Numero di giorni]])=0,\"\",IF(AND(Q$5=$E23,$F23=1),Indicatore_Attività_Cardine,\"\")),\"\")","v":""},{"$f":"IFERROR(IF(LEN(Attività_cardine[[#This Row],[Numero di giorni]])=0,\"\",IF(AND(R$5=$E23,$F23=1),Indicatore_Attività_Cardine,\"\")),\"\")","v":""},{"$f":"IFERROR(IF(LEN(Attività_cardine[[#This Row],[Numero di giorni]])=0,\"\",IF(AND(S$5=$E23,$F23=1),Indicatore_Attività_Cardine,\"\")),\"\")","v":""},{"$f":"IFERROR(IF(LEN(Attività_cardine[[#This Row],[Numero di giorni]])=0,\"\",IF(AND(T$5=$E23,$F23=1),Indicatore_Attività_Cardine,\"\")),\"\")","v":""},{"$f":"IFERROR(IF(LEN(Attività_cardine[[#This Row],[Numero di giorni]])=0,\"\",IF(AND(U$5=$E23,$F23=1),Indicatore_Attività_Cardine,\"\")),\"\")","v":""},{"$f":"IFERROR(IF(LEN(Attività_cardine[[#This Row],[Numero di giorni]])=0,\"\",IF(AND(V$5=$E23,$F23=1),Indicatore_Attività_Cardine,\"\")),\"\")","v":""},{"$f":"IFERROR(IF(LEN(Attività_cardine[[#This Row],[Numero di giorni]])=0,\"\",IF(AND(W$5=$E23,$F23=1),Indicatore_Attività_Cardine,\"\")),\"\")","v":""},{"$f":"IFERROR(IF(LEN(Attività_cardine[[#This Row],[Numero di giorni]])=0,\"\",IF(AND(X$5=$E23,$F23=1),Indicatore_Attività_Cardine,\"\")),\"\")","v":""},{"$f":"IFERROR(IF(LEN(Attività_cardine[[#This Row],[Numero di giorni]])=0,\"\",IF(AND(Y$5=$E23,$F23=1),Indicatore_Attività_Cardine,\"\")),\"\")","v":""},{"$f":"IFERROR(IF(LEN(Attività_cardine[[#This Row],[Numero di giorni]])=0,\"\",IF(AND(Z$5=$E23,$F23=1),Indicatore_Attività_Cardine,\"\")),\"\")","v":""},{"$f":"IFERROR(IF(LEN(Attività_cardine[[#This Row],[Numero di giorni]])=0,\"\",IF(AND(AA$5=$E23,$F23=1),Indicatore_Attività_Cardine,\"\")),\"\")","v":""},{"$f":"IFERROR(IF(LEN(Attività_cardine[[#This Row],[Numero di giorni]])=0,\"\",IF(AND(AB$5=$E23,$F23=1),Indicatore_Attività_Cardine,\"\")),\"\")","v":""},{"$f":"IFERROR(IF(LEN(Attività_cardine[[#This Row],[Numero di giorni]])=0,\"\",IF(AND(AC$5=$E23,$F23=1),Indicatore_Attività_Cardine,\"\")),\"\")","v":""},{"$f":"IFERROR(IF(LEN(Attività_cardine[[#This Row],[Numero di giorni]])=0,\"\",IF(AND(AD$5=$E23,$F23=1),Indicatore_Attività_Cardine,\"\")),\"\")","v":""},{"$f":"IFERROR(IF(LEN(Attività_cardine[[#This Row],[Numero di giorni]])=0,\"\",IF(AND(AE$5=$E23,$F23=1),Indicatore_Attività_Cardine,\"\")),\"\")","v":""},{"$f":"IFERROR(IF(LEN(Attività_cardine[[#This Row],[Numero di giorni]])=0,\"\",IF(AND(AF$5=$E23,$F23=1),Indicatore_Attività_Cardine,\"\")),\"\")","v":""},{"$f":"IFERROR(IF(LEN(Attività_cardine[[#This Row],[Numero di giorni]])=0,\"\",IF(AND(AG$5=$E23,$F23=1),Indicatore_Attività_Cardine,\"\")),\"\")","v":""},{"$f":"IFERROR(IF(LEN(Attività_cardine[[#This Row],[Numero di giorni]])=0,\"\",IF(AND(AH$5=$E23,$F23=1),Indicatore_Attività_Cardine,\"\")),\"\")","v":""},{"$f":"IFERROR(IF(LEN(Attività_cardine[[#This Row],[Numero di giorni]])=0,\"\",IF(AND(AI$5=$E23,$F23=1),Indicatore_Attività_Cardine,\"\")),\"\")","v":""},{"$f":"IFERROR(IF(LEN(Attività_cardine[[#This Row],[Numero di giorni]])=0,\"\",IF(AND(AJ$5=$E23,$F23=1),Indicatore_Attività_Cardine,\"\")),\"\")","v":""},{"$f":"IFERROR(IF(LEN(Attività_cardine[[#This Row],[Numero di giorni]])=0,\"\",IF(AND(AK$5=$E23,$F23=1),Indicatore_Attività_Cardine,\"\")),\"\")","v":""},{"$f":"IFERROR(IF(LEN(Attività_cardine[[#This Row],[Numero di giorni]])=0,\"\",IF(AND(AL$5=$E23,$F23=1),Indicatore_Attività_Cardine,\"\")),\"\")","v":""},{"$f":"IFERROR(IF(LEN(Attività_cardine[[#This Row],[Numero di giorni]])=0,\"\",IF(AND(AM$5=$E23,$F23=1),Indicatore_Attività_Cardine,\"\")),\"\")","v":""},{"$f":"IFERROR(IF(LEN(Attività_cardine[[#This Row],[Numero di giorni]])=0,\"\",IF(AND(AN$5=$E23,$F23=1),Indicatore_Attività_Cardine,\"\")),\"\")","v":""},{"$f":"IFERROR(IF(LEN(Attività_cardine[[#This Row],[Numero di giorni]])=0,\"\",IF(AND(AO$5=$E23,$F23=1),Indicatore_Attività_Cardine,\"\")),\"\")","v":""},{"$f":"IFERROR(IF(LEN(Attività_cardine[[#This Row],[Numero di giorni]])=0,\"\",IF(AND(AP$5=$E23,$F23=1),Indicatore_Attività_Cardine,\"\")),\"\")","v":""},{"$f":"IFERROR(IF(LEN(Attività_cardine[[#This Row],[Numero di giorni]])=0,\"\",IF(AND(AQ$5=$E23,$F23=1),Indicatore_Attività_Cardine,\"\")),\"\")","v":""},{"$f":"IFERROR(IF(LEN(Attività_cardine[[#This Row],[Numero di giorni]])=0,\"\",IF(AND(AR$5=$E23,$F23=1),Indicatore_Attività_Cardine,\"\")),\"\")","v":""},{"$f":"IFERROR(IF(LEN(Attività_cardine[[#This Row],[Numero di giorni]])=0,\"\",IF(AND(AS$5=$E23,$F23=1),Indicatore_Attività_Cardine,\"\")),\"\")","v":""},{"$f":"IFERROR(IF(LEN(Attività_cardine[[#This Row],[Numero di giorni]])=0,\"\",IF(AND(AT$5=$E23,$F23=1),Indicatore_Attività_Cardine,\"\")),\"\")","v":""},{"$f":"IFERROR(IF(LEN(Attività_cardine[[#This Row],[Numero di giorni]])=0,\"\",IF(AND(AU$5=$E23,$F23=1),Indicatore_Attività_Cardine,\"\")),\"\")","v":""},{"$f":"IFERROR(IF(LEN(Attività_cardine[[#This Row],[Numero di giorni]])=0,\"\",IF(AND(AV$5=$E23,$F23=1),Indicatore_Attività_Cardine,\"\")),\"\")","v":""},{"$f":"IFERROR(IF(LEN(Attività_cardine[[#This Row],[Numero di giorni]])=0,\"\",IF(AND(AW$5=$E23,$F23=1),Indicatore_Attività_Cardine,\"\")),\"\")","v":""},{"$f":"IFERROR(IF(LEN(Attività_cardine[[#This Row],[Numero di giorni]])=0,\"\",IF(AND(AX$5=$E23,$F23=1),Indicatore_Attività_Cardine,\"\")),\"\")","v":""},{"$f":"IFERROR(IF(LEN(Attività_cardine[[#This Row],[Numero di giorni]])=0,\"\",IF(AND(AY$5=$E23,$F23=1),Indicatore_Attività_Cardine,\"\")),\"\")","v":""},{"$f":"IFERROR(IF(LEN(Attività_cardine[[#This Row],[Numero di giorni]])=0,\"\",IF(AND(AZ$5=$E23,$F23=1),Indicatore_Attività_Cardine,\"\")),\"\")","v":""},{"$f":"IFERROR(IF(LEN(Attività_cardine[[#This Row],[Numero di giorni]])=0,\"\",IF(AND(BA$5=$E23,$F23=1),Indicatore_Attività_Cardine,\"\")),\"\")","v":""},{"$f":"IFERROR(IF(LEN(Attività_cardine[[#This Row],[Numero di giorni]])=0,\"\",IF(AND(BB$5=$E23,$F23=1),Indicatore_Attività_Cardine,\"\")),\"\")","v":""},{"$f":"IFERROR(IF(LEN(Attività_cardine[[#This Row],[Numero di giorni]])=0,\"\",IF(AND(BC$5=$E23,$F23=1),Indicatore_Attività_Cardine,\"\")),\"\")","v":""},{"$f":"IFERROR(IF(LEN(Attività_cardine[[#This Row],[Numero di giorni]])=0,\"\",IF(AND(BD$5=$E23,$F23=1),Indicatore_Attività_Cardine,\"\")),\"\")","v":""},{"$f":"IFERROR(IF(LEN(Attività_cardine[[#This Row],[Numero di giorni]])=0,\"\",IF(AND(BE$5=$E23,$F23=1),Indicatore_Attività_Cardine,\"\")),\"\")","v":""},{"$f":"IFERROR(IF(LEN(Attività_cardine[[#This Row],[Numero di giorni]])=0,\"\",IF(AND(BF$5=$E23,$F23=1),Indicatore_Attività_Cardine,\"\")),\"\")","v":""},{"$f":"IFERROR(IF(LEN(Attività_cardine[[#This Row],[Numero di giorni]])=0,\"\",IF(AND(BG$5=$E23,$F23=1),Indicatore_Attività_Cardine,\"\")),\"\")","v":""},{"$f":"IFERROR(IF(LEN(Attività_cardine[[#This Row],[Numero di giorni]])=0,\"\",IF(AND(BH$5=$E23,$F23=1),Indicatore_Attività_Cardine,\"\")),\"\")","v":""},{"$f":"IFERROR(IF(LEN(Attività_cardine[[#This Row],[Numero di giorni]])=0,\"\",IF(AND(BI$5=$E23,$F23=1),Indicatore_Attività_Cardine,\"\")),\"\")","v":""},{"$f":"IFERROR(IF(LEN(Attività_cardine[[#This Row],[Numero di giorni]])=0,\"\",IF(AND(BJ$5=$E23,$F23=1),Indicatore_Attività_Cardine,\"\")),\"\")","v":""},{"$f":"IFERROR(IF(LEN(Attività_cardine[[#This Row],[Numero di giorni]])=0,\"\",IF(AND(BK$5=$E23,$F23=1),Indicatore_Attività_Cardine,\"\")),\"\")","v":""}]
[null,"Attività 4",null,null,{"$f":"TODAY()+48","v":"2018-11-06"},3,null,{"$f":"IFERROR(IF(LEN(Attività_cardine[[#This Row],[Numero di giorni]])=0,\"\",IF(AND(H$5=$E24,$F24=1),Indicatore_Attività_Cardine,\"\")),\"\")","v":""},{"$f":"IFERROR(IF(LEN(Attività_cardine[[#This Row],[Numero di giorni]])=0,\"\",IF(AND(I$5=$E24,$F24=1),Indicatore_Attività_Cardine,\"\")),\"\")","v":""},{"$f":"IFERROR(IF(LEN(Attività_cardine[[#This Row],[Numero di giorni]])=0,\"\",IF(AND(J$5=$E24,$F24=1),Indicatore_Attività_Cardine,\"\")),\"\")","v":""},{"$f":"IFERROR(IF(LEN(Attività_cardine[[#This Row],[Numero di giorni]])=0,\"\",IF(AND(K$5=$E24,$F24=1),Indicatore_Attività_Cardine,\"\")),\"\")","v":""},{"$f":"IFERROR(IF(LEN(Attività_cardine[[#This Row],[Numero di giorni]])=0,\"\",IF(AND(L$5=$E24,$F24=1),Indicatore_Attività_Cardine,\"\")),\"\")","v":""},{"$f":"IFERROR(IF(LEN(Attività_cardine[[#This Row],[Numero di giorni]])=0,\"\",IF(AND(M$5=$E24,$F24=1),Indicatore_Attività_Cardine,\"\")),\"\")","v":""},{"$f":"IFERROR(IF(LEN(Attività_cardine[[#This Row],[Numero di giorni]])=0,\"\",IF(AND(N$5=$E24,$F24=1),Indicatore_Attività_Cardine,\"\")),\"\")","v":""},{"$f":"IFERROR(IF(LEN(Attività_cardine[[#This Row],[Numero di giorni]])=0,\"\",IF(AND(O$5=$E24,$F24=1),Indicatore_Attività_Cardine,\"\")),\"\")","v":""},{"$f":"IFERROR(IF(LEN(Attività_cardine[[#This Row],[Numero di giorni]])=0,\"\",IF(AND(P$5=$E24,$F24=1),Indicatore_Attività_Cardine,\"\")),\"\")","v":""},{"$f":"IFERROR(IF(LEN(Attività_cardine[[#This Row],[Numero di giorni]])=0,\"\",IF(AND(Q$5=$E24,$F24=1),Indicatore_Attività_Cardine,\"\")),\"\")","v":""},{"$f":"IFERROR(IF(LEN(Attività_cardine[[#This Row],[Numero di giorni]])=0,\"\",IF(AND(R$5=$E24,$F24=1),Indicatore_Attività_Cardine,\"\")),\"\")","v":""},{"$f":"IFERROR(IF(LEN(Attività_cardine[[#This Row],[Numero di giorni]])=0,\"\",IF(AND(S$5=$E24,$F24=1),Indicatore_Attività_Cardine,\"\")),\"\")","v":""},{"$f":"IFERROR(IF(LEN(Attività_cardine[[#This Row],[Numero di giorni]])=0,\"\",IF(AND(T$5=$E24,$F24=1),Indicatore_Attività_Cardine,\"\")),\"\")","v":""},{"$f":"IFERROR(IF(LEN(Attività_cardine[[#This Row],[Numero di giorni]])=0,\"\",IF(AND(U$5=$E24,$F24=1),Indicatore_Attività_Cardine,\"\")),\"\")","v":""},{"$f":"IFERROR(IF(LEN(Attività_cardine[[#This Row],[Numero di giorni]])=0,\"\",IF(AND(V$5=$E24,$F24=1),Indicatore_Attività_Cardine,\"\")),\"\")","v":""},{"$f":"IFERROR(IF(LEN(Attività_cardine[[#This Row],[Numero di giorni]])=0,\"\",IF(AND(W$5=$E24,$F24=1),Indicatore_Attività_Cardine,\"\")),\"\")","v":""},{"$f":"IFERROR(IF(LEN(Attività_cardine[[#This Row],[Numero di giorni]])=0,\"\",IF(AND(X$5=$E24,$F24=1),Indicatore_Attività_Cardine,\"\")),\"\")","v":""},{"$f":"IFERROR(IF(LEN(Attività_cardine[[#This Row],[Numero di giorni]])=0,\"\",IF(AND(Y$5=$E24,$F24=1),Indicatore_Attività_Cardine,\"\")),\"\")","v":""},{"$f":"IFERROR(IF(LEN(Attività_cardine[[#This Row],[Numero di giorni]])=0,\"\",IF(AND(Z$5=$E24,$F24=1),Indicatore_Attività_Cardine,\"\")),\"\")","v":""},{"$f":"IFERROR(IF(LEN(Attività_cardine[[#This Row],[Numero di giorni]])=0,\"\",IF(AND(AA$5=$E24,$F24=1),Indicatore_Attività_Cardine,\"\")),\"\")","v":""},{"$f":"IFERROR(IF(LEN(Attività_cardine[[#This Row],[Numero di giorni]])=0,\"\",IF(AND(AB$5=$E24,$F24=1),Indicatore_Attività_Cardine,\"\")),\"\")","v":""},{"$f":"IFERROR(IF(LEN(Attività_cardine[[#This Row],[Numero di giorni]])=0,\"\",IF(AND(AC$5=$E24,$F24=1),Indicatore_Attività_Cardine,\"\")),\"\")","v":""},{"$f":"IFERROR(IF(LEN(Attività_cardine[[#This Row],[Numero di giorni]])=0,\"\",IF(AND(AD$5=$E24,$F24=1),Indicatore_Attività_Cardine,\"\")),\"\")","v":""},{"$f":"IFERROR(IF(LEN(Attività_cardine[[#This Row],[Numero di giorni]])=0,\"\",IF(AND(AE$5=$E24,$F24=1),Indicatore_Attività_Cardine,\"\")),\"\")","v":""},{"$f":"IFERROR(IF(LEN(Attività_cardine[[#This Row],[Numero di giorni]])=0,\"\",IF(AND(AF$5=$E24,$F24=1),Indicatore_Attività_Cardine,\"\")),\"\")","v":""},{"$f":"IFERROR(IF(LEN(Attività_cardine[[#This Row],[Numero di giorni]])=0,\"\",IF(AND(AG$5=$E24,$F24=1),Indicatore_Attività_Cardine,\"\")),\"\")","v":""},{"$f":"IFERROR(IF(LEN(Attività_cardine[[#This Row],[Numero di giorni]])=0,\"\",IF(AND(AH$5=$E24,$F24=1),Indicatore_Attività_Cardine,\"\")),\"\")","v":""},{"$f":"IFERROR(IF(LEN(Attività_cardine[[#This Row],[Numero di giorni]])=0,\"\",IF(AND(AI$5=$E24,$F24=1),Indicatore_Attività_Cardine,\"\")),\"\")","v":""},{"$f":"IFERROR(IF(LEN(Attività_cardine[[#This Row],[Numero di giorni]])=0,\"\",IF(AND(AJ$5=$E24,$F24=1),Indicatore_Attività_Cardine,\"\")),\"\")","v":""},{"$f":"IFERROR(IF(LEN(Attività_cardine[[#This Row],[Numero di giorni]])=0,\"\",IF(AND(AK$5=$E24,$F24=1),Indicatore_Attività_Cardine,\"\")),\"\")","v":""},{"$f":"IFERROR(IF(LEN(Attività_cardine[[#This Row],[Numero di giorni]])=0,\"\",IF(AND(AL$5=$E24,$F24=1),Indicatore_Attività_Cardine,\"\")),\"\")","v":""},{"$f":"IFERROR(IF(LEN(Attività_cardine[[#This Row],[Numero di giorni]])=0,\"\",IF(AND(AM$5=$E24,$F24=1),Indicatore_Attività_Cardine,\"\")),\"\")","v":""},{"$f":"IFERROR(IF(LEN(Attività_cardine[[#This Row],[Numero di giorni]])=0,\"\",IF(AND(AN$5=$E24,$F24=1),Indicatore_Attività_Cardine,\"\")),\"\")","v":""},{"$f":"IFERROR(IF(LEN(Attività_cardine[[#This Row],[Numero di giorni]])=0,\"\",IF(AND(AO$5=$E24,$F24=1),Indicatore_Attività_Cardine,\"\")),\"\")","v":""},{"$f":"IFERROR(IF(LEN(Attività_cardine[[#This Row],[Numero di giorni]])=0,\"\",IF(AND(AP$5=$E24,$F24=1),Indicatore_Attività_Cardine,\"\")),\"\")","v":""},{"$f":"IFERROR(IF(LEN(Attività_cardine[[#This Row],[Numero di giorni]])=0,\"\",IF(AND(AQ$5=$E24,$F24=1),Indicatore_Attività_Cardine,\"\")),\"\")","v":""},{"$f":"IFERROR(IF(LEN(Attività_cardine[[#This Row],[Numero di giorni]])=0,\"\",IF(AND(AR$5=$E24,$F24=1),Indicatore_Attività_Cardine,\"\")),\"\")","v":""},{"$f":"IFERROR(IF(LEN(Attività_cardine[[#This Row],[Numero di giorni]])=0,\"\",IF(AND(AS$5=$E24,$F24=1),Indicatore_Attività_Cardine,\"\")),\"\")","v":""},{"$f":"IFERROR(IF(LEN(Attività_cardine[[#This Row],[Numero di giorni]])=0,\"\",IF(AND(AT$5=$E24,$F24=1),Indicatore_Attività_Cardine,\"\")),\"\")","v":""},{"$f":"IFERROR(IF(LEN(Attività_cardine[[#This Row],[Numero di giorni]])=0,\"\",IF(AND(AU$5=$E24,$F24=1),Indicatore_Attività_Cardine,\"\")),\"\")","v":""},{"$f":"IFERROR(IF(LEN(Attività_cardine[[#This Row],[Numero di giorni]])=0,\"\",IF(AND(AV$5=$E24,$F24=1),Indicatore_Attività_Cardine,\"\")),\"\")","v":""},{"$f":"IFERROR(IF(LEN(Attività_cardine[[#This Row],[Numero di giorni]])=0,\"\",IF(AND(AW$5=$E24,$F24=1),Indicatore_Attività_Cardine,\"\")),\"\")","v":""},{"$f":"IFERROR(IF(LEN(Attività_cardine[[#This Row],[Numero di giorni]])=0,\"\",IF(AND(AX$5=$E24,$F24=1),Indicatore_Attività_Cardine,\"\")),\"\")","v":""},{"$f":"IFERROR(IF(LEN(Attività_cardine[[#This Row],[Numero di giorni]])=0,\"\",IF(AND(AY$5=$E24,$F24=1),Indicatore_Attività_Cardine,\"\")),\"\")","v":""},{"$f":"IFERROR(IF(LEN(Attività_cardine[[#This Row],[Numero di giorni]])=0,\"\",IF(AND(AZ$5=$E24,$F24=1),Indicatore_Attività_Cardine,\"\")),\"\")","v":""},{"$f":"IFERROR(IF(LEN(Attività_cardine[[#This Row],[Numero di giorni]])=0,\"\",IF(AND(BA$5=$E24,$F24=1),Indicatore_Attività_Cardine,\"\")),\"\")","v":""},{"$f":"IFERROR(IF(LEN(Attività_cardine[[#This Row],[Numero di giorni]])=0,\"\",IF(AND(BB$5=$E24,$F24=1),Indicatore_Attività_Cardine,\"\")),\"\")","v":""},{"$f":"IFERROR(IF(LEN(Attività_cardine[[#This Row],[Numero di giorni]])=0,\"\",IF(AND(BC$5=$E24,$F24=1),Indicatore_Attività_Cardine,\"\")),\"\")","v":""},{"$f":"IFERROR(IF(LEN(Attività_cardine[[#This Row],[Numero di giorni]])=0,\"\",IF(AND(BD$5=$E24,$F24=1),Indicatore_Attività_Cardine,\"\")),\"\")","v":""},{"$f":"IFERROR(IF(LEN(Attività_cardine[[#This Row],[Numero di giorni]])=0,\"\",IF(AND(BE$5=$E24,$F24=1),Indicatore_Attività_Cardine,\"\")),\"\")","v":""},{"$f":"IFERROR(IF(LEN(Attività_cardine[[#This Row],[Numero di giorni]])=0,\"\",IF(AND(BF$5=$E24,$F24=1),Indicatore_Attività_Cardine,\"\")),\"\")","v":""},{"$f":"IFERROR(IF(LEN(Attività_cardine[[#This Row],[Numero di giorni]])=0,\"\",IF(AND(BG$5=$E24,$F24=1),Indicatore_Attività_Cardine,\"\")),\"\")","v":""},{"$f":"IFERROR(IF(LEN(Attività_cardine[[#This Row],[Numero di giorni]])=0,\"\",IF(AND(BH$5=$E24,$F24=1),Indicatore_Attività_Cardine,\"\")),\"\")","v":""},{"$f":"IFERROR(IF(LEN(Attività_cardine[[#This Row],[Numero di giorni]])=0,\"\",IF(AND(BI$5=$E24,$F24=1),Indicatore_Attività_Cardine,\"\")),\"\")","v":""},{"$f":"IFERROR(IF(LEN(Attività_cardine[[#This Row],[Numero di giorni]])=0,\"\",IF(AND(BJ$5=$E24,$F24=1),Indicatore_Attività_Cardine,\"\")),\"\")","v":""},{"$f":"IFERROR(IF(LEN(Attività_cardine[[#This Row],[Numero di giorni]])=0,\"\",IF(AND(BK$5=$E24,$F24=1),Indicatore_Attività_Cardine,\"\")),\"\")","v":""}]
[null,"Attività 5",null,null,{"$f":"TODAY()+40","v":"2018-10-29"},19,null,{"$f":"IFERROR(IF(LEN(Attività_cardine[[#This Row],[Numero di giorni]])=0,\"\",IF(AND(H$5=$E25,$F25=1),Indicatore_Attività_Cardine,\"\")),\"\")","v":""},{"$f":"IFERROR(IF(LEN(Attività_cardine[[#This Row],[Numero di giorni]])=0,\"\",IF(AND(I$5=$E25,$F25=1),Indicatore_Attività_Cardine,\"\")),\"\")","v":""},{"$f":"IFERROR(IF(LEN(Attività_cardine[[#This Row],[Numero di giorni]])=0,\"\",IF(AND(J$5=$E25,$F25=1),Indicatore_Attività_Cardine,\"\")),\"\")","v":""},{"$f":"IFERROR(IF(LEN(Attività_cardine[[#This Row],[Numero di giorni]])=0,\"\",IF(AND(K$5=$E25,$F25=1),Indicatore_Attività_Cardine,\"\")),\"\")","v":""},{"$f":"IFERROR(IF(LEN(Attività_cardine[[#This Row],[Numero di giorni]])=0,\"\",IF(AND(L$5=$E25,$F25=1),Indicatore_Attività_Cardine,\"\")),\"\")","v":""},{"$f":"IFERROR(IF(LEN(Attività_cardine[[#This Row],[Numero di giorni]])=0,\"\",IF(AND(M$5=$E25,$F25=1),Indicatore_Attività_Cardine,\"\")),\"\")","v":""},{"$f":"IFERROR(IF(LEN(Attività_cardine[[#This Row],[Numero di giorni]])=0,\"\",IF(AND(N$5=$E25,$F25=1),Indicatore_Attività_Cardine,\"\")),\"\")","v":""},{"$f":"IFERROR(IF(LEN(Attività_cardine[[#This Row],[Numero di giorni]])=0,\"\",IF(AND(O$5=$E25,$F25=1),Indicatore_Attività_Cardine,\"\")),\"\")","v":""},{"$f":"IFERROR(IF(LEN(Attività_cardine[[#This Row],[Numero di giorni]])=0,\"\",IF(AND(P$5=$E25,$F25=1),Indicatore_Attività_Cardine,\"\")),\"\")","v":""},{"$f":"IFERROR(IF(LEN(Attività_cardine[[#This Row],[Numero di giorni]])=0,\"\",IF(AND(Q$5=$E25,$F25=1),Indicatore_Attività_Cardine,\"\")),\"\")","v":""},{"$f":"IFERROR(IF(LEN(Attività_cardine[[#This Row],[Numero di giorni]])=0,\"\",IF(AND(R$5=$E25,$F25=1),Indicatore_Attività_Cardine,\"\")),\"\")","v":""},{"$f":"IFERROR(IF(LEN(Attività_cardine[[#This Row],[Numero di giorni]])=0,\"\",IF(AND(S$5=$E25,$F25=1),Indicatore_Attività_Cardine,\"\")),\"\")","v":""},{"$f":"IFERROR(IF(LEN(Attività_cardine[[#This Row],[Numero di giorni]])=0,\"\",IF(AND(T$5=$E25,$F25=1),Indicatore_Attività_Cardine,\"\")),\"\")","v":""},{"$f":"IFERROR(IF(LEN(Attività_cardine[[#This Row],[Numero di giorni]])=0,\"\",IF(AND(U$5=$E25,$F25=1),Indicatore_Attività_Cardine,\"\")),\"\")","v":""},{"$f":"IFERROR(IF(LEN(Attività_cardine[[#This Row],[Numero di giorni]])=0,\"\",IF(AND(V$5=$E25,$F25=1),Indicatore_Attività_Cardine,\"\")),\"\")","v":""},{"$f":"IFERROR(IF(LEN(Attività_cardine[[#This Row],[Numero di giorni]])=0,\"\",IF(AND(W$5=$E25,$F25=1),Indicatore_Attività_Cardine,\"\")),\"\")","v":""},{"$f":"IFERROR(IF(LEN(Attività_cardine[[#This Row],[Numero di giorni]])=0,\"\",IF(AND(X$5=$E25,$F25=1),Indicatore_Attività_Cardine,\"\")),\"\")","v":""},{"$f":"IFERROR(IF(LEN(Attività_cardine[[#This Row],[Numero di giorni]])=0,\"\",IF(AND(Y$5=$E25,$F25=1),Indicatore_Attività_Cardine,\"\")),\"\")","v":""},{"$f":"IFERROR(IF(LEN(Attività_cardine[[#This Row],[Numero di giorni]])=0,\"\",IF(AND(Z$5=$E25,$F25=1),Indicatore_Attività_Cardine,\"\")),\"\")","v":""},{"$f":"IFERROR(IF(LEN(Attività_cardine[[#This Row],[Numero di giorni]])=0,\"\",IF(AND(AA$5=$E25,$F25=1),Indicatore_Attività_Cardine,\"\")),\"\")","v":""},{"$f":"IFERROR(IF(LEN(Attività_cardine[[#This Row],[Numero di giorni]])=0,\"\",IF(AND(AB$5=$E25,$F25=1),Indicatore_Attività_Cardine,\"\")),\"\")","v":""},{"$f":"IFERROR(IF(LEN(Attività_cardine[[#This Row],[Numero di giorni]])=0,\"\",IF(AND(AC$5=$E25,$F25=1),Indicatore_Attività_Cardine,\"\")),\"\")","v":""},{"$f":"IFERROR(IF(LEN(Attività_cardine[[#This Row],[Numero di giorni]])=0,\"\",IF(AND(AD$5=$E25,$F25=1),Indicatore_Attività_Cardine,\"\")),\"\")","v":""},{"$f":"IFERROR(IF(LEN(Attività_cardine[[#This Row],[Numero di giorni]])=0,\"\",IF(AND(AE$5=$E25,$F25=1),Indicatore_Attività_Cardine,\"\")),\"\")","v":""},{"$f":"IFERROR(IF(LEN(Attività_cardine[[#This Row],[Numero di giorni]])=0,\"\",IF(AND(AF$5=$E25,$F25=1),Indicatore_Attività_Cardine,\"\")),\"\")","v":""},{"$f":"IFERROR(IF(LEN(Attività_cardine[[#This Row],[Numero di giorni]])=0,\"\",IF(AND(AG$5=$E25,$F25=1),Indicatore_Attività_Cardine,\"\")),\"\")","v":""},{"$f":"IFERROR(IF(LEN(Attività_cardine[[#This Row],[Numero di giorni]])=0,\"\",IF(AND(AH$5=$E25,$F25=1),Indicatore_Attività_Cardine,\"\")),\"\")","v":""},{"$f":"IFERROR(IF(LEN(Attività_cardine[[#This Row],[Numero di giorni]])=0,\"\",IF(AND(AI$5=$E25,$F25=1),Indicatore_Attività_Cardine,\"\")),\"\")","v":""},{"$f":"IFERROR(IF(LEN(Attività_cardine[[#This Row],[Numero di giorni]])=0,\"\",IF(AND(AJ$5=$E25,$F25=1),Indicatore_Attività_Cardine,\"\")),\"\")","v":""},{"$f":"IFERROR(IF(LEN(Attività_cardine[[#This Row],[Numero di giorni]])=0,\"\",IF(AND(AK$5=$E25,$F25=1),Indicatore_Attività_Cardine,\"\")),\"\")","v":""},{"$f":"IFERROR(IF(LEN(Attività_cardine[[#This Row],[Numero di giorni]])=0,\"\",IF(AND(AL$5=$E25,$F25=1),Indicatore_Attività_Cardine,\"\")),\"\")","v":""},{"$f":"IFERROR(IF(LEN(Attività_cardine[[#This Row],[Numero di giorni]])=0,\"\",IF(AND(AM$5=$E25,$F25=1),Indicatore_Attività_Cardine,\"\")),\"\")","v":""},{"$f":"IFERROR(IF(LEN(Attività_cardine[[#This Row],[Numero di giorni]])=0,\"\",IF(AND(AN$5=$E25,$F25=1),Indicatore_Attività_Cardine,\"\")),\"\")","v":""},{"$f":"IFERROR(IF(LEN(Attività_cardine[[#This Row],[Numero di giorni]])=0,\"\",IF(AND(AO$5=$E25,$F25=1),Indicatore_Attività_Cardine,\"\")),\"\")","v":""},{"$f":"IFERROR(IF(LEN(Attività_cardine[[#This Row],[Numero di giorni]])=0,\"\",IF(AND(AP$5=$E25,$F25=1),Indicatore_Attività_Cardine,\"\")),\"\")","v":""},{"$f":"IFERROR(IF(LEN(Attività_cardine[[#This Row],[Numero di giorni]])=0,\"\",IF(AND(AQ$5=$E25,$F25=1),Indicatore_Attività_Cardine,\"\")),\"\")","v":""},{"$f":"IFERROR(IF(LEN(Attività_cardine[[#This Row],[Numero di giorni]])=0,\"\",IF(AND(AR$5=$E25,$F25=1),Indicatore_Attività_Cardine,\"\")),\"\")","v":""},{"$f":"IFERROR(IF(LEN(Attività_cardine[[#This Row],[Numero di giorni]])=0,\"\",IF(AND(AS$5=$E25,$F25=1),Indicatore_Attività_Cardine,\"\")),\"\")","v":""},{"$f":"IFERROR(IF(LEN(Attività_cardine[[#This Row],[Numero di giorni]])=0,\"\",IF(AND(AT$5=$E25,$F25=1),Indicatore_Attività_Cardine,\"\")),\"\")","v":""},{"$f":"IFERROR(IF(LEN(Attività_cardine[[#This Row],[Numero di giorni]])=0,\"\",IF(AND(AU$5=$E25,$F25=1),Indicatore_Attività_Cardine,\"\")),\"\")","v":""},{"$f":"IFERROR(IF(LEN(Attività_cardine[[#This Row],[Numero di giorni]])=0,\"\",IF(AND(AV$5=$E25,$F25=1),Indicatore_Attività_Cardine,\"\")),\"\")","v":""},{"$f":"IFERROR(IF(LEN(Attività_cardine[[#This Row],[Numero di giorni]])=0,\"\",IF(AND(AW$5=$E25,$F25=1),Indicatore_Attività_Cardine,\"\")),\"\")","v":""},{"$f":"IFERROR(IF(LEN(Attività_cardine[[#This Row],[Numero di giorni]])=0,\"\",IF(AND(AX$5=$E25,$F25=1),Indicatore_Attività_Cardine,\"\")),\"\")","v":""},{"$f":"IFERROR(IF(LEN(Attività_cardine[[#This Row],[Numero di giorni]])=0,\"\",IF(AND(AY$5=$E25,$F25=1),Indicatore_Attività_Cardine,\"\")),\"\")","v":""},{"$f":"IFERROR(IF(LEN(Attività_cardine[[#This Row],[Numero di giorni]])=0,\"\",IF(AND(AZ$5=$E25,$F25=1),Indicatore_Attività_Cardine,\"\")),\"\")","v":""},{"$f":"IFERROR(IF(LEN(Attività_cardine[[#This Row],[Numero di giorni]])=0,\"\",IF(AND(BA$5=$E25,$F25=1),Indicatore_Attività_Cardine,\"\")),\"\")","v":""},{"$f":"IFERROR(IF(LEN(Attività_cardine[[#This Row],[Numero di giorni]])=0,\"\",IF(AND(BB$5=$E25,$F25=1),Indicatore_Attività_Cardine,\"\")),\"\")","v":""},{"$f":"IFERROR(IF(LEN(Attività_cardine[[#This Row],[Numero di giorni]])=0,\"\",IF(AND(BC$5=$E25,$F25=1),Indicatore_Attività_Cardine,\"\")),\"\")","v":""},{"$f":"IFERROR(IF(LEN(Attività_cardine[[#This Row],[Numero di giorni]])=0,\"\",IF(AND(BD$5=$E25,$F25=1),Indicatore_Attività_Cardine,\"\")),\"\")","v":""},{"$f":"IFERROR(IF(LEN(Attività_cardine[[#This Row],[Numero di giorni]])=0,\"\",IF(AND(BE$5=$E25,$F25=1),Indicatore_Attività_Cardine,\"\")),\"\")","v":""},{"$f":"IFERROR(IF(LEN(Attività_cardine[[#This Row],[Numero di giorni]])=0,\"\",IF(AND(BF$5=$E25,$F25=1),Indicatore_Attività_Cardine,\"\")),\"\")","v":""},{"$f":"IFERROR(IF(LEN(Attività_cardine[[#This Row],[Numero di giorni]])=0,\"\",IF(AND(BG$5=$E25,$F25=1),Indicatore_Attività_Cardine,\"\")),\"\")","v":""},{"$f":"IFERROR(IF(LEN(Attività_cardine[[#This Row],[Numero di giorni]])=0,\"\",IF(AND(BH$5=$E25,$F25=1),Indicatore_Attività_Cardine,\"\")),\"\")","v":""},{"$f":"IFERROR(IF(LEN(Attività_cardine[[#This Row],[Numero di giorni]])=0,\"\",IF(AND(BI$5=$E25,$F25=1),Indicatore_Attività_Cardine,\"\")),\"\")","v":""},{"$f":"IFERROR(IF(LEN(Attività_cardine[[#This Row],[Numero di giorni]])=0,\"\",IF(AND(BJ$5=$E25,$F25=1),Indicatore_Attività_Cardine,\"\")),\"\")","v":""},{"$f":"IFERROR(IF(LEN(Attività_cardine[[#This Row],[Numero di giorni]])=0,\"\",IF(AND(BK$5=$E25,$F25=1),Indicatore_Attività_Cardine,\"\")),\"\")","v":""}]
[null,"Titolo 4",{"$nulls":5},{"$f":"IFERROR(IF(LEN(Attività_cardine[[#This Row],[Numero di giorni]])=0,\"\",IF(AND(H$5=$E26,$F26=1),Indicatore_Attività_Cardine,\"\")),\"\")","v":""},{"$f":"IFERROR(IF(LEN(Attività_cardine[[#This Row],[Numero di giorni]])=0,\"\",IF(AND(I$5=$E26,$F26=1),Indicatore_Attività_Cardine,\"\")),\"\")","v":""},{"$f":"IFERROR(IF(LEN(Attività_cardine[[#This Row],[Numero di giorni]])=0,\"\",IF(AND(J$5=$E26,$F26=1),Indicatore_Attività_Cardine,\"\")),\"\")","v":""},{"$f":"IFERROR(IF(LEN(Attività_cardine[[#This Row],[Numero di giorni]])=0,\"\",IF(AND(K$5=$E26,$F26=1),Indicatore_Attività_Cardine,\"\")),\"\")","v":""},{"$f":"IFERROR(IF(LEN(Attività_cardine[[#This Row],[Numero di giorni]])=0,\"\",IF(AND(L$5=$E26,$F26=1),Indicatore_Attività_Cardine,\"\")),\"\")","v":""},{"$f":"IFERROR(IF(LEN(Attività_cardine[[#This Row],[Numero di giorni]])=0,\"\",IF(AND(M$5=$E26,$F26=1),Indicatore_Attività_Cardine,\"\")),\"\")","v":""},{"$f":"IFERROR(IF(LEN(Attività_cardine[[#This Row],[Numero di giorni]])=0,\"\",IF(AND(N$5=$E26,$F26=1),Indicatore_Attività_Cardine,\"\")),\"\")","v":""},{"$f":"IFERROR(IF(LEN(Attività_cardine[[#This Row],[Numero di giorni]])=0,\"\",IF(AND(O$5=$E26,$F26=1),Indicatore_Attività_Cardine,\"\")),\"\")","v":""},{"$f":"IFERROR(IF(LEN(Attività_cardine[[#This Row],[Numero di giorni]])=0,\"\",IF(AND(P$5=$E26,$F26=1),Indicatore_Attività_Cardine,\"\")),\"\")","v":""},{"$f":"IFERROR(IF(LEN(Attività_cardine[[#This Row],[Numero di giorni]])=0,\"\",IF(AND(Q$5=$E26,$F26=1),Indicatore_Attività_Cardine,\"\")),\"\")","v":""},{"$f":"IFERROR(IF(LEN(Attività_cardine[[#This Row],[Numero di giorni]])=0,\"\",IF(AND(R$5=$E26,$F26=1),Indicatore_Attività_Cardine,\"\")),\"\")","v":""},{"$f":"IFERROR(IF(LEN(Attività_cardine[[#This Row],[Numero di giorni]])=0,\"\",IF(AND(S$5=$E26,$F26=1),Indicatore_Attività_Cardine,\"\")),\"\")","v":""},{"$f":"IFERROR(IF(LEN(Attività_cardine[[#This Row],[Numero di giorni]])=0,\"\",IF(AND(T$5=$E26,$F26=1),Indicatore_Attività_Cardine,\"\")),\"\")","v":""},{"$f":"IFERROR(IF(LEN(Attività_cardine[[#This Row],[Numero di giorni]])=0,\"\",IF(AND(U$5=$E26,$F26=1),Indicatore_Attività_Cardine,\"\")),\"\")","v":""},{"$f":"IFERROR(IF(LEN(Attività_cardine[[#This Row],[Numero di giorni]])=0,\"\",IF(AND(V$5=$E26,$F26=1),Indicatore_Attività_Cardine,\"\")),\"\")","v":""},{"$f":"IFERROR(IF(LEN(Attività_cardine[[#This Row],[Numero di giorni]])=0,\"\",IF(AND(W$5=$E26,$F26=1),Indicatore_Attività_Cardine,\"\")),\"\")","v":""},{"$f":"IFERROR(IF(LEN(Attività_cardine[[#This Row],[Numero di giorni]])=0,\"\",IF(AND(X$5=$E26,$F26=1),Indicatore_Attività_Cardine,\"\")),\"\")","v":""},{"$f":"IFERROR(IF(LEN(Attività_cardine[[#This Row],[Numero di giorni]])=0,\"\",IF(AND(Y$5=$E26,$F26=1),Indicatore_Attività_Cardine,\"\")),\"\")","v":""},{"$f":"IFERROR(IF(LEN(Attività_cardine[[#This Row],[Numero di giorni]])=0,\"\",IF(AND(Z$5=$E26,$F26=1),Indicatore_Attività_Cardine,\"\")),\"\")","v":""},{"$f":"IFERROR(IF(LEN(Attività_cardine[[#This Row],[Numero di giorni]])=0,\"\",IF(AND(AA$5=$E26,$F26=1),Indicatore_Attività_Cardine,\"\")),\"\")","v":""},{"$f":"IFERROR(IF(LEN(Attività_cardine[[#This Row],[Numero di giorni]])=0,\"\",IF(AND(AB$5=$E26,$F26=1),Indicatore_Attività_Cardine,\"\")),\"\")","v":""},{"$f":"IFERROR(IF(LEN(Attività_cardine[[#This Row],[Numero di giorni]])=0,\"\",IF(AND(AC$5=$E26,$F26=1),Indicatore_Attività_Cardine,\"\")),\"\")","v":""},{"$f":"IFERROR(IF(LEN(Attività_cardine[[#This Row],[Numero di giorni]])=0,\"\",IF(AND(AD$5=$E26,$F26=1),Indicatore_Attività_Cardine,\"\")),\"\")","v":""},{"$f":"IFERROR(IF(LEN(Attività_cardine[[#This Row],[Numero di giorni]])=0,\"\",IF(AND(AE$5=$E26,$F26=1),Indicatore_Attività_Cardine,\"\")),\"\")","v":""},{"$f":"IFERROR(IF(LEN(Attività_cardine[[#This Row],[Numero di giorni]])=0,\"\",IF(AND(AF$5=$E26,$F26=1),Indicatore_Attività_Cardine,\"\")),\"\")","v":""},{"$f":"IFERROR(IF(LEN(Attività_cardine[[#This Row],[Numero di giorni]])=0,\"\",IF(AND(AG$5=$E26,$F26=1),Indicatore_Attività_Cardine,\"\")),\"\")","v":""},{"$f":"IFERROR(IF(LEN(Attività_cardine[[#This Row],[Numero di giorni]])=0,\"\",IF(AND(AH$5=$E26,$F26=1),Indicatore_Attività_Cardine,\"\")),\"\")","v":""},{"$f":"IFERROR(IF(LEN(Attività_cardine[[#This Row],[Numero di giorni]])=0,\"\",IF(AND(AI$5=$E26,$F26=1),Indicatore_Attività_Cardine,\"\")),\"\")","v":""},{"$f":"IFERROR(IF(LEN(Attività_cardine[[#This Row],[Numero di giorni]])=0,\"\",IF(AND(AJ$5=$E26,$F26=1),Indicatore_Attività_Cardine,\"\")),\"\")","v":""},{"$f":"IFERROR(IF(LEN(Attività_cardine[[#This Row],[Numero di giorni]])=0,\"\",IF(AND(AK$5=$E26,$F26=1),Indicatore_Attività_Cardine,\"\")),\"\")","v":""},{"$f":"IFERROR(IF(LEN(Attività_cardine[[#This Row],[Numero di giorni]])=0,\"\",IF(AND(AL$5=$E26,$F26=1),Indicatore_Attività_Cardine,\"\")),\"\")","v":""},{"$f":"IFERROR(IF(LEN(Attività_cardine[[#This Row],[Numero di giorni]])=0,\"\",IF(AND(AM$5=$E26,$F26=1),Indicatore_Attività_Cardine,\"\")),\"\")","v":""},{"$f":"IFERROR(IF(LEN(Attività_cardine[[#This Row],[Numero di giorni]])=0,\"\",IF(AND(AN$5=$E26,$F26=1),Indicatore_Attività_Cardine,\"\")),\"\")","v":""},{"$f":"IFERROR(IF(LEN(Attività_cardine[[#This Row],[Numero di giorni]])=0,\"\",IF(AND(AO$5=$E26,$F26=1),Indicatore_Attività_Cardine,\"\")),\"\")","v":""},{"$f":"IFERROR(IF(LEN(Attività_cardine[[#This Row],[Numero di giorni]])=0,\"\",IF(AND(AP$5=$E26,$F26=1),Indicatore_Attività_Cardine,\"\")),\"\")","v":""},{"$f":"IFERROR(IF(LEN(Attività_cardine[[#This Row],[Numero di giorni]])=0,\"\",IF(AND(AQ$5=$E26,$F26=1),Indicatore_Attività_Cardine,\"\")),\"\")","v":""},{"$f":"IFERROR(IF(LEN(Attività_cardine[[#This Row],[Numero di giorni]])=0,\"\",IF(AND(AR$5=$E26,$F26=1),Indicatore_Attività_Cardine,\"\")),\"\")","v":""},{"$f":"IFERROR(IF(LEN(Attività_cardine[[#This Row],[Numero di giorni]])=0,\"\",IF(AND(AS$5=$E26,$F26=1),Indicatore_Attività_Cardine,\"\")),\"\")","v":""},{"$f":"IFERROR(IF(LEN(Attività_cardine[[#This Row],[Numero di giorni]])=0,\"\",IF(AND(AT$5=$E26,$F26=1),Indicatore_Attività_Cardine,\"\")),\"\")","v":""},{"$f":"IFERROR(IF(LEN(Attività_cardine[[#This Row],[Numero di giorni]])=0,\"\",IF(AND(AU$5=$E26,$F26=1),Indicatore_Attività_Cardine,\"\")),\"\")","v":""},{"$f":"IFERROR(IF(LEN(Attività_cardine[[#This Row],[Numero di giorni]])=0,\"\",IF(AND(AV$5=$E26,$F26=1),Indicatore_Attività_Cardine,\"\")),\"\")","v":""},{"$f":"IFERROR(IF(LEN(Attività_cardine[[#This Row],[Numero di giorni]])=0,\"\",IF(AND(AW$5=$E26,$F26=1),Indicatore_Attività_Cardine,\"\")),\"\")","v":""},{"$f":"IFERROR(IF(LEN(Attività_cardine[[#This Row],[Numero di giorni]])=0,\"\",IF(AND(AX$5=$E26,$F26=1),Indicatore_Attività_Cardine,\"\")),\"\")","v":""},{"$f":"IFERROR(IF(LEN(Attività_cardine[[#This Row],[Numero di giorni]])=0,\"\",IF(AND(AY$5=$E26,$F26=1),Indicatore_Attività_Cardine,\"\")),\"\")","v":""},{"$f":"IFERROR(IF(LEN(Attività_cardine[[#This Row],[Numero di giorni]])=0,\"\",IF(AND(AZ$5=$E26,$F26=1),Indicatore_Attività_Cardine,\"\")),\"\")","v":""},{"$f":"IFERROR(IF(LEN(Attività_cardine[[#This Row],[Numero di giorni]])=0,\"\",IF(AND(BA$5=$E26,$F26=1),Indicatore_Attività_Cardine,\"\")),\"\")","v":""},{"$f":"IFERROR(IF(LEN(Attività_cardine[[#This Row],[Numero di giorni]])=0,\"\",IF(AND(BB$5=$E26,$F26=1),Indicatore_Attività_Cardine,\"\")),\"\")","v":""},{"$f":"IFERROR(IF(LEN(Attività_cardine[[#This Row],[Numero di giorni]])=0,\"\",IF(AND(BC$5=$E26,$F26=1),Indicatore_Attività_Cardine,\"\")),\"\")","v":""},{"$f":"IFERROR(IF(LEN(Attività_cardine[[#This Row],[Numero di giorni]])=0,\"\",IF(AND(BD$5=$E26,$F26=1),Indicatore_Attività_Cardine,\"\")),\"\")","v":""},{"$f":"IFERROR(IF(LEN(Attività_cardine[[#This Row],[Numero di giorni]])=0,\"\",IF(AND(BE$5=$E26,$F26=1),Indicatore_Attività_Cardine,\"\")),\"\")","v":""},{"$f":"IFERROR(IF(LEN(Attività_cardine[[#This Row],[Numero di giorni]])=0,\"\",IF(AND(BF$5=$E26,$F26=1),Indicatore_Attività_Cardine,\"\")),\"\")","v":""},{"$f":"IFERROR(IF(LEN(Attività_cardine[[#This Row],[Numero di giorni]])=0,\"\",IF(AND(BG$5=$E26,$F26=1),Indicatore_Attività_Cardine,\"\")),\"\")","v":""},{"$f":"IFERROR(IF(LEN(Attività_cardine[[#This Row],[Numero di giorni]])=0,\"\",IF(AND(BH$5=$E26,$F26=1),Indicatore_Attività_Cardine,\"\")),\"\")","v":""},{"$f":"IFERROR(IF(LEN(Attività_cardine[[#This Row],[Numero di giorni]])=0,\"\",IF(AND(BI$5=$E26,$F26=1),Indicatore_Attività_Cardine,\"\")),\"\")","v":""},{"$f":"IFERROR(IF(LEN(Attività_cardine[[#This Row],[Numero di giorni]])=0,\"\",IF(AND(BJ$5=$E26,$F26=1),Indicatore_Attività_Cardine,\"\")),\"\")","v":""},{"$f":"IFERROR(IF(LEN(Attività_cardine[[#This Row],[Numero di giorni]])=0,\"\",IF(AND(BK$5=$E26,$F26=1),Indicatore_Attività_Cardine,\"\")),\"\")","v":""}]
[null,"Attività 1",null,null,{"$f":"TODAY()+37","v":"2018-10-26"},15,null,{"$f":"IFERROR(IF(LEN(Attività_cardine[[#This Row],[Numero di giorni]])=0,\"\",IF(AND(H$5=$E27,$F27=1),Indicatore_Attività_Cardine,\"\")),\"\")","v":""},{"$f":"IFERROR(IF(LEN(Attività_cardine[[#This Row],[Numero di giorni]])=0,\"\",IF(AND(I$5=$E27,$F27=1),Indicatore_Attività_Cardine,\"\")),\"\")","v":""},{"$f":"IFERROR(IF(LEN(Attività_cardine[[#This Row],[Numero di giorni]])=0,\"\",IF(AND(J$5=$E27,$F27=1),Indicatore_Attività_Cardine,\"\")),\"\")","v":""},{"$f":"IFERROR(IF(LEN(Attività_cardine[[#This Row],[Numero di giorni]])=0,\"\",IF(AND(K$5=$E27,$F27=1),Indicatore_Attività_Cardine,\"\")),\"\")","v":""},{"$f":"IFERROR(IF(LEN(Attività_cardine[[#This Row],[Numero di giorni]])=0,\"\",IF(AND(L$5=$E27,$F27=1),Indicatore_Attività_Cardine,\"\")),\"\")","v":""},{"$f":"IFERROR(IF(LEN(Attività_cardine[[#This Row],[Numero di giorni]])=0,\"\",IF(AND(M$5=$E27,$F27=1),Indicatore_Attività_Cardine,\"\")),\"\")","v":""},{"$f":"IFERROR(IF(LEN(Attività_cardine[[#This Row],[Numero di giorni]])=0,\"\",IF(AND(N$5=$E27,$F27=1),Indicatore_Attività_Cardine,\"\")),\"\")","v":""},{"$f":"IFERROR(IF(LEN(Attività_cardine[[#This Row],[Numero di giorni]])=0,\"\",IF(AND(O$5=$E27,$F27=1),Indicatore_Attività_Cardine,\"\")),\"\")","v":""},{"$f":"IFERROR(IF(LEN(Attività_cardine[[#This Row],[Numero di giorni]])=0,\"\",IF(AND(P$5=$E27,$F27=1),Indicatore_Attività_Cardine,\"\")),\"\")","v":""},{"$f":"IFERROR(IF(LEN(Attività_cardine[[#This Row],[Numero di giorni]])=0,\"\",IF(AND(Q$5=$E27,$F27=1),Indicatore_Attività_Cardine,\"\")),\"\")","v":""},{"$f":"IFERROR(IF(LEN(Attività_cardine[[#This Row],[Numero di giorni]])=0,\"\",IF(AND(R$5=$E27,$F27=1),Indicatore_Attività_Cardine,\"\")),\"\")","v":""},{"$f":"IFERROR(IF(LEN(Attività_cardine[[#This Row],[Numero di giorni]])=0,\"\",IF(AND(S$5=$E27,$F27=1),Indicatore_Attività_Cardine,\"\")),\"\")","v":""},{"$f":"IFERROR(IF(LEN(Attività_cardine[[#This Row],[Numero di giorni]])=0,\"\",IF(AND(T$5=$E27,$F27=1),Indicatore_Attività_Cardine,\"\")),\"\")","v":""},{"$f":"IFERROR(IF(LEN(Attività_cardine[[#This Row],[Numero di giorni]])=0,\"\",IF(AND(U$5=$E27,$F27=1),Indicatore_Attività_Cardine,\"\")),\"\")","v":""},{"$f":"IFERROR(IF(LEN(Attività_cardine[[#This Row],[Numero di giorni]])=0,\"\",IF(AND(V$5=$E27,$F27=1),Indicatore_Attività_Cardine,\"\")),\"\")","v":""},{"$f":"IFERROR(IF(LEN(Attività_cardine[[#This Row],[Numero di giorni]])=0,\"\",IF(AND(W$5=$E27,$F27=1),Indicatore_Attività_Cardine,\"\")),\"\")","v":""},{"$f":"IFERROR(IF(LEN(Attività_cardine[[#This Row],[Numero di giorni]])=0,\"\",IF(AND(X$5=$E27,$F27=1),Indicatore_Attività_Cardine,\"\")),\"\")","v":""},{"$f":"IFERROR(IF(LEN(Attività_cardine[[#This Row],[Numero di giorni]])=0,\"\",IF(AND(Y$5=$E27,$F27=1),Indicatore_Attività_Cardine,\"\")),\"\")","v":""},{"$f":"IFERROR(IF(LEN(Attività_cardine[[#This Row],[Numero di giorni]])=0,\"\",IF(AND(Z$5=$E27,$F27=1),Indicatore_Attività_Cardine,\"\")),\"\")","v":""},{"$f":"IFERROR(IF(LEN(Attività_cardine[[#This Row],[Numero di giorni]])=0,\"\",IF(AND(AA$5=$E27,$F27=1),Indicatore_Attività_Cardine,\"\")),\"\")","v":""},{"$f":"IFERROR(IF(LEN(Attività_cardine[[#This Row],[Numero di giorni]])=0,\"\",IF(AND(AB$5=$E27,$F27=1),Indicatore_Attività_Cardine,\"\")),\"\")","v":""},{"$f":"IFERROR(IF(LEN(Attività_cardine[[#This Row],[Numero di giorni]])=0,\"\",IF(AND(AC$5=$E27,$F27=1),Indicatore_Attività_Cardine,\"\")),\"\")","v":""},{"$f":"IFERROR(IF(LEN(Attività_cardine[[#This Row],[Numero di giorni]])=0,\"\",IF(AND(AD$5=$E27,$F27=1),Indicatore_Attività_Cardine,\"\")),\"\")","v":""},{"$f":"IFERROR(IF(LEN(Attività_cardine[[#This Row],[Numero di giorni]])=0,\"\",IF(AND(AE$5=$E27,$F27=1),Indicatore_Attività_Cardine,\"\")),\"\")","v":""},{"$f":"IFERROR(IF(LEN(Attività_cardine[[#This Row],[Numero di giorni]])=0,\"\",IF(AND(AF$5=$E27,$F27=1),Indicatore_Attività_Cardine,\"\")),\"\")","v":""},{"$f":"IFERROR(IF(LEN(Attività_cardine[[#This Row],[Numero di giorni]])=0,\"\",IF(AND(AG$5=$E27,$F27=1),Indicatore_Attività_Cardine,\"\")),\"\")","v":""},{"$f":"IFERROR(IF(LEN(Attività_cardine[[#This Row],[Numero di giorni]])=0,\"\",IF(AND(AH$5=$E27,$F27=1),Indicatore_Attività_Cardine,\"\")),\"\")","v":""},{"$f":"IFERROR(IF(LEN(Attività_cardine[[#This Row],[Numero di giorni]])=0,\"\",IF(AND(AI$5=$E27,$F27=1),Indicatore_Attività_Cardine,\"\")),\"\")","v":""},{"$f":"IFERROR(IF(LEN(Attività_cardine[[#This Row],[Numero di giorni]])=0,\"\",IF(AND(AJ$5=$E27,$F27=1),Indicatore_Attività_Cardine,\"\")),\"\")","v":""},{"$f":"IFERROR(IF(LEN(Attività_cardine[[#This Row],[Numero di giorni]])=0,\"\",IF(AND(AK$5=$E27,$F27=1),Indicatore_Attività_Cardine,\"\")),\"\")","v":""},{"$f":"IFERROR(IF(LEN(Attività_cardine[[#This Row],[Numero di giorni]])=0,\"\",IF(AND(AL$5=$E27,$F27=1),Indicatore_Attività_Cardine,\"\")),\"\")","v":""},{"$f":"IFERROR(IF(LEN(Attività_cardine[[#This Row],[Numero di giorni]])=0,\"\",IF(AND(AM$5=$E27,$F27=1),Indicatore_Attività_Cardine,\"\")),\"\")","v":""},{"$f":"IFERROR(IF(LEN(Attività_cardine[[#This Row],[Numero di giorni]])=0,\"\",IF(AND(AN$5=$E27,$F27=1),Indicatore_Attività_Cardine,\"\")),\"\")","v":""},{"$f":"IFERROR(IF(LEN(Attività_cardine[[#This Row],[Numero di giorni]])=0,\"\",IF(AND(AO$5=$E27,$F27=1),Indicatore_Attività_Cardine,\"\")),\"\")","v":""},{"$f":"IFERROR(IF(LEN(Attività_cardine[[#This Row],[Numero di giorni]])=0,\"\",IF(AND(AP$5=$E27,$F27=1),Indicatore_Attività_Cardine,\"\")),\"\")","v":""},{"$f":"IFERROR(IF(LEN(Attività_cardine[[#This Row],[Numero di giorni]])=0,\"\",IF(AND(AQ$5=$E27,$F27=1),Indicatore_Attività_Cardine,\"\")),\"\")","v":""},{"$f":"IFERROR(IF(LEN(Attività_cardine[[#This Row],[Numero di giorni]])=0,\"\",IF(AND(AR$5=$E27,$F27=1),Indicatore_Attività_Cardine,\"\")),\"\")","v":""},{"$f":"IFERROR(IF(LEN(Attività_cardine[[#This Row],[Numero di giorni]])=0,\"\",IF(AND(AS$5=$E27,$F27=1),Indicatore_Attività_Cardine,\"\")),\"\")","v":""},{"$f":"IFERROR(IF(LEN(Attività_cardine[[#This Row],[Numero di giorni]])=0,\"\",IF(AND(AT$5=$E27,$F27=1),Indicatore_Attività_Cardine,\"\")),\"\")","v":""},{"$f":"IFERROR(IF(LEN(Attività_cardine[[#This Row],[Numero di giorni]])=0,\"\",IF(AND(AU$5=$E27,$F27=1),Indicatore_Attività_Cardine,\"\")),\"\")","v":""},{"$f":"IFERROR(IF(LEN(Attività_cardine[[#This Row],[Numero di giorni]])=0,\"\",IF(AND(AV$5=$E27,$F27=1),Indicatore_Attività_Cardine,\"\")),\"\")","v":""},{"$f":"IFERROR(IF(LEN(Attività_cardine[[#This Row],[Numero di giorni]])=0,\"\",IF(AND(AW$5=$E27,$F27=1),Indicatore_Attività_Cardine,\"\")),\"\")","v":""},{"$f":"IFERROR(IF(LEN(Attività_cardine[[#This Row],[Numero di giorni]])=0,\"\",IF(AND(AX$5=$E27,$F27=1),Indicatore_Attività_Cardine,\"\")),\"\")","v":""},{"$f":"IFERROR(IF(LEN(Attività_cardine[[#This Row],[Numero di giorni]])=0,\"\",IF(AND(AY$5=$E27,$F27=1),Indicatore_Attività_Cardine,\"\")),\"\")","v":""},{"$f":"IFERROR(IF(LEN(Attività_cardine[[#This Row],[Numero di giorni]])=0,\"\",IF(AND(AZ$5=$E27,$F27=1),Indicatore_Attività_Cardine,\"\")),\"\")","v":""},{"$f":"IFERROR(IF(LEN(Attività_cardine[[#This Row],[Numero di giorni]])=0,\"\",IF(AND(BA$5=$E27,$F27=1),Indicatore_Attività_Cardine,\"\")),\"\")","v":""},{"$f":"IFERROR(IF(LEN(Attività_cardine[[#This Row],[Numero di giorni]])=0,\"\",IF(AND(BB$5=$E27,$F27=1),Indicatore_Attività_Cardine,\"\")),\"\")","v":""},{"$f":"IFERROR(IF(LEN(Attività_cardine[[#This Row],[Numero di giorni]])=0,\"\",IF(AND(BC$5=$E27,$F27=1),Indicatore_Attività_Cardine,\"\")),\"\")","v":""},{"$f":"IFERROR(IF(LEN(Attività_cardine[[#This Row],[Numero di giorni]])=0,\"\",IF(AND(BD$5=$E27,$F27=1),Indicatore_Attività_Cardine,\"\")),\"\")","v":""},{"$f":"IFERROR(IF(LEN(Attività_cardine[[#This Row],[Numero di giorni]])=0,\"\",IF(AND(BE$5=$E27,$F27=1),Indicatore_Attività_Cardine,\"\")),\"\")","v":""},{"$f":"IFERROR(IF(LEN(Attività_cardine[[#This Row],[Numero di giorni]])=0,\"\",IF(AND(BF$5=$E27,$F27=1),Indicatore_Attività_Cardine,\"\")),\"\")","v":""},{"$f":"IFERROR(IF(LEN(Attività_cardine[[#This Row],[Numero di giorni]])=0,\"\",IF(AND(BG$5=$E27,$F27=1),Indicatore_Attività_Cardine,\"\")),\"\")","v":""},{"$f":"IFERROR(IF(LEN(Attività_cardine[[#This Row],[Numero di giorni]])=0,\"\",IF(AND(BH$5=$E27,$F27=1),Indicatore_Attività_Cardine,\"\")),\"\")","v":""},{"$f":"IFERROR(IF(LEN(Attività_cardine[[#This Row],[Numero di giorni]])=0,\"\",IF(AND(BI$5=$E27,$F27=1),Indicatore_Attività_Cardine,\"\")),\"\")","v":""},{"$f":"IFERROR(IF(LEN(Attività_cardine[[#This Row],[Numero di giorni]])=0,\"\",IF(AND(BJ$5=$E27,$F27=1),Indicatore_Attività_Cardine,\"\")),\"\")","v":""},{"$f":"IFERROR(IF(LEN(Attività_cardine[[#This Row],[Numero di giorni]])=0,\"\",IF(AND(BK$5=$E27,$F27=1),Indicatore_Attività_Cardine,\"\")),\"\")","v":""}]
[null,"Attività 2",null,null,{"$f":"TODAY()+29","v":"2018-10-18"},5,null,{"$f":"IFERROR(IF(LEN(Attività_cardine[[#This Row],[Numero di giorni]])=0,\"\",IF(AND(H$5=$E28,$F28=1),Indicatore_Attività_Cardine,\"\")),\"\")","v":""},{"$f":"IFERROR(IF(LEN(Attività_cardine[[#This Row],[Numero di giorni]])=0,\"\",IF(AND(I$5=$E28,$F28=1),Indicatore_Attività_Cardine,\"\")),\"\")","v":""},{"$f":"IFERROR(IF(LEN(Attività_cardine[[#This Row],[Numero di giorni]])=0,\"\",IF(AND(J$5=$E28,$F28=1),Indicatore_Attività_Cardine,\"\")),\"\")","v":""},{"$f":"IFERROR(IF(LEN(Attività_cardine[[#This Row],[Numero di giorni]])=0,\"\",IF(AND(K$5=$E28,$F28=1),Indicatore_Attività_Cardine,\"\")),\"\")","v":""},{"$f":"IFERROR(IF(LEN(Attività_cardine[[#This Row],[Numero di giorni]])=0,\"\",IF(AND(L$5=$E28,$F28=1),Indicatore_Attività_Cardine,\"\")),\"\")","v":""},{"$f":"IFERROR(IF(LEN(Attività_cardine[[#This Row],[Numero di giorni]])=0,\"\",IF(AND(M$5=$E28,$F28=1),Indicatore_Attività_Cardine,\"\")),\"\")","v":""},{"$f":"IFERROR(IF(LEN(Attività_cardine[[#This Row],[Numero di giorni]])=0,\"\",IF(AND(N$5=$E28,$F28=1),Indicatore_Attività_Cardine,\"\")),\"\")","v":""},{"$f":"IFERROR(IF(LEN(Attività_cardine[[#This Row],[Numero di giorni]])=0,\"\",IF(AND(O$5=$E28,$F28=1),Indicatore_Attività_Cardine,\"\")),\"\")","v":""},{"$f":"IFERROR(IF(LEN(Attività_cardine[[#This Row],[Numero di giorni]])=0,\"\",IF(AND(P$5=$E28,$F28=1),Indicatore_Attività_Cardine,\"\")),\"\")","v":""},{"$f":"IFERROR(IF(LEN(Attività_cardine[[#This Row],[Numero di giorni]])=0,\"\",IF(AND(Q$5=$E28,$F28=1),Indicatore_Attività_Cardine,\"\")),\"\")","v":""},{"$f":"IFERROR(IF(LEN(Attività_cardine[[#This Row],[Numero di giorni]])=0,\"\",IF(AND(R$5=$E28,$F28=1),Indicatore_Attività_Cardine,\"\")),\"\")","v":""},{"$f":"IFERROR(IF(LEN(Attività_cardine[[#This Row],[Numero di giorni]])=0,\"\",IF(AND(S$5=$E28,$F28=1),Indicatore_Attività_Cardine,\"\")),\"\")","v":""},{"$f":"IFERROR(IF(LEN(Attività_cardine[[#This Row],[Numero di giorni]])=0,\"\",IF(AND(T$5=$E28,$F28=1),Indicatore_Attività_Cardine,\"\")),\"\")","v":""},{"$f":"IFERROR(IF(LEN(Attività_cardine[[#This Row],[Numero di giorni]])=0,\"\",IF(AND(U$5=$E28,$F28=1),Indicatore_Attività_Cardine,\"\")),\"\")","v":""},{"$f":"IFERROR(IF(LEN(Attività_cardine[[#This Row],[Numero di giorni]])=0,\"\",IF(AND(V$5=$E28,$F28=1),Indicatore_Attività_Cardine,\"\")),\"\")","v":""},{"$f":"IFERROR(IF(LEN(Attività_cardine[[#This Row],[Numero di giorni]])=0,\"\",IF(AND(W$5=$E28,$F28=1),Indicatore_Attività_Cardine,\"\")),\"\")","v":""},{"$f":"IFERROR(IF(LEN(Attività_cardine[[#This Row],[Numero di giorni]])=0,\"\",IF(AND(X$5=$E28,$F28=1),Indicatore_Attività_Cardine,\"\")),\"\")","v":""},{"$f":"IFERROR(IF(LEN(Attività_cardine[[#This Row],[Numero di giorni]])=0,\"\",IF(AND(Y$5=$E28,$F28=1),Indicatore_Attività_Cardine,\"\")),\"\")","v":""},{"$f":"IFERROR(IF(LEN(Attività_cardine[[#This Row],[Numero di giorni]])=0,\"\",IF(AND(Z$5=$E28,$F28=1),Indicatore_Attività_Cardine,\"\")),\"\")","v":""},{"$f":"IFERROR(IF(LEN(Attività_cardine[[#This Row],[Numero di giorni]])=0,\"\",IF(AND(AA$5=$E28,$F28=1),Indicatore_Attività_Cardine,\"\")),\"\")","v":""},{"$f":"IFERROR(IF(LEN(Attività_cardine[[#This Row],[Numero di giorni]])=0,\"\",IF(AND(AB$5=$E28,$F28=1),Indicatore_Attività_Cardine,\"\")),\"\")","v":""},{"$f":"IFERROR(IF(LEN(Attività_cardine[[#This Row],[Numero di giorni]])=0,\"\",IF(AND(AC$5=$E28,$F28=1),Indicatore_Attività_Cardine,\"\")),\"\")","v":""},{"$f":"IFERROR(IF(LEN(Attività_cardine[[#This Row],[Numero di giorni]])=0,\"\",IF(AND(AD$5=$E28,$F28=1),Indicatore_Attività_Cardine,\"\")),\"\")","v":""},{"$f":"IFERROR(IF(LEN(Attività_cardine[[#This Row],[Numero di giorni]])=0,\"\",IF(AND(AE$5=$E28,$F28=1),Indicatore_Attività_Cardine,\"\")),\"\")","v":""},{"$f":"IFERROR(IF(LEN(Attività_cardine[[#This Row],[Numero di giorni]])=0,\"\",IF(AND(AF$5=$E28,$F28=1),Indicatore_Attività_Cardine,\"\")),\"\")","v":""},{"$f":"IFERROR(IF(LEN(Attività_cardine[[#This Row],[Numero di giorni]])=0,\"\",IF(AND(AG$5=$E28,$F28=1),Indicatore_Attività_Cardine,\"\")),\"\")","v":""},{"$f":"IFERROR(IF(LEN(Attività_cardine[[#This Row],[Numero di giorni]])=0,\"\",IF(AND(AH$5=$E28,$F28=1),Indicatore_Attività_Cardine,\"\")),\"\")","v":""},{"$f":"IFERROR(IF(LEN(Attività_cardine[[#This Row],[Numero di giorni]])=0,\"\",IF(AND(AI$5=$E28,$F28=1),Indicatore_Attività_Cardine,\"\")),\"\")","v":""},{"$f":"IFERROR(IF(LEN(Attività_cardine[[#This Row],[Numero di giorni]])=0,\"\",IF(AND(AJ$5=$E28,$F28=1),Indicatore_Attività_Cardine,\"\")),\"\")","v":""},{"$f":"IFERROR(IF(LEN(Attività_cardine[[#This Row],[Numero di giorni]])=0,\"\",IF(AND(AK$5=$E28,$F28=1),Indicatore_Attività_Cardine,\"\")),\"\")","v":""},{"$f":"IFERROR(IF(LEN(Attività_cardine[[#This Row],[Numero di giorni]])=0,\"\",IF(AND(AL$5=$E28,$F28=1),Indicatore_Attività_Cardine,\"\")),\"\")","v":""},{"$f":"IFERROR(IF(LEN(Attività_cardine[[#This Row],[Numero di giorni]])=0,\"\",IF(AND(AM$5=$E28,$F28=1),Indicatore_Attività_Cardine,\"\")),\"\")","v":""},{"$f":"IFERROR(IF(LEN(Attività_cardine[[#This Row],[Numero di giorni]])=0,\"\",IF(AND(AN$5=$E28,$F28=1),Indicatore_Attività_Cardine,\"\")),\"\")","v":""},{"$f":"IFERROR(IF(LEN(Attività_cardine[[#This Row],[Numero di giorni]])=0,\"\",IF(AND(AO$5=$E28,$F28=1),Indicatore_Attività_Cardine,\"\")),\"\")","v":""},{"$f":"IFERROR(IF(LEN(Attività_cardine[[#This Row],[Numero di giorni]])=0,\"\",IF(AND(AP$5=$E28,$F28=1),Indicatore_Attività_Cardine,\"\")),\"\")","v":""},{"$f":"IFERROR(IF(LEN(Attività_cardine[[#This Row],[Numero di giorni]])=0,\"\",IF(AND(AQ$5=$E28,$F28=1),Indicatore_Attività_Cardine,\"\")),\"\")","v":""},{"$f":"IFERROR(IF(LEN(Attività_cardine[[#This Row],[Numero di giorni]])=0,\"\",IF(AND(AR$5=$E28,$F28=1),Indicatore_Attività_Cardine,\"\")),\"\")","v":""},{"$f":"IFERROR(IF(LEN(Attività_cardine[[#This Row],[Numero di giorni]])=0,\"\",IF(AND(AS$5=$E28,$F28=1),Indicatore_Attività_Cardine,\"\")),\"\")","v":""},{"$f":"IFERROR(IF(LEN(Attività_cardine[[#This Row],[Numero di giorni]])=0,\"\",IF(AND(AT$5=$E28,$F28=1),Indicatore_Attività_Cardine,\"\")),\"\")","v":""},{"$f":"IFERROR(IF(LEN(Attività_cardine[[#This Row],[Numero di giorni]])=0,\"\",IF(AND(AU$5=$E28,$F28=1),Indicatore_Attività_Cardine,\"\")),\"\")","v":""},{"$f":"IFERROR(IF(LEN(Attività_cardine[[#This Row],[Numero di giorni]])=0,\"\",IF(AND(AV$5=$E28,$F28=1),Indicatore_Attività_Cardine,\"\")),\"\")","v":""},{"$f":"IFERROR(IF(LEN(Attività_cardine[[#This Row],[Numero di giorni]])=0,\"\",IF(AND(AW$5=$E28,$F28=1),Indicatore_Attività_Cardine,\"\")),\"\")","v":""},{"$f":"IFERROR(IF(LEN(Attività_cardine[[#This Row],[Numero di giorni]])=0,\"\",IF(AND(AX$5=$E28,$F28=1),Indicatore_Attività_Cardine,\"\")),\"\")","v":""},{"$f":"IFERROR(IF(LEN(Attività_cardine[[#This Row],[Numero di giorni]])=0,\"\",IF(AND(AY$5=$E28,$F28=1),Indicatore_Attività_Cardine,\"\")),\"\")","v":""},{"$f":"IFERROR(IF(LEN(Attività_cardine[[#This Row],[Numero di giorni]])=0,\"\",IF(AND(AZ$5=$E28,$F28=1),Indicatore_Attività_Cardine,\"\")),\"\")","v":""},{"$f":"IFERROR(IF(LEN(Attività_cardine[[#This Row],[Numero di giorni]])=0,\"\",IF(AND(BA$5=$E28,$F28=1),Indicatore_Attività_Cardine,\"\")),\"\")","v":""},{"$f":"IFERROR(IF(LEN(Attività_cardine[[#This Row],[Numero di giorni]])=0,\"\",IF(AND(BB$5=$E28,$F28=1),Indicatore_Attività_Cardine,\"\")),\"\")","v":""},{"$f":"IFERROR(IF(LEN(Attività_cardine[[#This Row],[Numero di giorni]])=0,\"\",IF(AND(BC$5=$E28,$F28=1),Indicatore_Attività_Cardine,\"\")),\"\")","v":""},{"$f":"IFERROR(IF(LEN(Attività_cardine[[#This Row],[Numero di giorni]])=0,\"\",IF(AND(BD$5=$E28,$F28=1),Indicatore_Attività_Cardine,\"\")),\"\")","v":""},{"$f":"IFERROR(IF(LEN(Attività_cardine[[#This Row],[Numero di giorni]])=0,\"\",IF(AND(BE$5=$E28,$F28=1),Indicatore_Attività_Cardine,\"\")),\"\")","v":""},{"$f":"IFERROR(IF(LEN(Attività_cardine[[#This Row],[Numero di giorni]])=0,\"\",IF(AND(BF$5=$E28,$F28=1),Indicatore_Attività_Cardine,\"\")),\"\")","v":""},{"$f":"IFERROR(IF(LEN(Attività_cardine[[#This Row],[Numero di giorni]])=0,\"\",IF(AND(BG$5=$E28,$F28=1),Indicatore_Attività_Cardine,\"\")),\"\")","v":""},{"$f":"IFERROR(IF(LEN(Attività_cardine[[#This Row],[Numero di giorni]])=0,\"\",IF(AND(BH$5=$E28,$F28=1),Indicatore_Attività_Cardine,\"\")),\"\")","v":""},{"$f":"IFERROR(IF(LEN(Attività_cardine[[#This Row],[Numero di giorni]])=0,\"\",IF(AND(BI$5=$E28,$F28=1),Indicatore_Attività_Cardine,\"\")),\"\")","v":""},{"$f":"IFERROR(IF(LEN(Attività_cardine[[#This Row],[Numero di giorni]])=0,\"\",IF(AND(BJ$5=$E28,$F28=1),Indicatore_Attività_Cardine,\"\")),\"\")","v":""},{"$f":"IFERROR(IF(LEN(Attività_cardine[[#This Row],[Numero di giorni]])=0,\"\",IF(AND(BK$5=$E28,$F28=1),Indicatore_Attività_Cardine,\"\")),\"\")","v":""}]
[null,"Attività 3",null,null,{"$f":"TODAY()+80","v":"2018-12-08"},5,null,{"$f":"IFERROR(IF(LEN(Attività_cardine[[#This Row],[Numero di giorni]])=0,\"\",IF(AND(H$5=$E29,$F29=1),Indicatore_Attività_Cardine,\"\")),\"\")","v":""},{"$f":"IFERROR(IF(LEN(Attività_cardine[[#This Row],[Numero di giorni]])=0,\"\",IF(AND(I$5=$E29,$F29=1),Indicatore_Attività_Cardine,\"\")),\"\")","v":""},{"$f":"IFERROR(IF(LEN(Attività_cardine[[#This Row],[Numero di giorni]])=0,\"\",IF(AND(J$5=$E29,$F29=1),Indicatore_Attività_Cardine,\"\")),\"\")","v":""},{"$f":"IFERROR(IF(LEN(Attività_cardine[[#This Row],[Numero di giorni]])=0,\"\",IF(AND(K$5=$E29,$F29=1),Indicatore_Attività_Cardine,\"\")),\"\")","v":""},{"$f":"IFERROR(IF(LEN(Attività_cardine[[#This Row],[Numero di giorni]])=0,\"\",IF(AND(L$5=$E29,$F29=1),Indicatore_Attività_Cardine,\"\")),\"\")","v":""},{"$f":"IFERROR(IF(LEN(Attività_cardine[[#This Row],[Numero di giorni]])=0,\"\",IF(AND(M$5=$E29,$F29=1),Indicatore_Attività_Cardine,\"\")),\"\")","v":""},{"$f":"IFERROR(IF(LEN(Attività_cardine[[#This Row],[Numero di giorni]])=0,\"\",IF(AND(N$5=$E29,$F29=1),Indicatore_Attività_Cardine,\"\")),\"\")","v":""},{"$f":"IFERROR(IF(LEN(Attività_cardine[[#This Row],[Numero di giorni]])=0,\"\",IF(AND(O$5=$E29,$F29=1),Indicatore_Attività_Cardine,\"\")),\"\")","v":""},{"$f":"IFERROR(IF(LEN(Attività_cardine[[#This Row],[Numero di giorni]])=0,\"\",IF(AND(P$5=$E29,$F29=1),Indicatore_Attività_Cardine,\"\")),\"\")","v":""},{"$f":"IFERROR(IF(LEN(Attività_cardine[[#This Row],[Numero di giorni]])=0,\"\",IF(AND(Q$5=$E29,$F29=1),Indicatore_Attività_Cardine,\"\")),\"\")","v":""},{"$f":"IFERROR(IF(LEN(Attività_cardine[[#This Row],[Numero di giorni]])=0,\"\",IF(AND(R$5=$E29,$F29=1),Indicatore_Attività_Cardine,\"\")),\"\")","v":""},{"$f":"IFERROR(IF(LEN(Attività_cardine[[#This Row],[Numero di giorni]])=0,\"\",IF(AND(S$5=$E29,$F29=1),Indicatore_Attività_Cardine,\"\")),\"\")","v":""},{"$f":"IFERROR(IF(LEN(Attività_cardine[[#This Row],[Numero di giorni]])=0,\"\",IF(AND(T$5=$E29,$F29=1),Indicatore_Attività_Cardine,\"\")),\"\")","v":""},{"$f":"IFERROR(IF(LEN(Attività_cardine[[#This Row],[Numero di giorni]])=0,\"\",IF(AND(U$5=$E29,$F29=1),Indicatore_Attività_Cardine,\"\")),\"\")","v":""},{"$f":"IFERROR(IF(LEN(Attività_cardine[[#This Row],[Numero di giorni]])=0,\"\",IF(AND(V$5=$E29,$F29=1),Indicatore_Attività_Cardine,\"\")),\"\")","v":""},{"$f":"IFERROR(IF(LEN(Attività_cardine[[#This Row],[Numero di giorni]])=0,\"\",IF(AND(W$5=$E29,$F29=1),Indicatore_Attività_Cardine,\"\")),\"\")","v":""},{"$f":"IFERROR(IF(LEN(Attività_cardine[[#This Row],[Numero di giorni]])=0,\"\",IF(AND(X$5=$E29,$F29=1),Indicatore_Attività_Cardine,\"\")),\"\")","v":""},{"$f":"IFERROR(IF(LEN(Attività_cardine[[#This Row],[Numero di giorni]])=0,\"\",IF(AND(Y$5=$E29,$F29=1),Indicatore_Attività_Cardine,\"\")),\"\")","v":""},{"$f":"IFERROR(IF(LEN(Attività_cardine[[#This Row],[Numero di giorni]])=0,\"\",IF(AND(Z$5=$E29,$F29=1),Indicatore_Attività_Cardine,\"\")),\"\")","v":""},{"$f":"IFERROR(IF(LEN(Attività_cardine[[#This Row],[Numero di giorni]])=0,\"\",IF(AND(AA$5=$E29,$F29=1),Indicatore_Attività_Cardine,\"\")),\"\")","v":""},{"$f":"IFERROR(IF(LEN(Attività_cardine[[#This Row],[Numero di giorni]])=0,\"\",IF(AND(AB$5=$E29,$F29=1),Indicatore_Attività_Cardine,\"\")),\"\")","v":""},{"$f":"IFERROR(IF(LEN(Attività_cardine[[#This Row],[Numero di giorni]])=0,\"\",IF(AND(AC$5=$E29,$F29=1),Indicatore_Attività_Cardine,\"\")),\"\")","v":""},{"$f":"IFERROR(IF(LEN(Attività_cardine[[#This Row],[Numero di giorni]])=0,\"\",IF(AND(AD$5=$E29,$F29=1),Indicatore_Attività_Cardine,\"\")),\"\")","v":""},{"$f":"IFERROR(IF(LEN(Attività_cardine[[#This Row],[Numero di giorni]])=0,\"\",IF(AND(AE$5=$E29,$F29=1),Indicatore_Attività_Cardine,\"\")),\"\")","v":""},{"$f":"IFERROR(IF(LEN(Attività_cardine[[#This Row],[Numero di giorni]])=0,\"\",IF(AND(AF$5=$E29,$F29=1),Indicatore_Attività_Cardine,\"\")),\"\")","v":""},{"$f":"IFERROR(IF(LEN(Attività_cardine[[#This Row],[Numero di giorni]])=0,\"\",IF(AND(AG$5=$E29,$F29=1),Indicatore_Attività_Cardine,\"\")),\"\")","v":""},{"$f":"IFERROR(IF(LEN(Attività_cardine[[#This Row],[Numero di giorni]])=0,\"\",IF(AND(AH$5=$E29,$F29=1),Indicatore_Attività_Cardine,\"\")),\"\")","v":""},{"$f":"IFERROR(IF(LEN(Attività_cardine[[#This Row],[Numero di giorni]])=0,\"\",IF(AND(AI$5=$E29,$F29=1),Indicatore_Attività_Cardine,\"\")),\"\")","v":""},{"$f":"IFERROR(IF(LEN(Attività_cardine[[#This Row],[Numero di giorni]])=0,\"\",IF(AND(AJ$5=$E29,$F29=1),Indicatore_Attività_Cardine,\"\")),\"\")","v":""},{"$f":"IFERROR(IF(LEN(Attività_cardine[[#This Row],[Numero di giorni]])=0,\"\",IF(AND(AK$5=$E29,$F29=1),Indicatore_Attività_Cardine,\"\")),\"\")","v":""},{"$f":"IFERROR(IF(LEN(Attività_cardine[[#This Row],[Numero di giorni]])=0,\"\",IF(AND(AL$5=$E29,$F29=1),Indicatore_Attività_Cardine,\"\")),\"\")","v":""},{"$f":"IFERROR(IF(LEN(Attività_cardine[[#This Row],[Numero di giorni]])=0,\"\",IF(AND(AM$5=$E29,$F29=1),Indicatore_Attività_Cardine,\"\")),\"\")","v":""},{"$f":"IFERROR(IF(LEN(Attività_cardine[[#This Row],[Numero di giorni]])=0,\"\",IF(AND(AN$5=$E29,$F29=1),Indicatore_Attività_Cardine,\"\")),\"\")","v":""},{"$f":"IFERROR(IF(LEN(Attività_cardine[[#This Row],[Numero di giorni]])=0,\"\",IF(AND(AO$5=$E29,$F29=1),Indicatore_Attività_Cardine,\"\")),\"\")","v":""},{"$f":"IFERROR(IF(LEN(Attività_cardine[[#This Row],[Numero di giorni]])=0,\"\",IF(AND(AP$5=$E29,$F29=1),Indicatore_Attività_Cardine,\"\")),\"\")","v":""},{"$f":"IFERROR(IF(LEN(Attività_cardine[[#This Row],[Numero di giorni]])=0,\"\",IF(AND(AQ$5=$E29,$F29=1),Indicatore_Attività_Cardine,\"\")),\"\")","v":""},{"$f":"IFERROR(IF(LEN(Attività_cardine[[#This Row],[Numero di giorni]])=0,\"\",IF(AND(AR$5=$E29,$F29=1),Indicatore_Attività_Cardine,\"\")),\"\")","v":""},{"$f":"IFERROR(IF(LEN(Attività_cardine[[#This Row],[Numero di giorni]])=0,\"\",IF(AND(AS$5=$E29,$F29=1),Indicatore_Attività_Cardine,\"\")),\"\")","v":""},{"$f":"IFERROR(IF(LEN(Attività_cardine[[#This Row],[Numero di giorni]])=0,\"\",IF(AND(AT$5=$E29,$F29=1),Indicatore_Attività_Cardine,\"\")),\"\")","v":""},{"$f":"IFERROR(IF(LEN(Attività_cardine[[#This Row],[Numero di giorni]])=0,\"\",IF(AND(AU$5=$E29,$F29=1),Indicatore_Attività_Cardine,\"\")),\"\")","v":""},{"$f":"IFERROR(IF(LEN(Attività_cardine[[#This Row],[Numero di giorni]])=0,\"\",IF(AND(AV$5=$E29,$F29=1),Indicatore_Attività_Cardine,\"\")),\"\")","v":""},{"$f":"IFERROR(IF(LEN(Attività_cardine[[#This Row],[Numero di giorni]])=0,\"\",IF(AND(AW$5=$E29,$F29=1),Indicatore_Attività_Cardine,\"\")),\"\")","v":""},{"$f":"IFERROR(IF(LEN(Attività_cardine[[#This Row],[Numero di giorni]])=0,\"\",IF(AND(AX$5=$E29,$F29=1),Indicatore_Attività_Cardine,\"\")),\"\")","v":""},{"$f":"IFERROR(IF(LEN(Attività_cardine[[#This Row],[Numero di giorni]])=0,\"\",IF(AND(AY$5=$E29,$F29=1),Indicatore_Attività_Cardine,\"\")),\"\")","v":""},{"$f":"IFERROR(IF(LEN(Attività_cardine[[#This Row],[Numero di giorni]])=0,\"\",IF(AND(AZ$5=$E29,$F29=1),Indicatore_Attività_Cardine,\"\")),\"\")","v":""},{"$f":"IFERROR(IF(LEN(Attività_cardine[[#This Row],[Numero di giorni]])=0,\"\",IF(AND(BA$5=$E29,$F29=1),Indicatore_Attività_Cardine,\"\")),\"\")","v":""},{"$f":"IFERROR(IF(LEN(Attività_cardine[[#This Row],[Numero di giorni]])=0,\"\",IF(AND(BB$5=$E29,$F29=1),Indicatore_Attività_Cardine,\"\")),\"\")","v":""},{"$f":"IFERROR(IF(LEN(Attività_cardine[[#This Row],[Numero di giorni]])=0,\"\",IF(AND(BC$5=$E29,$F29=1),Indicatore_Attività_Cardine,\"\")),\"\")","v":""},{"$f":"IFERROR(IF(LEN(Attività_cardine[[#This Row],[Numero di giorni]])=0,\"\",IF(AND(BD$5=$E29,$F29=1),Indicatore_Attività_Cardine,\"\")),\"\")","v":""},{"$f":"IFERROR(IF(LEN(Attività_cardine[[#This Row],[Numero di giorni]])=0,\"\",IF(AND(BE$5=$E29,$F29=1),Indicatore_Attività_Cardine,\"\")),\"\")","v":""},{"$f":"IFERROR(IF(LEN(Attività_cardine[[#This Row],[Numero di giorni]])=0,\"\",IF(AND(BF$5=$E29,$F29=1),Indicatore_Attività_Cardine,\"\")),\"\")","v":""},{"$f":"IFERROR(IF(LEN(Attività_cardine[[#This Row],[Numero di giorni]])=0,\"\",IF(AND(BG$5=$E29,$F29=1),Indicatore_Attività_Cardine,\"\")),\"\")","v":""},{"$f":"IFERROR(IF(LEN(Attività_cardine[[#This Row],[Numero di giorni]])=0,\"\",IF(AND(BH$5=$E29,$F29=1),Indicatore_Attività_Cardine,\"\")),\"\")","v":""},{"$f":"IFERROR(IF(LEN(Attività_cardine[[#This Row],[Numero di giorni]])=0,\"\",IF(AND(BI$5=$E29,$F29=1),Indicatore_Attività_Cardine,\"\")),\"\")","v":""},{"$f":"IFERROR(IF(LEN(Attività_cardine[[#This Row],[Numero di giorni]])=0,\"\",IF(AND(BJ$5=$E29,$F29=1),Indicatore_Attività_Cardine,\"\")),\"\")","v":""},{"$f":"IFERROR(IF(LEN(Attività_cardine[[#This Row],[Numero di giorni]])=0,\"\",IF(AND(BK$5=$E29,$F29=1),Indicatore_Attività_Cardine,\"\")),\"\")","v":""}]
[null,"Attività 4",{"$nulls":5},{"$f":"IFERROR(IF(LEN(Attività_cardine[[#This Row],[Numero di giorni]])=0,\"\",IF(AND(H$5=$E30,$F30=1),Indicatore_Attività_Cardine,\"\")),\"\")","v":""},{"$f":"IFERROR(IF(LEN(Attività_cardine[[#This Row],[Numero di giorni]])=0,\"\",IF(AND(I$5=$E30,$F30=1),Indicatore_Attività_Cardine,\"\")),\"\")","v":""},{"$f":"IFERROR(IF(LEN(Attività_cardine[[#This Row],[Numero di giorni]])=0,\"\",IF(AND(J$5=$E30,$F30=1),Indicatore_Attività_Cardine,\"\")),\"\")","v":""},{"$f":"IFERROR(IF(LEN(Attività_cardine[[#This Row],[Numero di giorni]])=0,\"\",IF(AND(K$5=$E30,$F30=1),Indicatore_Attività_Cardine,\"\")),\"\")","v":""},{"$f":"IFERROR(IF(LEN(Attività_cardine[[#This Row],[Numero di giorni]])=0,\"\",IF(AND(L$5=$E30,$F30=1),Indicatore_Attività_Cardine,\"\")),\"\")","v":""},{"$f":"IFERROR(IF(LEN(Attività_cardine[[#This Row],[Numero di giorni]])=0,\"\",IF(AND(M$5=$E30,$F30=1),Indicatore_Attività_Cardine,\"\")),\"\")","v":""},{"$f":"IFERROR(IF(LEN(Attività_cardine[[#This Row],[Numero di giorni]])=0,\"\",IF(AND(N$5=$E30,$F30=1),Indicatore_Attività_Cardine,\"\")),\"\")","v":""},{"$f":"IFERROR(IF(LEN(Attività_cardine[[#This Row],[Numero di giorni]])=0,\"\",IF(AND(O$5=$E30,$F30=1),Indicatore_Attività_Cardine,\"\")),\"\")","v":""},{"$f":"IFERROR(IF(LEN(Attività_cardine[[#This Row],[Numero di giorni]])=0,\"\",IF(AND(P$5=$E30,$F30=1),Indicatore_Attività_Cardine,\"\")),\"\")","v":""},{"$f":"IFERROR(IF(LEN(Attività_cardine[[#This Row],[Numero di giorni]])=0,\"\",IF(AND(Q$5=$E30,$F30=1),Indicatore_Attività_Cardine,\"\")),\"\")","v":""},{"$f":"IFERROR(IF(LEN(Attività_cardine[[#This Row],[Numero di giorni]])=0,\"\",IF(AND(R$5=$E30,$F30=1),Indicatore_Attività_Cardine,\"\")),\"\")","v":""},{"$f":"IFERROR(IF(LEN(Attività_cardine[[#This Row],[Numero di giorni]])=0,\"\",IF(AND(S$5=$E30,$F30=1),Indicatore_Attività_Cardine,\"\")),\"\")","v":""},{"$f":"IFERROR(IF(LEN(Attività_cardine[[#This Row],[Numero di giorni]])=0,\"\",IF(AND(T$5=$E30,$F30=1),Indicatore_Attività_Cardine,\"\")),\"\")","v":""},{"$f":"IFERROR(IF(LEN(Attività_cardine[[#This Row],[Numero di giorni]])=0,\"\",IF(AND(U$5=$E30,$F30=1),Indicatore_Attività_Cardine,\"\")),\"\")","v":""},{"$f":"IFERROR(IF(LEN(Attività_cardine[[#This Row],[Numero di giorni]])=0,\"\",IF(AND(V$5=$E30,$F30=1),Indicatore_Attività_Cardine,\"\")),\"\")","v":""},{"$f":"IFERROR(IF(LEN(Attività_cardine[[#This Row],[Numero di giorni]])=0,\"\",IF(AND(W$5=$E30,$F30=1),Indicatore_Attività_Cardine,\"\")),\"\")","v":""},{"$f":"IFERROR(IF(LEN(Attività_cardine[[#This Row],[Numero di giorni]])=0,\"\",IF(AND(X$5=$E30,$F30=1),Indicatore_Attività_Cardine,\"\")),\"\")","v":""},{"$f":"IFERROR(IF(LEN(Attività_cardine[[#This Row],[Numero di giorni]])=0,\"\",IF(AND(Y$5=$E30,$F30=1),Indicatore_Attività_Cardine,\"\")),\"\")","v":""},{"$f":"IFERROR(IF(LEN(Attività_cardine[[#This Row],[Numero di giorni]])=0,\"\",IF(AND(Z$5=$E30,$F30=1),Indicatore_Attività_Cardine,\"\")),\"\")","v":""},{"$f":"IFERROR(IF(LEN(Attività_cardine[[#This Row],[Numero di giorni]])=0,\"\",IF(AND(AA$5=$E30,$F30=1),Indicatore_Attività_Cardine,\"\")),\"\")","v":""},{"$f":"IFERROR(IF(LEN(Attività_cardine[[#This Row],[Numero di giorni]])=0,\"\",IF(AND(AB$5=$E30,$F30=1),Indicatore_Attività_Cardine,\"\")),\"\")","v":""},{"$f":"IFERROR(IF(LEN(Attività_cardine[[#This Row],[Numero di giorni]])=0,\"\",IF(AND(AC$5=$E30,$F30=1),Indicatore_Attività_Cardine,\"\")),\"\")","v":""},{"$f":"IFERROR(IF(LEN(Attività_cardine[[#This Row],[Numero di giorni]])=0,\"\",IF(AND(AD$5=$E30,$F30=1),Indicatore_Attività_Cardine,\"\")),\"\")","v":""},{"$f":"IFERROR(IF(LEN(Attività_cardine[[#This Row],[Numero di giorni]])=0,\"\",IF(AND(AE$5=$E30,$F30=1),Indicatore_Attività_Cardine,\"\")),\"\")","v":""},{"$f":"IFERROR(IF(LEN(Attività_cardine[[#This Row],[Numero di giorni]])=0,\"\",IF(AND(AF$5=$E30,$F30=1),Indicatore_Attività_Cardine,\"\")),\"\")","v":""},{"$f":"IFERROR(IF(LEN(Attività_cardine[[#This Row],[Numero di giorni]])=0,\"\",IF(AND(AG$5=$E30,$F30=1),Indicatore_Attività_Cardine,\"\")),\"\")","v":""},{"$f":"IFERROR(IF(LEN(Attività_cardine[[#This Row],[Numero di giorni]])=0,\"\",IF(AND(AH$5=$E30,$F30=1),Indicatore_Attività_Cardine,\"\")),\"\")","v":""},{"$f":"IFERROR(IF(LEN(Attività_cardine[[#This Row],[Numero di giorni]])=0,\"\",IF(AND(AI$5=$E30,$F30=1),Indicatore_Attività_Cardine,\"\")),\"\")","v":""},{"$f":"IFERROR(IF(LEN(Attività_cardine[[#This Row],[Numero di giorni]])=0,\"\",IF(AND(AJ$5=$E30,$F30=1),Indicatore_Attività_Cardine,\"\")),\"\")","v":""},{"$f":"IFERROR(IF(LEN(Attività_cardine[[#This Row],[Numero di giorni]])=0,\"\",IF(AND(AK$5=$E30,$F30=1),Indicatore_Attività_Cardine,\"\")),\"\")","v":""},{"$f":"IFERROR(IF(LEN(Attività_cardine[[#This Row],[Numero di giorni]])=0,\"\",IF(AND(AL$5=$E30,$F30=1),Indicatore_Attività_Cardine,\"\")),\"\")","v":""},{"$f":"IFERROR(IF(LEN(Attività_cardine[[#This Row],[Numero di giorni]])=0,\"\",IF(AND(AM$5=$E30,$F30=1),Indicatore_Attività_Cardine,\"\")),\"\")","v":""},{"$f":"IFERROR(IF(LEN(Attività_cardine[[#This Row],[Numero di giorni]])=0,\"\",IF(AND(AN$5=$E30,$F30=1),Indicatore_Attività_Cardine,\"\")),\"\")","v":""},{"$f":"IFERROR(IF(LEN(Attività_cardine[[#This Row],[Numero di giorni]])=0,\"\",IF(AND(AO$5=$E30,$F30=1),Indicatore_Attività_Cardine,\"\")),\"\")","v":""},{"$f":"IFERROR(IF(LEN(Attività_cardine[[#This Row],[Numero di giorni]])=0,\"\",IF(AND(AP$5=$E30,$F30=1),Indicatore_Attività_Cardine,\"\")),\"\")","v":""},{"$f":"IFERROR(IF(LEN(Attività_cardine[[#This Row],[Numero di giorni]])=0,\"\",IF(AND(AQ$5=$E30,$F30=1),Indicatore_Attività_Cardine,\"\")),\"\")","v":""},{"$f":"IFERROR(IF(LEN(Attività_cardine[[#This Row],[Numero di giorni]])=0,\"\",IF(AND(AR$5=$E30,$F30=1),Indicatore_Attività_Cardine,\"\")),\"\")","v":""},{"$f":"IFERROR(IF(LEN(Attività_cardine[[#This Row],[Numero di giorni]])=0,\"\",IF(AND(AS$5=$E30,$F30=1),Indicatore_Attività_Cardine,\"\")),\"\")","v":""},{"$f":"IFERROR(IF(LEN(Attività_cardine[[#This Row],[Numero di giorni]])=0,\"\",IF(AND(AT$5=$E30,$F30=1),Indicatore_Attività_Cardine,\"\")),\"\")","v":""},{"$f":"IFERROR(IF(LEN(Attività_cardine[[#This Row],[Numero di giorni]])=0,\"\",IF(AND(AU$5=$E30,$F30=1),Indicatore_Attività_Cardine,\"\")),\"\")","v":""},{"$f":"IFERROR(IF(LEN(Attività_cardine[[#This Row],[Numero di giorni]])=0,\"\",IF(AND(AV$5=$E30,$F30=1),Indicatore_Attività_Cardine,\"\")),\"\")","v":""},{"$f":"IFERROR(IF(LEN(Attività_cardine[[#This Row],[Numero di giorni]])=0,\"\",IF(AND(AW$5=$E30,$F30=1),Indicatore_Attività_Cardine,\"\")),\"\")","v":""},{"$f":"IFERROR(IF(LEN(Attività_cardine[[#This Row],[Numero di giorni]])=0,\"\",IF(AND(AX$5=$E30,$F30=1),Indicatore_Attività_Cardine,\"\")),\"\")","v":""},{"$f":"IFERROR(IF(LEN(Attività_cardine[[#This Row],[Numero di giorni]])=0,\"\",IF(AND(AY$5=$E30,$F30=1),Indicatore_Attività_Cardine,\"\")),\"\")","v":""},{"$f":"IFERROR(IF(LEN(Attività_cardine[[#This Row],[Numero di giorni]])=0,\"\",IF(AND(AZ$5=$E30,$F30=1),Indicatore_Attività_Cardine,\"\")),\"\")","v":""},{"$f":"IFERROR(IF(LEN(Attività_cardine[[#This Row],[Numero di giorni]])=0,\"\",IF(AND(BA$5=$E30,$F30=1),Indicatore_Attività_Cardine,\"\")),\"\")","v":""},{"$f":"IFERROR(IF(LEN(Attività_cardine[[#This Row],[Numero di giorni]])=0,\"\",IF(AND(BB$5=$E30,$F30=1),Indicatore_Attività_Cardine,\"\")),\"\")","v":""},{"$f":"IFERROR(IF(LEN(Attività_cardine[[#This Row],[Numero di giorni]])=0,\"\",IF(AND(BC$5=$E30,$F30=1),Indicatore_Attività_Cardine,\"\")),\"\")","v":""},{"$f":"IFERROR(IF(LEN(Attività_cardine[[#This Row],[Numero di giorni]])=0,\"\",IF(AND(BD$5=$E30,$F30=1),Indicatore_Attività_Cardine,\"\")),\"\")","v":""},{"$f":"IFERROR(IF(LEN(Attività_cardine[[#This Row],[Numero di giorni]])=0,\"\",IF(AND(BE$5=$E30,$F30=1),Indicatore_Attività_Cardine,\"\")),\"\")","v":""},{"$f":"IFERROR(IF(LEN(Attività_cardine[[#This Row],[Numero di giorni]])=0,\"\",IF(AND(BF$5=$E30,$F30=1),Indicatore_Attività_Cardine,\"\")),\"\")","v":""},{"$f":"IFERROR(IF(LEN(Attività_cardine[[#This Row],[Numero di giorni]])=0,\"\",IF(AND(BG$5=$E30,$F30=1),Indicatore_Attività_Cardine,\"\")),\"\")","v":""},{"$f":"IFERROR(IF(LEN(Attività_cardine[[#This Row],[Numero di giorni]])=0,\"\",IF(AND(BH$5=$E30,$F30=1),Indicatore_Attività_Cardine,\"\")),\"\")","v":""},{"$f":"IFERROR(IF(LEN(Attività_cardine[[#This Row],[Numero di giorni]])=0,\"\",IF(AND(BI$5=$E30,$F30=1),Indicatore_Attività_Cardine,\"\")),\"\")","v":""},{"$f":"IFERROR(IF(LEN(Attività_cardine[[#This Row],[Numero di giorni]])=0,\"\",IF(AND(BJ$5=$E30,$F30=1),Indicatore_Attività_Cardine,\"\")),\"\")","v":""},{"$f":"IFERROR(IF(LEN(Attività_cardine[[#This Row],[Numero di giorni]])=0,\"\",IF(AND(BK$5=$E30,$F30=1),Indicatore_Attività_Cardine,\"\")),\"\")","v":""}]
[null,"Attività 5",{"$nulls":5},{"$f":"IFERROR(IF(LEN(Attività_cardine[[#This Row],[Numero di giorni]])=0,\"\",IF(AND(H$5=$E31,$F31=1),Indicatore_Attività_Cardine,\"\")),\"\")","v":""},{"$f":"IFERROR(IF(LEN(Attività_cardine[[#This Row],[Numero di giorni]])=0,\"\",IF(AND(I$5=$E31,$F31=1),Indicatore_Attività_Cardine,\"\")),\"\")","v":""},{"$f":"IFERROR(IF(LEN(Attività_cardine[[#This Row],[Numero di giorni]])=0,\"\",IF(AND(J$5=$E31,$F31=1),Indicatore_Attività_Cardine,\"\")),\"\")","v":""},{"$f":"IFERROR(IF(LEN(Attività_cardine[[#This Row],[Numero di giorni]])=0,\"\",IF(AND(K$5=$E31,$F31=1),Indicatore_Attività_Cardine,\"\")),\"\")","v":""},{"$f":"IFERROR(IF(LEN(Attività_cardine[[#This Row],[Numero di giorni]])=0,\"\",IF(AND(L$5=$E31,$F31=1),Indicatore_Attività_Cardine,\"\")),\"\")","v":""},{"$f":"IFERROR(IF(LEN(Attività_cardine[[#This Row],[Numero di giorni]])=0,\"\",IF(AND(M$5=$E31,$F31=1),Indicatore_Attività_Cardine,\"\")),\"\")","v":""},{"$f":"IFERROR(IF(LEN(Attività_cardine[[#This Row],[Numero di giorni]])=0,\"\",IF(AND(N$5=$E31,$F31=1),Indicatore_Attività_Cardine,\"\")),\"\")","v":""},{"$f":"IFERROR(IF(LEN(Attività_cardine[[#This Row],[Numero di giorni]])=0,\"\",IF(AND(O$5=$E31,$F31=1),Indicatore_Attività_Cardine,\"\")),\"\")","v":""},{"$f":"IFERROR(IF(LEN(Attività_cardine[[#This Row],[Numero di giorni]])=0,\"\",IF(AND(P$5=$E31,$F31=1),Indicatore_Attività_Cardine,\"\")),\"\")","v":""},{"$f":"IFERROR(IF(LEN(Attività_cardine[[#This Row],[Numero di giorni]])=0,\"\",IF(AND(Q$5=$E31,$F31=1),Indicatore_Attività_Cardine,\"\")),\"\")","v":""},{"$f":"IFERROR(IF(LEN(Attività_cardine[[#This Row],[Numero di giorni]])=0,\"\",IF(AND(R$5=$E31,$F31=1),Indicatore_Attività_Cardine,\"\")),\"\")","v":""},{"$f":"IFERROR(IF(LEN(Attività_cardine[[#This Row],[Numero di giorni]])=0,\"\",IF(AND(S$5=$E31,$F31=1),Indicatore_Attività_Cardine,\"\")),\"\")","v":""},{"$f":"IFERROR(IF(LEN(Attività_cardine[[#This Row],[Numero di giorni]])=0,\"\",IF(AND(T$5=$E31,$F31=1),Indicatore_Attività_Cardine,\"\")),\"\")","v":""},{"$f":"IFERROR(IF(LEN(Attività_cardine[[#This Row],[Numero di giorni]])=0,\"\",IF(AND(U$5=$E31,$F31=1),Indicatore_Attività_Cardine,\"\")),\"\")","v":""},{"$f":"IFERROR(IF(LEN(Attività_cardine[[#This Row],[Numero di giorni]])=0,\"\",IF(AND(V$5=$E31,$F31=1),Indicatore_Attività_Cardine,\"\")),\"\")","v":""},{"$f":"IFERROR(IF(LEN(Attività_cardine[[#This Row],[Numero di giorni]])=0,\"\",IF(AND(W$5=$E31,$F31=1),Indicatore_Attività_Cardine,\"\")),\"\")","v":""},{"$f":"IFERROR(IF(LEN(Attività_cardine[[#This Row],[Numero di giorni]])=0,\"\",IF(AND(X$5=$E31,$F31=1),Indicatore_Attività_Cardine,\"\")),\"\")","v":""},{"$f":"IFERROR(IF(LEN(Attività_cardine[[#This Row],[Numero di giorni]])=0,\"\",IF(AND(Y$5=$E31,$F31=1),Indicatore_Attività_Cardine,\"\")),\"\")","v":""},{"$f":"IFERROR(IF(LEN(Attività_cardine[[#This Row],[Numero di giorni]])=0,\"\",IF(AND(Z$5=$E31,$F31=1),Indicatore_Attività_Cardine,\"\")),\"\")","v":""},{"$f":"IFERROR(IF(LEN(Attività_cardine[[#This Row],[Numero di giorni]])=0,\"\",IF(AND(AA$5=$E31,$F31=1),Indicatore_Attività_Cardine,\"\")),\"\")","v":""},{"$f":"IFERROR(IF(LEN(Attività_cardine[[#This Row],[Numero di giorni]])=0,\"\",IF(AND(AB$5=$E31,$F31=1),Indicatore_Attività_Cardine,\"\")),\"\")","v":""},{"$f":"IFERROR(IF(LEN(Attività_cardine[[#This Row],[Numero di giorni]])=0,\"\",IF(AND(AC$5=$E31,$F31=1),Indicatore_Attività_Cardine,\"\")),\"\")","v":""},{"$f":"IFERROR(IF(LEN(Attività_cardine[[#This Row],[Numero di giorni]])=0,\"\",IF(AND(AD$5=$E31,$F31=1),Indicatore_Attività_Cardine,\"\")),\"\")","v":""},{"$f":"IFERROR(IF(LEN(Attività_cardine[[#This Row],[Numero di giorni]])=0,\"\",IF(AND(AE$5=$E31,$F31=1),Indicatore_Attività_Cardine,\"\")),\"\")","v":""},{"$f":"IFERROR(IF(LEN(Attività_cardine[[#This Row],[Numero di giorni]])=0,\"\",IF(AND(AF$5=$E31,$F31=1),Indicatore_Attività_Cardine,\"\")),\"\")","v":""},{"$f":"IFERROR(IF(LEN(Attività_cardine[[#This Row],[Numero di giorni]])=0,\"\",IF(AND(AG$5=$E31,$F31=1),Indicatore_Attività_Cardine,\"\")),\"\")","v":""},{"$f":"IFERROR(IF(LEN(Attività_cardine[[#This Row],[Numero di giorni]])=0,\"\",IF(AND(AH$5=$E31,$F31=1),Indicatore_Attività_Cardine,\"\")),\"\")","v":""},{"$f":"IFERROR(IF(LEN(Attività_cardine[[#This Row],[Numero di giorni]])=0,\"\",IF(AND(AI$5=$E31,$F31=1),Indicatore_Attività_Cardine,\"\")),\"\")","v":""},{"$f":"IFERROR(IF(LEN(Attività_cardine[[#This Row],[Numero di giorni]])=0,\"\",IF(AND(AJ$5=$E31,$F31=1),Indicatore_Attività_Cardine,\"\")),\"\")","v":""},{"$f":"IFERROR(IF(LEN(Attività_cardine[[#This Row],[Numero di giorni]])=0,\"\",IF(AND(AK$5=$E31,$F31=1),Indicatore_Attività_Cardine,\"\")),\"\")","v":""},{"$f":"IFERROR(IF(LEN(Attività_cardine[[#This Row],[Numero di giorni]])=0,\"\",IF(AND(AL$5=$E31,$F31=1),Indicatore_Attività_Cardine,\"\")),\"\")","v":""},{"$f":"IFERROR(IF(LEN(Attività_cardine[[#This Row],[Numero di giorni]])=0,\"\",IF(AND(AM$5=$E31,$F31=1),Indicatore_Attività_Cardine,\"\")),\"\")","v":""},{"$f":"IFERROR(IF(LEN(Attività_cardine[[#This Row],[Numero di giorni]])=0,\"\",IF(AND(AN$5=$E31,$F31=1),Indicatore_Attività_Cardine,\"\")),\"\")","v":""},{"$f":"IFERROR(IF(LEN(Attività_cardine[[#This Row],[Numero di giorni]])=0,\"\",IF(AND(AO$5=$E31,$F31=1),Indicatore_Attività_Cardine,\"\")),\"\")","v":""},{"$f":"IFERROR(IF(LEN(Attività_cardine[[#This Row],[Numero di giorni]])=0,\"\",IF(AND(AP$5=$E31,$F31=1),Indicatore_Attività_Cardine,\"\")),\"\")","v":""},{"$f":"IFERROR(IF(LEN(Attività_cardine[[#This Row],[Numero di giorni]])=0,\"\",IF(AND(AQ$5=$E31,$F31=1),Indicatore_Attività_Cardine,\"\")),\"\")","v":""},{"$f":"IFERROR(IF(LEN(Attività_cardine[[#This Row],[Numero di giorni]])=0,\"\",IF(AND(AR$5=$E31,$F31=1),Indicatore_Attività_Cardine,\"\")),\"\")","v":""},{"$f":"IFERROR(IF(LEN(Attività_cardine[[#This Row],[Numero di giorni]])=0,\"\",IF(AND(AS$5=$E31,$F31=1),Indicatore_Attività_Cardine,\"\")),\"\")","v":""},{"$f":"IFERROR(IF(LEN(Attività_cardine[[#This Row],[Numero di giorni]])=0,\"\",IF(AND(AT$5=$E31,$F31=1),Indicatore_Attività_Cardine,\"\")),\"\")","v":""},{"$f":"IFERROR(IF(LEN(Attività_cardine[[#This Row],[Numero di giorni]])=0,\"\",IF(AND(AU$5=$E31,$F31=1),Indicatore_Attività_Cardine,\"\")),\"\")","v":""},{"$f":"IFERROR(IF(LEN(Attività_cardine[[#This Row],[Numero di giorni]])=0,\"\",IF(AND(AV$5=$E31,$F31=1),Indicatore_Attività_Cardine,\"\")),\"\")","v":""},{"$f":"IFERROR(IF(LEN(Attività_cardine[[#This Row],[Numero di giorni]])=0,\"\",IF(AND(AW$5=$E31,$F31=1),Indicatore_Attività_Cardine,\"\")),\"\")","v":""},{"$f":"IFERROR(IF(LEN(Attività_cardine[[#This Row],[Numero di giorni]])=0,\"\",IF(AND(AX$5=$E31,$F31=1),Indicatore_Attività_Cardine,\"\")),\"\")","v":""},{"$f":"IFERROR(IF(LEN(Attività_cardine[[#This Row],[Numero di giorni]])=0,\"\",IF(AND(AY$5=$E31,$F31=1),Indicatore_Attività_Cardine,\"\")),\"\")","v":""},{"$f":"IFERROR(IF(LEN(Attività_cardine[[#This Row],[Numero di giorni]])=0,\"\",IF(AND(AZ$5=$E31,$F31=1),Indicatore_Attività_Cardine,\"\")),\"\")","v":""},{"$f":"IFERROR(IF(LEN(Attività_cardine[[#This Row],[Numero di giorni]])=0,\"\",IF(AND(BA$5=$E31,$F31=1),Indicatore_Attività_Cardine,\"\")),\"\")","v":""},{"$f":"IFERROR(IF(LEN(Attività_cardine[[#This Row],[Numero di giorni]])=0,\"\",IF(AND(BB$5=$E31,$F31=1),Indicatore_Attività_Cardine,\"\")),\"\")","v":""},{"$f":"IFERROR(IF(LEN(Attività_cardine[[#This Row],[Numero di giorni]])=0,\"\",IF(AND(BC$5=$E31,$F31=1),Indicatore_Attività_Cardine,\"\")),\"\")","v":""},{"$f":"IFERROR(IF(LEN(Attività_cardine[[#This Row],[Numero di giorni]])=0,\"\",IF(AND(BD$5=$E31,$F31=1),Indicatore_Attività_Cardine,\"\")),\"\")","v":""},{"$f":"IFERROR(IF(LEN(Attività_cardine[[#This Row],[Numero di giorni]])=0,\"\",IF(AND(BE$5=$E31,$F31=1),Indicatore_Attività_Cardine,\"\")),\"\")","v":""},{"$f":"IFERROR(IF(LEN(Attività_cardine[[#This Row],[Numero di giorni]])=0,\"\",IF(AND(BF$5=$E31,$F31=1),Indicatore_Attività_Cardine,\"\")),\"\")","v":""},{"$f":"IFERROR(IF(LEN(Attività_cardine[[#This Row],[Numero di giorni]])=0,\"\",IF(AND(BG$5=$E31,$F31=1),Indicatore_Attività_Cardine,\"\")),\"\")","v":""},{"$f":"IFERROR(IF(LEN(Attività_cardine[[#This Row],[Numero di giorni]])=0,\"\",IF(AND(BH$5=$E31,$F31=1),Indicatore_Attività_Cardine,\"\")),\"\")","v":""},{"$f":"IFERROR(IF(LEN(Attività_cardine[[#This Row],[Numero di giorni]])=0,\"\",IF(AND(BI$5=$E31,$F31=1),Indicatore_Attività_Cardine,\"\")),\"\")","v":""},{"$f":"IFERROR(IF(LEN(Attività_cardine[[#This Row],[Numero di giorni]])=0,\"\",IF(AND(BJ$5=$E31,$F31=1),Indicatore_Attività_Cardine,\"\")),\"\")","v":""},{"$f":"IFERROR(IF(LEN(Attività_cardine[[#This Row],[Numero di giorni]])=0,\"\",IF(AND(BK$5=$E31,$F31=1),Indicatore_Attività_Cardine,\"\")),\"\")","v":""}]
["Questa è una riga vuota",{"$nulls":6},{"$f":"IFERROR(IF(LEN(Attività_cardine[[#This Row],[Numero di giorni]])=0,\"\",IF(AND(H$5=$E32,$F32=1),Indicatore_Attività_Cardine,\"\")),\"\")","v":""},{"$f":"IFERROR(IF(LEN(Attività_cardine[[#This Row],[Numero di giorni]])=0,\"\",IF(AND(I$5=$E32,$F32=1),Indicatore_Attività_Cardine,\"\")),\"\")","v":""},{"$f":"IFERROR(IF(LEN(Attività_cardine[[#This Row],[Numero di giorni]])=0,\"\",IF(AND(J$5=$E32,$F32=1),Indicatore_Attività_Cardine,\"\")),\"\")","v":""},{"$f":"IFERROR(IF(LEN(Attività_cardine[[#This Row],[Numero di giorni]])=0,\"\",IF(AND(K$5=$E32,$F32=1),Indicatore_Attività_Cardine,\"\")),\"\")","v":""},{"$f":"IFERROR(IF(LEN(Attività_cardine[[#This Row],[Numero di giorni]])=0,\"\",IF(AND(L$5=$E32,$F32=1),Indicatore_Attività_Cardine,\"\")),\"\")","v":""},{"$f":"IFERROR(IF(LEN(Attività_cardine[[#This Row],[Numero di giorni]])=0,\"\",IF(AND(M$5=$E32,$F32=1),Indicatore_Attività_Cardine,\"\")),\"\")","v":""},{"$f":"IFERROR(IF(LEN(Attività_cardine[[#This Row],[Numero di giorni]])=0,\"\",IF(AND(N$5=$E32,$F32=1),Indicatore_Attività_Cardine,\"\")),\"\")","v":""},{"$f":"IFERROR(IF(LEN(Attività_cardine[[#This Row],[Numero di giorni]])=0,\"\",IF(AND(O$5=$E32,$F32=1),Indicatore_Attività_Cardine,\"\")),\"\")","v":""},{"$f":"IFERROR(IF(LEN(Attività_cardine[[#This Row],[Numero di giorni]])=0,\"\",IF(AND(P$5=$E32,$F32=1),Indicatore_Attività_Cardine,\"\")),\"\")","v":""},{"$f":"IFERROR(IF(LEN(Attività_cardine[[#This Row],[Numero di giorni]])=0,\"\",IF(AND(Q$5=$E32,$F32=1),Indicatore_Attività_Cardine,\"\")),\"\")","v":""},{"$f":"IFERROR(IF(LEN(Attività_cardine[[#This Row],[Numero di giorni]])=0,\"\",IF(AND(R$5=$E32,$F32=1),Indicatore_Attività_Cardine,\"\")),\"\")","v":""},{"$f":"IFERROR(IF(LEN(Attività_cardine[[#This Row],[Numero di giorni]])=0,\"\",IF(AND(S$5=$E32,$F32=1),Indicatore_Attività_Cardine,\"\")),\"\")","v":""},{"$f":"IFERROR(IF(LEN(Attività_cardine[[#This Row],[Numero di giorni]])=0,\"\",IF(AND(T$5=$E32,$F32=1),Indicatore_Attività_Cardine,\"\")),\"\")","v":""},{"$f":"IFERROR(IF(LEN(Attività_cardine[[#This Row],[Numero di giorni]])=0,\"\",IF(AND(U$5=$E32,$F32=1),Indicatore_Attività_Cardine,\"\")),\"\")","v":""},{"$f":"IFERROR(IF(LEN(Attività_cardine[[#This Row],[Numero di giorni]])=0,\"\",IF(AND(V$5=$E32,$F32=1),Indicatore_Attività_Cardine,\"\")),\"\")","v":""},{"$f":"IFERROR(IF(LEN(Attività_cardine[[#This Row],[Numero di giorni]])=0,\"\",IF(AND(W$5=$E32,$F32=1),Indicatore_Attività_Cardine,\"\")),\"\")","v":""},{"$f":"IFERROR(IF(LEN(Attività_cardine[[#This Row],[Numero di giorni]])=0,\"\",IF(AND(X$5=$E32,$F32=1),Indicatore_Attività_Cardine,\"\")),\"\")","v":""},{"$f":"IFERROR(IF(LEN(Attività_cardine[[#This Row],[Numero di giorni]])=0,\"\",IF(AND(Y$5=$E32,$F32=1),Indicatore_Attività_Cardine,\"\")),\"\")","v":""},{"$f":"IFERROR(IF(LEN(Attività_cardine[[#This Row],[Numero di giorni]])=0,\"\",IF(AND(Z$5=$E32,$F32=1),Indicatore_Attività_Cardine,\"\")),\"\")","v":""},{"$f":"IFERROR(IF(LEN(Attività_cardine[[#This Row],[Numero di giorni]])=0,\"\",IF(AND(AA$5=$E32,$F32=1),Indicatore_Attività_Cardine,\"\")),\"\")","v":""},{"$f":"IFERROR(IF(LEN(Attività_cardine[[#This Row],[Numero di giorni]])=0,\"\",IF(AND(AB$5=$E32,$F32=1),Indicatore_Attività_Cardine,\"\")),\"\")","v":""},{"$f":"IFERROR(IF(LEN(Attività_cardine[[#This Row],[Numero di giorni]])=0,\"\",IF(AND(AC$5=$E32,$F32=1),Indicatore_Attività_Cardine,\"\")),\"\")","v":""},{"$f":"IFERROR(IF(LEN(Attività_cardine[[#This Row],[Numero di giorni]])=0,\"\",IF(AND(AD$5=$E32,$F32=1),Indicatore_Attività_Cardine,\"\")),\"\")","v":""},{"$f":"IFERROR(IF(LEN(Attività_cardine[[#This Row],[Numero di giorni]])=0,\"\",IF(AND(AE$5=$E32,$F32=1),Indicatore_Attività_Cardine,\"\")),\"\")","v":""},{"$f":"IFERROR(IF(LEN(Attività_cardine[[#This Row],[Numero di giorni]])=0,\"\",IF(AND(AF$5=$E32,$F32=1),Indicatore_Attività_Cardine,\"\")),\"\")","v":""},{"$f":"IFERROR(IF(LEN(Attività_cardine[[#This Row],[Numero di giorni]])=0,\"\",IF(AND(AG$5=$E32,$F32=1),Indicatore_Attività_Cardine,\"\")),\"\")","v":""},{"$f":"IFERROR(IF(LEN(Attività_cardine[[#This Row],[Numero di giorni]])=0,\"\",IF(AND(AH$5=$E32,$F32=1),Indicatore_Attività_Cardine,\"\")),\"\")","v":""},{"$f":"IFERROR(IF(LEN(Attività_cardine[[#This Row],[Numero di giorni]])=0,\"\",IF(AND(AI$5=$E32,$F32=1),Indicatore_Attività_Cardine,\"\")),\"\")","v":""},{"$f":"IFERROR(IF(LEN(Attività_cardine[[#This Row],[Numero di giorni]])=0,\"\",IF(AND(AJ$5=$E32,$F32=1),Indicatore_Attività_Cardine,\"\")),\"\")","v":""},{"$f":"IFERROR(IF(LEN(Attività_cardine[[#This Row],[Numero di giorni]])=0,\"\",IF(AND(AK$5=$E32,$F32=1),Indicatore_Attività_Cardine,\"\")),\"\")","v":""},{"$f":"IFERROR(IF(LEN(Attività_cardine[[#This Row],[Numero di giorni]])=0,\"\",IF(AND(AL$5=$E32,$F32=1),Indicatore_Attività_Cardine,\"\")),\"\")","v":""},{"$f":"IFERROR(IF(LEN(Attività_cardine[[#This Row],[Numero di giorni]])=0,\"\",IF(AND(AM$5=$E32,$F32=1),Indicatore_Attività_Cardine,\"\")),\"\")","v":""},{"$f":"IFERROR(IF(LEN(Attività_cardine[[#This Row],[Numero di giorni]])=0,\"\",IF(AND(AN$5=$E32,$F32=1),Indicatore_Attività_Cardine,\"\")),\"\")","v":""},{"$f":"IFERROR(IF(LEN(Attività_cardine[[#This Row],[Numero di giorni]])=0,\"\",IF(AND(AO$5=$E32,$F32=1),Indicatore_Attività_Cardine,\"\")),\"\")","v":""},{"$f":"IFERROR(IF(LEN(Attività_cardine[[#This Row],[Numero di giorni]])=0,\"\",IF(AND(AP$5=$E32,$F32=1),Indicatore_Attività_Cardine,\"\")),\"\")","v":""},{"$f":"IFERROR(IF(LEN(Attività_cardine[[#This Row],[Numero di giorni]])=0,\"\",IF(AND(AQ$5=$E32,$F32=1),Indicatore_Attività_Cardine,\"\")),\"\")","v":""},{"$f":"IFERROR(IF(LEN(Attività_cardine[[#This Row],[Numero di giorni]])=0,\"\",IF(AND(AR$5=$E32,$F32=1),Indicatore_Attività_Cardine,\"\")),\"\")","v":""},{"$f":"IFERROR(IF(LEN(Attività_cardine[[#This Row],[Numero di giorni]])=0,\"\",IF(AND(AS$5=$E32,$F32=1),Indicatore_Attività_Cardine,\"\")),\"\")","v":""},{"$f":"IFERROR(IF(LEN(Attività_cardine[[#This Row],[Numero di giorni]])=0,\"\",IF(AND(AT$5=$E32,$F32=1),Indicatore_Attività_Cardine,\"\")),\"\")","v":""},{"$f":"IFERROR(IF(LEN(Attività_cardine[[#This Row],[Numero di giorni]])=0,\"\",IF(AND(AU$5=$E32,$F32=1),Indicatore_Attività_Cardine,\"\")),\"\")","v":""},{"$f":"IFERROR(IF(LEN(Attività_cardine[[#This Row],[Numero di giorni]])=0,\"\",IF(AND(AV$5=$E32,$F32=1),Indicatore_Attività_Cardine,\"\")),\"\")","v":""},{"$f":"IFERROR(IF(LEN(Attività_cardine[[#This Row],[Numero di giorni]])=0,\"\",IF(AND(AW$5=$E32,$F32=1),Indicatore_Attività_Cardine,\"\")),\"\")","v":""},{"$f":"IFERROR(IF(LEN(Attività_cardine[[#This Row],[Numero di giorni]])=0,\"\",IF(AND(AX$5=$E32,$F32=1),Indicatore_Attività_Cardine,\"\")),\"\")","v":""},{"$f":"IFERROR(IF(LEN(Attività_cardine[[#This Row],[Numero di giorni]])=0,\"\",IF(AND(AY$5=$E32,$F32=1),Indicatore_Attività_Cardine,\"\")),\"\")","v":""},{"$f":"IFERROR(IF(LEN(Attività_cardine[[#This Row],[Numero di giorni]])=0,\"\",IF(AND(AZ$5=$E32,$F32=1),Indicatore_Attività_Cardine,\"\")),\"\")","v":""},{"$f":"IFERROR(IF(LEN(Attività_cardine[[#This Row],[Numero di giorni]])=0,\"\",IF(AND(BA$5=$E32,$F32=1),Indicatore_Attività_Cardine,\"\")),\"\")","v":""},{"$f":"IFERROR(IF(LEN(Attività_cardine[[#This Row],[Numero di giorni]])=0,\"\",IF(AND(BB$5=$E32,$F32=1),Indicatore_Attività_Cardine,\"\")),\"\")","v":""},{"$f":"IFERROR(IF(LEN(Attività_cardine[[#This Row],[Numero di giorni]])=0,\"\",IF(AND(BC$5=$E32,$F32=1),Indicatore_Attività_Cardine,\"\")),\"\")","v":""},{"$f":"IFERROR(IF(LEN(Attività_cardine[[#This Row],[Numero di giorni]])=0,\"\",IF(AND(BD$5=$E32,$F32=1),Indicatore_Attività_Cardine,\"\")),\"\")","v":""},{"$f":"IFERROR(IF(LEN(Attività_cardine[[#This Row],[Numero di giorni]])=0,\"\",IF(AND(BE$5=$E32,$F32=1),Indicatore_Attività_Cardine,\"\")),\"\")","v":""},{"$f":"IFERROR(IF(LEN(Attività_cardine[[#This Row],[Numero di giorni]])=0,\"\",IF(AND(BF$5=$E32,$F32=1),Indicatore_Attività_Cardine,\"\")),\"\")","v":""},{"$f":"IFERROR(IF(LEN(Attività_cardine[[#This Row],[Numero di giorni]])=0,\"\",IF(AND(BG$5=$E32,$F32=1),Indicatore_Attività_Cardine,\"\")),\"\")","v":""},{"$f":"IFERROR(IF(LEN(Attività_cardine[[#This Row],[Numero di giorni]])=0,\"\",IF(AND(BH$5=$E32,$F32=1),Indicatore_Attività_Cardine,\"\")),\"\")","v":""},{"$f":"IFERROR(IF(LEN(Attività_cardine[[#This Row],[Numero di giorni]])=0,\"\",IF(AND(BI$5=$E32,$F32=1),Indicatore_Attività_Cardine,\"\")),\"\")","v":""},{"$f":"IFERROR(IF(LEN(Attività_cardine[[#This Row],[Numero di giorni]])=0,\"\",IF(AND(BJ$5=$E32,$F32=1),Indicatore_Attività_Cardine,\"\")),\"\")","v":""},{"$f":"IFERROR(IF(LEN(Attività_cardine[[#This Row],[Numero di giorni]])=0,\"\",IF(AND(BK$5=$E32,$F32=1),Indicatore_Attività_Cardine,\"\")),\"\")","v":""}]
["Questa riga indica la fine dei dati sull’attività cardine di Gantt. NON immettere dati in questa riga. \nPer aggiungere altri elementi, inserire nuove righe sopra a questa.","Per aggiungere altri elementi, inserire nuove righe SOPRA a questa."]

{"sheet":"Informazioni","index":1,"n_rows":4,"n_cols":1,"rows_kept":4}
["Informazioni su questo modello"]
["Questo modello fornisce un modo semplice per creare un diagramma di Gantt per visualizzare e tenere traccia del progetto. Immettere la descrizione dei compiti, l’avanzamento come percentuale di completamento del compito, una data di inizio e il numero di giorni necessari per completare il compito. Il diagramma di Gantt si aggiorna automaticamente. Una barra di scorrimento consente di scorrere la sequenza temporale. Inserire nuovi compiti aggiungendo nuove righe.\n\nPersonalizzare l’aspetto del grafico modificando i formati condizionali. \n\nLe date precedenti al giorno corrente sono ombreggiate nella sequenza temporale.\n"]
["Guida per le utilità per la lettura dello schermo"]
["Questa cartella di lavoro contiene 2 fogli di lavoro. \n\nDiagramma di Gantt\nInformazioni\n\nLe istruzioni per ogni foglio di lavoro si trovano nella colonna A a partire dalla cella A1 di ogni foglio di lavoro. Sono scritte con testo nascosto. Ogni passaggio descrive le informazioni presenti nella riga corrispondente. Ogni passaggio successivo continua nella cella A2, A3 e così via, salvo diversa indicazione esplicita. Ad esempio, l'istruzione potrebbe indicare di \"passare alla cella A6\" per il passaggio successivo. \n\nQuesto testo nascosto non verrà stampato.\n\nPer rimuovere queste istruzioni dal foglio di lavoro, è sufficiente eliminare la colonna A."]